Workbook

Sheet Cover
A8: Distribution Network Service Provider
A9: Annual reporting template
A11: This template is to be used by a DNSP to fulfil its annual reporting obligations to the AER.
A13: Colour coding of input sheets:
A14: Dark blue = AER instructions/headings
A15: Yellow = Input cells
A16: Grey - Not applicable/No inputs required
A18: Leave coloured cells blank if no information exists - PLEASE DO NOT ENTER TEXT unless specifically requested to do so.
A19: All dollar amounts are to be unrounded, and in nominal terms.
A22: DNSP - trading name: | C22: Powercor Australia Ltd
A24: DNSP - Australian business number: | C24: ACN 064 651 109
A26: Reporting year: | C26: 2013
A31: Business address | B31: Address | D31: 40 Market Street
B32: Suburb | D32: Melbourne
C33: State | D33: VIC | E33: Postcode | F33: 3000
A35: Postal address | B35: Address | D35: Locked Bag 14090
B36: Suburb | D36: Melbourne
D37: VIC | E37: Postcode | F37: 8001
A40: Contact name/s | B40: Hannah Williams
A41: Contact phone/s | B41: 9683 4088
A42: Contact email address/s | B42: hwilliams@powercor.com.au

Sheet Contents
E3: Electricity Distribution Network Service Provider Annual Reporting Template
H4: Table of contents
P7: Tariff templates
C8: Cover sheet | G8: 9. Additions by Tax | K8: 19. Alternative Control and Other Services | O8: 29. Unmetered Supply
C12: 1. Income Statement | G12: 10. Advanced Metering Infrastructure | K12: 20. Demand and Revenue | O12: 30. Actual t-2 Distribution Tariff
C16: 2. Balance Sheet | G16: 11. Maintenance | K16: 21. EBSS | O16: 31. Actual t-2 Transmission Tariff
C21: 3. Cashflows Statement | K21: 22. Jurisdictional Scheme | O21: 32. Actual t-2 TUoS Cost Audit
C22: Powercor
G24: 12. Activities
C25: 4. Changes in Equity | K25: 23. DMIS-DMIA | O25: 33. Actual t-2 Jurisdictional Scheme Revenue
C29: 5. Fixed Assets | K29: 24. Self Insurance | O29: 34. Actual t-2 Jurisdictional Scheme Cost Audit
G31: 13. Labour
C33: 6. Additions by Reason | K33: 25. Change of Accounting Policy
G35: 14. Opex Step Change
K37: 26. Related Party Transactions
G39: 15. Total Overheads
K41: 27. Safety and Bushfire
G43: 16. Provisions
K46: 28. Cost of Debt
G47: 17. Shared Cost Allocation
C48: 7. Depreciation
G51: 18. Avoided Cost Payments
C52: 8. Written Down Value

Sheet 1. Income
B1: =Cover!C22 -> Powercor Australia Ltd
B2: Income Statement
B3: =Cover!C26 -> 2013
B6: Statutory Account code or reference to account code | C6: Description | D6: Audited Statutory Financial Statements | E6: Adjustments | F6: Powercor | G6: Standard Control Services | H6: AMI | I6: Public Lighting - Alternative Control | K6: Other Alternative Control Services | M6: Negotiated Services | N6: Unregulated Services | O6: Standard Control Services Prior Year
I7: Energy efficient | J7: Non energy efficient | K7: Fee based service | L7: Quoted service
D9: $'000 nominal | E9: $'000 nominal | F9: $'000 nominal | G9: $'000 nominal | H9: $'000 nominal | I9: $'000 nominal | J9: $'000 nominal | K9: $'000 nominal | L9: $'000 nominal | M9: $'000 nominal | N9: $'000 nominal | O9: $'000 nominal
B10: Note 4 | C10: Distribution Revenue | D10: 666002.5204 | E10: 0 | F10: 666002.5204 | G10: 532720.1259 | H10: 100707.0743 | I10: 595.9511028 | J10: 8736.786007 | K10: 16527.24402 | L10: 3491.12075 | M10: 0 | N10: 3224.21851 | O10: 466182.6397
B11: Note 4 | C11: Designated Pricing Proposal Charges | D11: 162752.485 | E11: -162752.485 | F11: 0 | G11: 0 | H11: 0 | I11: 0 | J11: 0 | K11: 0 | L11: 0 | M11: 0 | N11: 0 | O11: 0
B12: Note 4 | C12: Jurisdictional Scheme Amounts | D12: 30342.86219 | E12: -30342.86219 | F12: 0 | G12: 0 | H12: 0 | I12: 0 | J12: 0 | K12: 0 | L12: 0 | M12: 0 | N12: 0 | O12: 0
B13: Note 5 | C13: Profit from sale of Fixed Assets | D13: -446.5483 | E13: 0 | F13: -446.5483 | G13: -446.5483 | H13: 0 | I13: 0 | J13: 0 | K13: 0 | L13: 0 | M13: 0 | N13: 0 | O13: 28.76034
B14: Note 4 | C14: Customer Contributions | D14: 43017.98446 | E14: -43017.98446 | F14: 0 | G14: 0 | H14: 0 | I14: 0 | J14: 0 | K14: 0 | L14: 0 | M14: 0 | N14: 0 | O14: 0
B15: Note 4 | C15: Other Revenue | D15: 318077.8908 | E15: -224318.6491 | F15: 93759.24173 | G15: 93207.70786 | H15: -455.3990678 | I15: 0.2344400056 | J15: 33.47992128 | K15: 0 | L15: 0 | M15: 973.191914 | N15: 0.02666135404 | O15: 88561.21805
C17: Total revenue | D17: =SUM(D10:D16) -> 1219747.195 | E17: =SUM(E10:E16) -> -460431.9807 | F17: =SUM(F10:F16) -> 759315.2138 | G17: 625481.2855 | H17: 100251.6752 | I17: 596.1855428 | J17: 8770.265928 | K17: 16527.24402 | L17: 3491.12075 | M17: 973.191914 | N17: 3224.245171 | O17: 554772.6181
B19: Note 6 | C19: Designated Pricing Approval Charges | D19: 162752.485 | E19: -162752.485 | F19: 0 | G19: 0 | H19: 0 | I19: 0 | J19: 0 | K19: 0 | L19: 0 | M19: 0 | N19: 0 | O19: 0
B20: Note 6 | C20: Jurisdictional Scheme Amounts | D20: 30342.86219 | E20: -30342.86219 | F20: 0 | G20: 0 | H20: 0 | I20: 0 | J20: 0 | K20: 0 | L20: 0 | M20: 0 | N20: 0 | O20: 0
B21: Note 6 | C21: Maintenance | D21: 151198.2496 | E21: 0 | F21: 151198.2496 | G21: 138746.1283 | H21: 2130.118 | I21: 356.6256236 | J21: 5990.006885 | K21: 2744.479428 | L21: 1230.891448 | M21: 0 | N21: 0 | O21: 124012.9759
B22: Note 6 | C22: Operating Expenses | D22: 303329.0246 | E22: -216018.793 | F22: 87310.2316 | G22: 49549.50723 | H22: 22037.84537 | I22: 10.57059549 | J22: 179.3188542 | K22: 12209.50784 | L22: 3323.337686 | M22: 0.1384995566 | N22: 0.005524129131 | O22: 47749.64227
B23: Note 6 | C23: Depreciation | D23: 188457.5951 | E23: -30207.7086 | F23: 158249.8865 | G23: 113899.5752 | H23: 41578.93478 | I23: 2.129886757 | J23: 2723.032007 | K23: 0 | L23: 0 | M23: 32.94069078 | N23: 13.4019457 | O23: 103932.5826
B24: Note 6 | C24: Finance Charges | D24: 14594.9693 | E24: -224.95206 | F24: 14370.01724 | G24: 12631.77448 | H24: 1609.829876 | I24: 0.5134124479 | J24: 118.699188 | K24: 0 | L24: 0 | M24: 8.847400713 | N24: 0.3528833248 | O24: 10591.67119
B25: Note 5 | C25: Loss from sale of Fixed Assets | D25: 0 | E25: 0 | F25: 0 | G25: 0 | H25: 0 | I25: 0 | J25: 0 | K25: 0 | L25: 0 | M25: 0 | N25: 0 | O25: 0
C26: Impairment Losses (Nature: ) | D26: 0 | E26: 0 | F26: 0 | G26: 0 | H26: 0 | I26: 0 | J26: 0 | K26: 0 | L26: 0 | M26: 0 | N26: 0 | O26: 0
C27: Other | D27: 0 | E27: 0 | F27: 0 | G27: 0 | H27: 0 | I27: 0 | J27: 0 | K27: 0 | L27: 0 | M27: 0 | N27: 0 | O27: 0
C29: Profit before Tax (PBT) | D29: =D17-SUM(D19:D27) -> 369072.0086 | E29: -20885.17982 | F29: 348186.8288 | G29: 310654.3003 | H29: 32894.94717 | I29: 226.3460245 | J29: -240.7910052 | K29: 1573.256753 | L29: -1063.108384 | M29: 931.2653229 | N29: 3210.484818 | O29: 268485.7461
C31: Income Tax Expenses /(Benefit) | D31: 104456.0086 | E31: -5910.994258 | F31: 98545.01438 | G31: 87922.43117 | H31: 9310.039248 | I31: 64.06121769 | J31: -68.149485 | K31: 445.2684494 | L31: -300.8845318 | M31: 263.5698626 | N31: 908.6422759 | O31: 77214.65581
C33: Profit after tax | D33: =D29-D31 -> 264616 | E33: =E29-E31 -> -14974.18556 | F33: 249641.8144 | G33: 222731.8691 | H33: 23584.90792 | I33: 162.2848068 | J33: -172.6415202 | K33: 1127.988304 | L33: -762.223852 | M33: 667.6954603 | N33: 2301.842542 | O33: 191271.0903
B36: Note:
B37: Balancing is required at Powercor distribution business level
B38: In addition it is mandatory to produce for each cost or revenue item that has been allocated to the distribution services/AMI a supporting
B39: workpaper that includes the following:
B40: a) the amounts that have been directly attributed to each distribution service
B41: b) the amounts that have been allocated to each distribution service
B42: c) a description of the allocation basis
B43: d) the numeric quantity of each allocator.
B44: Designated pricing approval charges include SPI connection fees, AEMO shared transmission charges, net cross boundary charges, avoided TUoS/avoided transmission costs.

Sheet 6a. Capex 1A
B1: =Cover!C22 -> Powercor Australia Ltd
B2: Additions by Reasons
B3: (Net of Customer Contributions)
B4: =Cover!C26 -> 2013
B6: Instructions:
B7: Reported expenditure is to be entered INCLUSIVE of any profit margins or management fees paid directly or indirectly to related party contractors (which is not an actual incurred cost of the related party contractor) for the regulatory reporting period.
B8: If allocating based on assumptions then provide method.
B10: Table 1 Standard Control Service
B12: $'000 nominal | C12: Total | E12: VOLTAGE
D13: Subtransmission | E13: HV | F13: LV | G13: Other
B14: Demand Related
B15: Reinforcement | C15: =SUM(D15:G15) -> 29498.88598 | D15: 11261.26601 | E15: 12791.56951 | F15: 5069.671657 | G15: 376.3787979
B16: New customer connection | C16: =SUM(D16:G16) -> 98387.09361 | D16: 37559.49409 | E16: 42663.48728 | F16: 16908.78294 | G16: 1255.329304
B17: Non Demand Related
B18: Reliability & quality maintained | C18: =SUM(D18:G18) -> 56129.75124 | D18: 21427.65867 | E18: 24339.48235 | F18: 9646.445943 | G18: 716.1642752
B19: Environmental, safety & legal | C19: 81841.71607 | D19: 31243.25903 | E19: 35488.9334 | F19: 14065.29822 | G19: 1044.225424
B20: Total Across Voltage Levels | C20: 265857.4469 | D20: =SUM(D15:D16,D18:D19) -> 101491.6778 | E20: =SUM(E15:E16,E18:E19) -> 115283.4725 | F20: =SUM(F15:F16,F18:F19) -> 45690.19875 | G20: =SUM(G15:G16,G18:G19) -> 3392.097801
B21: SCADA/Network control | C21: 3021.16816 | D21: 0 | E21: 0 | F21: 0 | G21: 3021.16816
B22: Non network general - IT | C22: 13385.48787 | D22: 0 | E22: 0 | F22: 0 | G22: 13385.48787
B23: Non network general - other | C23: 11026.78098 | D23: 0 | E23: 0 | F23: 0 | G23: 11026.78098
B24: Metering - Non AMI | C24: 0 | D24: 0 | E24: 0 | F24: 0 | G24: 0
B25: Standard Control - Total Additions | C25: 293290.8839 | D25: =SUM(D20:D24) -> 101491.6778 | E25: =SUM(E20:E24) -> 115283.4725 | F25: =SUM(F20:F24) -> 45690.19875 | G25: =SUM(G20:G24) -> 30825.53481
B27: Table 2 AMI
B29: $'000 nominal | C29: Total | E29: VOLTAGE
D30: Subtransmission | E30: HV | F30: LV | G30: Other
B31: Accumulation Meters | C31: =SUM(D31:G31) -> 94.38584 | D31: 0 | E31: 0 | F31: 0 | G31: 94.38584
B32: Manually read interval meters | C32: 119.60911 | D32: 0 | E32: 0 | F32: 0 | G32: 119.60911
B33: Remotely read interval meters & transformers | C33: 72813.00711 | D33: 0 | E33: 0 | F33: 0 | G33: 72813.00711
B34: AMI communication | C34: 4114.819887 | D34: 0 | E34: 0 | F34: 0 | G34: 4114.819887
B35: Metering data services (IT) | C35: 6387.45661 | D35: 0 | E35: 0 | F35: 0 | G35: 6387.45661
B36: Metering data services (other) | C36: 37.73184 | D36: 0 | E36: 0 | F36: 0 | G36: 37.73184
B37: Balancing is required at Powercor distribution business level | C37: 83567.0104 | D37: =SUM(D31:D36) -> 0 | E37: =SUM(E31:E36) -> 0 | F37: =SUM(F31:F36) -> 0 | G37: =SUM(G31:G36) -> 83567.0104
B39: Table 3 Public lighting - Alternative Control
B41: $'000 nominal | C41: Total | E41: VOLTAGE
D42: Subtransmission | E42: HV | F42: LV | G42: Other
B43: Public lighting - energy efficient | C43: =SUM(D43:G43) -> 63.98458943 | D43: 0 | E43: 0 | F43: 0 | G43: 63.98458943
B44: Public lighting - non energy efficient | C44: =SUM(D44:G44) -> 2881.835557 | D44: 0 | E44: 0 | F44: 0 | G44: 2881.835557
B46: Public Lighting - Total Additions | C46: =SUM(D46:G46) -> 2945.820147 | D46: =SUM(D43:D44) -> 0 | E46: =SUM(E43:E44) -> 0 | F46: =SUM(F43:F44) -> 0 | G46: =SUM(G43:G44) -> 2945.820147
B48: Table 4 Alternative control - fee, quoted services
B50: $'000 nominal | C50: Total | E50: VOLTAGE
D51: Subtransmission | E51: HV | F51: LV | G51: Other
B52: Other - fee based services | C52: =SUM(D52:G52) -> 0 | D52: 0 | E52: 0 | F52: 0 | G52: 0
B53: Other - quoted services | C53: =SUM(D53:G53) -> 0 | D53: 0 | E53: 0 | F53: 0 | G53: 0
B55: Other Alternative Control - Total Additions | C55: =SUM(D55:G55) -> 0 | D55: =SUM(D52:D53) -> 0 | E55: =SUM(E52:E53) -> 0 | F55: =SUM(F52:F53) -> 0 | G55: =SUM(G52:G53) -> 0
B57: Table 5 Negotiated
B59: $'000 nominal | C59: Total | E59: VOLTAGE
D60: Subtransmission | E60: HV | F60: LV | G60: Other
B61: Negotiated services | C61: =SUM(D61:G61) -> 989.58152 | D61: 0 | E61: 0 | F61: 0 | G61: 989.58152
B63: Negotiated - Total Additions | C63: =SUM(D63:G63) -> 989.58152 | D63: =D61 -> 0 | E63: =E61 -> 0 | F63: =F61 -> 0 | G63: =G61 -> 989.58152
B65: Table 6 Unregulated
B67: $'000 nominal | C67: Total | E67: VOLTAGE
D68: Subtransmission | E68: HV | F68: LV | G68: Other
B69: Unregulated | C69: =SUM(D69:G69) -> 109.3898333 | D69: 0 | E69: 0 | F69: 0 | G69: 109.3898333
B71: Unregulated - Total Additions | C71: =SUM(D71:G71) -> 109.3898333 | D71: =D69 -> 0 | E71: =E69 -> 0 | F71: =F69 -> 0 | G71: =G69 -> 109.3898333
B73: Table 7 Total all additions
B75: $'000 nominal | C75: Total | E75: VOLTAGE
D76: Subtransmission | E76: HV | F76: LV | G76: Other
B77: Total Additions (Net of Customer Contributions) $'000 nominal | C77: =SUM(D77:G77) -> 380902.6858 | D77: =D25+D37+D46+D55+D63+D71 -> 101491.6778 | E77: =E25+E37+E46+E55+E63+E71 -> 115283.4725 | F77: =F25+F37+F46+F55+F63+F71 -> 45690.19875 | G77: =G25+G37+G46+G55+G63+G71 -> 118437.3367
B79: Table 8 Customer Contributions
B81: $'000 nominal
B82: Standard control services | C82: 39204.76825
B83: AMI | C83: 0
B84: Public lighting | C84: 65.107
B85: Alternative control fee and quoted services | C85: 0
B86: Negotiated | C86: 3765.69621
B87: Unregulated | C87: 0
B88: Total Customer Contributions | C88: =SUM(C82:C87) -> 43035.57146

Sheet 6b. Capex 1B
B1: =Cover!C22 -> Powercor Australia Ltd
B2: Additions by Reasons
B3: (Net of Customer Contributions)
B4: =Cover!C26 -> 2013
B6: Instructions:
B7: Reported expenditure is to be entered EXCLUSIVE of any profit margins or management fees paid directly or indirectly to related party contractors (which is not an actual incurred cost of the related party contractor) for the regulatory reporting period.
B8: If allocating based on assumptions then provide method.
B10: Table 1 Standard Control Service
B12: $'000 nominal | C12: Total | E12: VOLTAGE
D13: Subtransmission | E13: HV | F13: LV | G13: Other
B14: Demand Related
B15: Reinforcement | C15: =SUM(D15:G15) -> 28621.9452 | D15: 10926.4919 | E15: 12411.30264 | F15: 4918.96082 | G15: 365.1898358
B16: New customer connection | C16: =SUM(D16:G16) -> 94575.43102 | D16: 36104.38333 | E16: 41010.64022 | F16: 16253.71149 | G16: 1206.695977
B17: Non Demand Related
B18: Reliability & quality maintained | C18: =SUM(D18:G18) -> 54377.18129 | D18: 20758.61116 | E18: 23579.51737 | F18: 9345.249681 | G18: 693.803086
B19: Environmental, safety & legal | C19: 78900.30804 | D19: 30120.3699 | E19: 34213.45387 | F19: 13559.78852 | G19: 1006.695748
B20: Total Across Voltage Levels | C20: 256474.8656 | D20: =SUM(D19,D18,D15,D16) -> 97909.85629 | E20: =SUM(E19,E18,E15,E16) -> 111214.9141 | F20: =SUM(F19,F18,F15,F16) -> 44077.71051 | G20: =SUM(G19,G18,G15,G16) -> 3272.384647
B21: SCADA/Network control | C21: 2951.929901 | D21: 0 | E21: 0 | F21: 0 | G21: 2951.929901
B22: Non network general - IT | C22: 11564.72219 | D22: 0 | E22: 0 | F22: 0 | G22: 11564.72219
B23: Non network general - other | C23: 11026.78098 | D23: 0 | E23: 0 | F23: 0 | G23: 11026.78098
B24: Metering - Non AMI | C24: 0 | D24: 0 | E24: 0 | F24: 0 | G24: 0
B25: Standard Control - Total Additions | C25: 282018.2986 | D25: =SUM(D20:D24) -> 97909.85629 | E25: =SUM(E20:E24) -> 111214.9141 | F25: =SUM(F20:F24) -> 44077.71051 | G25: =SUM(G20:G24) -> 28815.81771
B27: Table 2 AMI
B29: $'000 nominal | C29: Total | E29: VOLTAGE
D30: Subtransmission | E30: HV | F30: LV | G30: Other
B31: Accumulation Meters | C31: =SUM(D31:G31) -> 91.47833062 | D31: 0 | E31: 0 | F31: 0 | G31: 91.47833062
B32: Manually read interval meters | C32: 115.9299106 | D32: 0 | E32: 0 | F32: 0 | G32: 115.9299106
B33: Remotely read interval meters & transformers | C33: 71346.87064 | D33: 0 | E33: 0 | F33: 0 | G33: 71346.87064
B34: AMI communication | C34: 3713.055837 | D34: 0 | E34: 0 | F34: 0 | G34: 3713.055837
B35: Metering data services (IT) | C35: 5600.83234 | D35: 0 | E35: 0 | F35: 0 | G35: 5600.83234
B36: Metering data services (other) | C36: 37.73184 | D36: 0 | E36: 0 | F36: 0 | G36: 37.73184
B38: AMI - Total Additions | C38: =SUM(D38:G38) -> 80905.8989 | D38: =SUM(D31:D36) -> 0 | E38: =SUM(E31:E36) -> 0 | F38: =SUM(F31:F36) -> 0 | G38: =SUM(G31:G36) -> 80905.8989
B40: Table 3 Public lighting - Alternative Control
B42: $'000 nominal | C42: Total | E42: VOLTAGE
D43: Subtransmission | E43: HV | F43: LV | G43: Other
B44: Public lighting - energy efficient | C44: =SUM(D44:G44) -> 61.7511767 | D44: 0 | E44: 0 | F44: 0 | G44: 61.7511767
B45: Public lighting - non energy efficient | C45: =SUM(D45:G45) -> 2780.188829 | D45: 0 | E45: 0 | F45: 0 | G45: 2780.188829
B47: Public Lighting - Total Additions | C47: =SUM(D47:G47) -> 2841.940005 | D47: =SUM(D44:D45) -> 0 | E47: =SUM(E44:E45) -> 0 | F47: =SUM(F44:F45) -> 0 | G47: =SUM(G44:G45) -> 2841.940005
B49: Table 4 Alternative control - fee, quoted services
B51: $'000 nominal | C51: Total | E51: VOLTAGE
D52: Subtransmission | E52: HV | F52: LV | G52: Other
B53: Other - fee based services | C53: =SUM(D53:G53) -> 0 | D53: 0 | E53: 0 | F53: 0 | G53: 0
B54: Other - quoted services | C54: =SUM(D54:G54) -> 0 | D54: 0 | E54: 0 | F54: 0 | G54: 0
B56: Other Alternative Control - Total Additions | C56: =SUM(D56:G56) -> 0 | D56: =SUM(D53:D54) -> 0 | E56: =SUM(E53:E54) -> 0 | F56: =SUM(F53:F54) -> 0 | G56: =SUM(G53:G54) -> 0
B58: Table 5 Negotiated
C60: Total | E60: VOLTAGE
D61: Subtransmission | E61: HV | F61: LV | G61: Other
B62: Negotiated services | C62: =SUM(D62:G62) -> 837.9312447 | D62: 0 | E62: 0 | F62: 0 | G62: 837.9312447
B64: Negotiated - Total Additions | C64: =SUM(D64:G64) -> 837.9312447 | D64: =D62 -> 0 | E64: =E62 -> 0 | F64: =F62 -> 0 | G64: =G62 -> 837.9312447
B66: Table 6 Unregulated
B68: $'000 nominal | C68: Total | E68: VOLTAGE
D69: Subtransmission | E69: HV | F69: LV | G69: Other
B70: Unregulated | C70: =SUM(D70:G70) -> 105.5715288 | D70: 0 | E70: 0 | F70: 0 | G70: 105.5715288
B72: Unregulated - Total Additions | C72: =SUM(D72:G72) -> 105.5715288 | D72: =D70 -> 0 | E72: =E70 -> 0 | F72: =F70 -> 0 | G72: =G70 -> 105.5715288
B74: Table 7 Total all additions
B76: $'000 nominal | C76: Total | E76: VOLTAGE
D77: Subtransmission | E77: HV | F77: LV | G77: Other
B78: Total Additions (Net of Customer Contributions) $'000 nominal | C78: =SUM(D78:G78) -> 366709.6403 | D78: =D25+D38+D47+D56+D64+D72 -> 97909.85629 | E78: =E25+E38+E47+E56+E64+E72 -> 111214.9141 | F78: =F25+F38+F47+F56+F64+F72 -> 44077.71051 | G78: =G25+G38+G47+G56+G64+G72 -> 113507.1594
B80: Table 8 Customer Contributions
B82: $'000 nominal
B83: Standard control services | C83: 39204.76825
B84: AMI | C84: 0
B85: Public lighting | C85: 65.107
B86: Alternative control fee and quoted services | C86: 0
B87: Negotiated | C87: 3765.69621
B88: Unregulated | C88: 0
B89: Total Customer Contributions | C89: =SUM(C83:C88) -> 43035.57146

Sheet 6c. Capex 2A
B1: =Cover!C22 -> Powercor Australia Ltd
B2: Additions by Reason - Overheads
B3: (Net of Customer Contributions)
B4: =Cover!C26 -> 2013
B6: Instructions:
B7: Reported expenditure is to be entered INCLUSIVE of any profit margins or management fees paid directly or indirectly to related party contractors (which is not an actual incurred cost of the related party contractor) for the regulatory reporting period.
B8: If allocating based on assumptions then provide method.
B10: Table 1 Standard Control Service
B12: $'000 nominal | C12: DIRECT | H12: INDIRECT | M12: TOTAL OVERHEADS
D13: Voltage | I13: Voltage | N13: Voltage
C14: Subtransmission | D14: HV | E14: LV | F14: Other | G14: Subtotal | H14: Subtransmission | I14: HV | J14: LV | K14: Other | L14: Subtotal | M14: Subtransmission | N14: HV | O14: LV | P14: Other | Q14: TOTAL
B15: Demand Related
B16: Reinforcement | C16: 1158.910981 | D16: 1316.39643 | E16: 521.726256 | F16: 38.7336132 | G16: =SUM(C16:F16) -> 3035.76728 | H16: 1087.310893 | I16: 1235.066541 | J16: 489.4928517 | K16: 36.34056474 | L16: =SUM(H16:K16) -> 2848.21085 | M16: =SUM(C16,H16) -> 2246.221874 | N16: =SUM(D16,I16) -> 2551.46297 | O16: =SUM(E16,J16) -> 1011.219108 | P16: =SUM(F16,K16) -> 75.07417794 | Q16: =SUM(M16:P16) -> 5883.97813
B17: New customer connection | C17: 4618.555339 | D17: 5246.174949 | E17: 2079.211971 | F17: 154.3633109 | G17: =SUM(C17:F17) -> 12098.30557 | H17: 4243.435446 | I17: 4820.079678 | J17: 1910.338001 | K17: 141.825895 | L17: =SUM(H17:K17) -> 11115.67902 | M17: =SUM(C17,H17) -> 8861.990785 | N17: 10066.25463 | O17: 3989.549972 | P17: 296.1892059 | Q17: =SUM(M17:P17) -> 23213.98459
B18: Non Demand Related
B19: Reliability & quality maintained | C19: 2235.486449 | D19: 2539.268699 | E19: 1006.386163 | F19: 74.71537403 | G19: =SUM(C19:F19) -> 5855.856685 | H19: 2087.618402 | I19: 2371.306732 | J19: 939.8179417 | K19: 69.77326561 | L19: =SUM(H19:K19) -> 5468.516341 | M19: =SUM(C19,H19) -> 4323.104852 | N19: =SUM(D19,I19) -> 4910.575431 | O19: 1946.204104 | P19: 144.4886396 | Q19: =SUM(M19:P19) -> 11324.37303
B20: Environmental, safety & legal | C20: 3396.198476 | D20: 3857.71092 | E20: 1528.923226 | F20: 113.5091826 | G20: 8896.341805 | H20: 3064.932061 | I20: 3481.428415 | J20: 1379.791506 | K20: 102.4374562 | L20: 8028.589439 | M20: =SUM(C20,H20) -> 6461.130537 | N20: 7339.139336 | O20: 2908.714732 | P20: 215.9466388 | Q20: 16924.93124
B21: Total Across Voltage Levels | C21: =SUM(C16:C17,C19:C20) -> 11409.15125 | D21: =SUM(D16:D17,D19:D20) -> 12959.551 | E21: =SUM(E16:E17,E19:E20) -> 5136.247615 | F21: =SUM(F16:F17,F19:F20) -> 381.3214806 | G21: 29886.27134 | H21: =SUM(H16:H17,H19:H20) -> 10483.2968 | I21: =SUM(I16:I17,I19:I20) -> 11907.88137 | J21: =SUM(J16:J17,J19:J20) -> 4719.440301 | K21: =SUM(K16:K17,K19:K20) -> 350.3771816 | L21: 27460.99565 | M21: =SUM(M16:M17,M19:M20) -> 21892.44805 | N21: =SUM(N16:N17,N19:N20) -> 24867.43236 | O21: =SUM(O16:O17,O19:O20) -> 9855.687916 | P21: =SUM(P16:P17,P19:P20) -> 731.6986623 | Q21: 57347.26699
B22: SCADA/Network control | C22: 0 | D22: 0 | E22: 0 | F22: 287.91857 | G22: 287.91857 | H22: 0 | I22: 0 | J22: 0 | K22: 287.0804 | L22: 287.0804 | M22: =SUM(C22,H22) -> 0 | N22: 0 | O22: 0 | P22: 574.99897 | Q22: 574.99897
B23: Non network general - IT | C23: 0 | D23: 0 | E23: 0 | F23: 1.59343 | G23: 1.59343 | H23: 0 | I23: 0 | J23: 0 | K23: 2.41289 | L23: 2.41289 | M23: 0 | N23: 0 | O23: 0 | P23: 4.00632 | Q23: 4.00632
B24: Non network general - other | C24: 0 | D24: 0 | E24: 0 | F24: -1e-05 | G24: =SUM(C24:F24) -> -1e-05 | H24: 0 | I24: 0 | J24: 0 | K24: 0 | L24: =SUM(H24:K24) -> 0 | M24: =SUM(C24,H24) -> 0 | N24: 0 | O24: 0 | P24: -1e-05 | Q24: =SUM(M24:P24) -> -1e-05
B25: Metering - Non AMI | C25: 0 | D25: 0 | E25: 0 | F25: 0 | G25: =SUM(C25:F25) -> 0 | H25: 0 | I25: 0 | J25: 0 | K25: 0 | L25: =SUM(H25:K25) -> 0 | M25: 0 | N25: 0 | O25: 0 | P25: 0 | Q25: =SUM(M25:P25) -> 0
B26: Standard Control - Total Additions | C26: =SUM(C21:C24) -> 11409.15125 | D26: =SUM(D21:D24) -> 12959.551 | E26: =SUM(E21:E24) -> 5136.247615 | F26: =SUM(F21:F24) -> 670.8334706 | G26: 30175.78333 | H26: =SUM(H21:H24) -> 10483.2968 | I26: =SUM(I21:I24) -> 11907.88137 | J26: =SUM(J21:J24) -> 4719.440301 | K26: =SUM(K21:K24) -> 639.8704716 | L26: 27750.48894 | M26: =SUM(M21:M24) -> 21892.44805 | N26: =SUM(N21:N24) -> 24867.43236 | O26: =SUM(O21:O24) -> 9855.687916 | P26: =SUM(P21:P24) -> 1310.703942 | Q26: 57926.27227
B28: Table 2 AMI
B30: $'000 nominal | C30: DIRECT | H30: INDIRECT | M30: TOTAL OVERHEADS
D31: Voltage | I31: Voltage | N31: Voltage
C32: Subtransmission | D32: HV | E32: LV | F32: Other | G32: Subtotal | H32: Subtransmission | I32: HV | J32: LV | K32: Other | L32: Subtotal | M32: Subtransmission | N32: HV | O32: LV | P32: Other | Q32: TOTAL
B33: Accumulation Meters | C33: 0 | D33: 0 | E33: 0 | F33: 3.44783 | G33: =SUM(C33:F33) -> 3.44783 | H33: 0 | I33: 0 | J33: 0 | K33: 9.91381 | L33: =SUM(H33:K33) -> 9.91381 | M33: =SUM(C33,H33) -> 0 | N33: 0 | O33: 0 | P33: 13.36164 | Q33: =SUM(M33:P33) -> 13.36164
B34: Manually read interval meters | C34: 0 | D34: 0 | E34: 0 | F34: 4.3336 | G34: 4.3336 | H34: 0 | I34: 0 | J34: 0 | K34: 12.45753 | L34: 12.45753 | M34: 0 | N34: 0 | O34: 0 | P34: 16.79113 | Q34: 16.79113
B35: Remotely read interval meters & transformers | C35: 0 | D35: 0 | E35: 0 | F35: 335.7366548 | G35: 335.7366548 | H35: 0 | I35: 0 | J35: 0 | K35: 843.2611559 | L35: 843.2611559 | M35: 0 | N35: 0 | O35: 0 | P35: 1178.997811 | Q35: 1178.997811
B36: AMI communication | C36: 0 | D36: 0 | E36: 0 | F36: 0 | G36: 0 | H36: 0 | I36: 0 | J36: 0 | K36: 0 | L36: 0 | M36: 0 | N36: 0 | O36: 0 | P36: 0 | Q36: 0
B37: Metering data services (IT) | C37: 0 | D37: 0 | E37: 0 | F37: 0 | G37: 0 | H37: 0 | I37: 0 | J37: 0 | K37: 0 | L37: 0 | M37: 0 | N37: 0 | O37: 0 | P37: 0 | Q37: 0
B38: Metering data services (other) | C38: 0 | D38: 0 | E38: 0 | F38: 0 | G38: 0 | H38: 0 | I38: 0 | J38: 0 | K38: 0 | L38: 0 | M38: 0 | N38: 0 | O38: 0 | P38: 0 | Q38: 0
B40: AMI - Total Additions | C40: =SUM(C33:C38) -> 0 | D40: =SUM(D33:D38) -> 0 | E40: =SUM(E33:E38) -> 0 | F40: =SUM(F33:F38) -> 343.5180848 | G40: =SUM(C40:F40) -> 343.5180848 | H40: =SUM(H33:H38) -> 0 | I40: =SUM(I33:I38) -> 0 | J40: =SUM(J33:J38) -> 0 | K40: =SUM(K33:K38) -> 865.6324959 | L40: =SUM(H40:K40) -> 865.6324959 | M40: =SUM(M33:M38) -> 0 | N40: =SUM(N33:N38) -> 0 | O40: =SUM(O33:O38) -> 0 | P40: =SUM(P33:P38) -> 1209.150581 | Q40: =SUM(M40:P40) -> 1209.150581
B42: Table 3 Public lighting - Alternative Control
B44: $'000 nominal | C44: DIRECT | H44: INDIRECT | M44: TOTAL OVERHEADS
D45: Voltage | I45: Voltage | N45: Voltage
C46: Subtransmission | D46: HV | E46: LV | F46: Other | G46: Subtotal | H46: Subtransmission | I46: HV | J46: LV | K46: Other | L46: Subtotal | M46: Subtransmission | N46: HV | O46: LV | P46: Other | Q46: TOTAL
B47: Public lighting - energy efficient | C47: 0 | D47: 0 | E47: 0 | F47: 7.117129522 | G47: =SUM(C47:F47) -> 7.117129522 | H47: 0 | I47: 0 | J47: 0 | K47: 6.297350081 | L47: =SUM(H47:K47) -> 6.297350081 | M47: =SUM(C47,H47) -> 0 | N47: =SUM(D47,I47) -> 0 | O47: =SUM(E47,J47) -> 0 | P47: 13.4144796 | Q47: =SUM(M47:P47) -> 13.4144796
B48: Public lighting - non energy efficient | C48: 0 | D48: 0 | E48: 0 | F48: 323.9136779 | G48: =SUM(C48:F48) -> 323.9136779 | H48: 0 | I48: 0 | J48: 0 | K48: 286.6040051 | L48: =SUM(H48:K48) -> 286.6040051 | M48: =SUM(C48,H48) -> 0 | N48: 0 | O48: 0 | P48: 610.5176831 | Q48: =SUM(M48:P48) -> 610.5176831
B50: Public Lighting - Total Additions | C50: =SUM(C47:C48) -> 0 | D50: =SUM(D47:D48) -> 0 | E50: =SUM(E47:E48) -> 0 | F50: =SUM(F47:F48) -> 331.0308075 | G50: =SUM(C50:F50) -> 331.0308075 | H50: =SUM(H47:H48) -> 0 | I50: =SUM(I47:I48) -> 0 | J50: =SUM(J47:J48) -> 0 | K50: =SUM(K47:K48) -> 292.9013552 | L50: =SUM(H50:K50) -> 292.9013552 | M50: =SUM(M47:M48) -> 0 | N50: =SUM(N47:N48) -> 0 | O50: =SUM(O47:O48) -> 0 | P50: =SUM(P47:P48) -> 623.9321627 | Q50: =SUM(M50:P50) -> 623.9321627
B52: Table 4 Alternative control - fee, quoted services
B54: $'000 nominal | C54: DIRECT | H54: INDIRECT | M54: TOTAL OVERHEADS
D55: Voltage | I55: Voltage | N55: Voltage
C56: Subtransmission | D56: HV | E56: LV | F56: Other | G56: Subtotal | H56: Subtransmission | I56: HV | J56: LV | K56: Other | L56: Subtotal | M56: Subtransmission | N56: HV | O56: LV | P56: Other | Q56: TOTAL
B57: Other - fee based services | C57: 0 | D57: 0 | E57: 0 | F57: 0 | G57: =SUM(C57:F57) -> 0 | H57: 0 | I57: 0 | J57: 0 | K57: 0 | L57: =SUM(H57:K57) -> 0 | M57: =SUM(C57,H57) -> 0 | N57: 0 | O57: 0 | P57: 0 | Q57: =SUM(M57:P57) -> 0
B58: Other - quoted services | C58: 0 | D58: 0 | E58: 0 | F58: 0 | G58: =SUM(C58:F58) -> 0 | H58: 0 | I58: 0 | J58: 0 | K58: 0 | L58: =SUM(H58:K58) -> 0 | M58: 0 | N58: 0 | O58: 0 | P58: 0 | Q58: =SUM(M58:P58) -> 0
B60: Other Alternative Control - Total Additions | C60: =SUM(C57:C58) -> 0 | D60: =SUM(D57:D58) -> 0 | E60: =SUM(E57:E58) -> 0 | F60: =SUM(F57:F58) -> 0 | G60: =SUM(C60:F60) -> 0 | H60: =SUM(H57:H58) -> 0 | I60: =SUM(I57:I58) -> 0 | J60: =SUM(J57:J58) -> 0 | K60: =SUM(K57:K58) -> 0 | L60: =SUM(H60:K60) -> 0 | M60: =SUM(M57:M58) -> 0 | N60: =SUM(N57:N58) -> 0 | O60: =SUM(O57:O58) -> 0 | P60: =SUM(P57:P58) -> 0 | Q60: =SUM(M60:P60) -> 0
B62: Table 5 Negotiated
B64: $'000 nominal | C64: DIRECT | H64: INDIRECT | M64: TOTAL OVERHEADS
D65: Voltage | I65: Voltage | N65: Voltage
C66: Subtransmission | D66: HV | E66: LV | F66: Other | G66: Subtotal | H66: Subtransmission | I66: HV | J66: LV | K66: Other | L66: Subtotal | M66: Subtransmission | N66: HV | O66: LV | P66: Other | Q66: TOTAL
B67: Negotiated services | C67: 0 | D67: 0 | E67: 0 | F67: 457.64469 | G67: =SUM(C67:F67) -> 457.64469 | H67: 0 | I67: 0 | J67: 0 | K67: 395.08077 | L67: =SUM(H67:K67) -> 395.08077 | M67: =SUM(C67,H67) -> 0 | N67: =SUM(D67,I67) -> 0 | O67: =SUM(E67,J67) -> 0 | P67: =SUM(F67,K67) -> 852.72546 | Q67: =SUM(M67:P67) -> 852.72546
B69: Negotiated - Total Additions | C69: =SUM(C67) -> 0 | D69: =SUM(D67) -> 0 | E69: =SUM(E67) -> 0 | F69: =SUM(F67) -> 457.64469 | G69: =SUM(C69:F69) -> 457.64469 | H69: =SUM(H67) -> 0 | I69: =SUM(I67) -> 0 | J69: =SUM(J67) -> 0 | K69: =SUM(K67) -> 395.08077 | L69: =SUM(H69:K69) -> 395.08077 | M69: =SUM(M67) -> 0 | N69: =SUM(N67) -> 0 | O69: =SUM(O67) -> 0 | P69: =SUM(P67) -> 852.72546 | Q69: =SUM(M69:P69) -> 852.72546
B71: Table 6 Unregulated
B73: $'000 nominal | C73: DIRECT | H73: INDIRECT | M73: TOTAL OVERHEADS
D74: Voltage | I74: Voltage | N74: Voltage
C75: Subtransmission | D75: HV | E75: LV | F75: Other | G75: Subtotal | H75: Subtransmission | I75: HV | J75: LV | K75: Other | L75: Subtotal | M75: Subtransmission | N75: HV | O75: LV | P75: Other | Q75: TOTAL
B76: Unregulated | C76: 0 | D76: 0 | E76: 0 | F76: 12.16764254 | G76: =SUM(C76:F76) -> 12.16764254 | H76: 0 | I76: 0 | J76: 0 | K76: 10.76612481 | L76: =SUM(H76:K76) -> 10.76612481 | M76: =SUM(C76,H76) -> 0 | N76: =SUM(D76,I76) -> 0 | O76: =SUM(E76,J76) -> 0 | P76: =SUM(F76,K76) -> 22.93376734 | Q76: =SUM(M76:P76) -> 22.93376734
B78: Unregulated - Total Additions | C78: =SUM(C76) -> 0 | D78: =SUM(D76) -> 0 | E78: =SUM(E76) -> 0 | F78: =SUM(F76) -> 12.16764254 | G78: =SUM(C78:F78) -> 12.16764254 | H78: =SUM(H76) -> 0 | I78: =SUM(I76) -> 0 | J78: =SUM(J76) -> 0 | K78: =SUM(K76) -> 10.76612481 | L78: =SUM(H78:K78) -> 10.76612481 | M78: =SUM(M76) -> 0 | N78: =SUM(N76) -> 0 | O78: =SUM(O76) -> 0 | P78: =SUM(P76) -> 22.93376734 | Q78: =SUM(M78:P78) -> 22.93376734
B80: Table 7 Total all additions
B82: $'000 nominal | C82: DIRECT | H82: INDIRECT | M82: TOTAL OVERHEADS
D83: Voltage | I83: Voltage | N83: Voltage
C84: Subtransmission | D84: HV | E84: LV | F84: Other | G84: Subtotal | H84: Subtransmission | I84: HV | J84: LV | K84: Other | L84: Subtotal | M84: Subtransmission | N84: HV | O84: LV | P84: Other | Q84: TOTAL
B85: Total Additions (Net of Customer Contributions) $'000 nominal | C85: =C26+C40+C50+C60+C69+C78 -> 11409.15125 | D85: =D26+D40+D50+D60+D69+D78 -> 12959.551 | E85: =E26+E40+E50+E60+E69+E78 -> 5136.247615 | F85: =F26+F40+F50+F60+F69+F78 -> 1815.194695 | G85: =SUM(C85:F85) -> 31320.14455 | H85: =H26+H40+H50+H60+H69+H78 -> 10483.2968 | I85: =I26+I40+I50+I60+I69+I78 -> 11907.88137 | J85: =J26+J40+J50+J60+J69+J78 -> 4719.440301 | K85: =K26+K40+K50+K60+K69+K78 -> 2204.251218 | L85: =SUM(H85:K85) -> 29314.86969 | M85: =M26+M40+M50+M60+M69+M78 -> 21892.44805 | N85: =N26+N40+N50+N60+N69+N78 -> 24867.43236 | O85: =O26+O40+O50+O60+O69+O78 -> 9855.687916 | P85: =P26+P40+P50+P60+P69+P78 -> 4019.445913 | Q85: =SUM(M85:P85) -> 60635.01424
B87: Table 8 Customer Contributions
B89: $'000 nominal
B90: Standard control services | C90: 0
B91: AMI | C91: 0
B92: Public lighting | C92: 0
B93: Alternative control fee and quoted services | C93: 0
B94: Negotiated | C94: 0
B95: Unregulated | C95: 0
B96: Total Customer Contributions | C96: =SUM(C90:C95) -> 0

Sheet 6d. Capex 2B
B1: =Cover!C22 -> Powercor Australia Ltd
B2: Additions by Reason - Overheads
B3: (Net of Customer Contributions)
B4: =Cover!C26 -> 2013
B6: Instructions:
B7: Reported expenditure is to be entered EXCLUSIVE of any profit margins or management fees paid directly or indirectly to related party contractors (which is not an actual incurred cost of the related party contractor) for the regulatory reporting period.
B8: If allocating based on assumptions then provide method.
B10: Table 1 Standard Control Service
B12: $'000 nominal | C12: DIRECT | H12: INDIRECT | M12: TOTAL OVERHEADS
D13: Voltage | I13: Voltage | N13: Voltage
C14: Subtransmission | D14: HV | E14: LV | F14: Other | G14: Subtotal | H14: Subtransmission | I14: HV | J14: LV | K14: Other | L14: Subtotal | M14: Subtransmission | N14: HV | O14: LV | P14: Other | Q14: TOTAL
B15: Demand Related
B16: Reinforcement | C16: 1158.910981 | D16: 1316.39643 | E16: 521.726256 | F16: 38.7336132 | G16: =SUM(C16:F16) -> 3035.76728 | H16: 1025.024453 | I16: 1164.315942 | J16: 461.4523281 | K16: 34.25880101 | L16: =SUM(H16:K16) -> 2685.051524 | M16: =SUM(C16,H16) -> 2183.935435 | N16: =SUM(D16,I16) -> 2480.712371 | O16: 983.1785841 | P16: 72.99241421 | Q16: =SUM(M16:P16) -> 5720.818804
B17: New customer connection | C17: 4618.555339 | D17: 5246.174949 | E17: 2079.211971 | F17: 154.3633109 | G17: =SUM(C17:F17) -> 12098.30557 | H17: 4000.350891 | I17: 4543.962146 | J17: 1800.904579 | K17: 133.7014202 | L17: =SUM(H17:K17) -> 10478.91904 | M17: =SUM(C17,H17) -> 8618.906231 | N17: 9790.137095 | O17: 3880.11655 | P17: 288.0647311 | Q17: =SUM(M17:P17) -> 22577.22461
B18: Non Demand Related
B19: Reliability & quality maintained | C19: 2235.486449 | D19: 2539.268699 | E19: 1006.386163 | F19: 74.71537403 | G19: =SUM(C19:F19) -> 5855.856685 | H19: 1968.0295 | I19: 2235.466786 | J19: 885.9806137 | K19: 65.77631469 | L19: =SUM(H19:K19) -> 5155.253214 | M19: =SUM(C19,H19) -> 4203.515949 | N19: =SUM(D19,I19) -> 4774.735485 | O19: 1892.366776 | P19: 140.4916887 | Q19: =SUM(M19:P19) -> 11011.1099
B20: Environmental, safety & legal | C20: 3396.198476 | D20: 3857.71092 | E20: 1528.923226 | F20: 113.5091826 | G20: 8896.341805 | H20: 2889.357893 | I20: 3281.995318 | J20: 1300.75036 | K20: 96.56934212 | L20: 7568.672913 | M20: =SUM(C20,H20) -> 6285.55637 | N20: 7139.706238 | O20: 2829.673585 | P20: 210.0785247 | Q20: 16465.01472
B21: Total Across Voltage Levels | C21: =SUM(C16:C17,C19:C20) -> 11409.15125 | D21: =SUM(D16:D17,D19:D20) -> 12959.551 | E21: =SUM(E16:E17,E19:E20) -> 5136.247615 | F21: =SUM(F16:F17,F19:F20) -> 381.3214806 | G21: 29886.27134 | H21: =SUM(H16:H17,H19:H20) -> 9882.762737 | I21: =SUM(I16:I17,I19:I20) -> 11225.74019 | J21: =SUM(J16:J17,J19:J20) -> 4449.087881 | K21: =SUM(K16:K17,K19:K20) -> 330.305878 | L21: 25887.89669 | M21: =SUM(M16:M17,M19:M20) -> 21291.91398 | N21: =SUM(N16:N17,N19:N20) -> 24185.29119 | O21: =SUM(O16:O17,O19:O20) -> 9585.335495 | P21: =SUM(P16:P17,P19:P20) -> 711.6273587 | Q21: 55774.16803
B22: SCADA/Network control | C22: 0 | D22: 0 | E22: 0 | F22: 287.91857 | G22: 287.91857 | H22: 0 | I22: 0 | J22: 0 | K22: 270.6350429 | L22: 270.6350429 | M22: =SUM(C22,H22) -> 0 | N22: =SUM(D22,I22) -> 0 | O22: 0 | P22: 558.5536129 | Q22: 558.5536129
B23: Non network general - IT | C23: 0 | D23: 0 | E23: 0 | F23: 1.59343 | G23: 1.59343 | H23: 0 | I23: 0 | J23: 0 | K23: 2.274667963 | L23: 2.274667963 | M23: =SUM(C23,H23) -> 0 | N23: 0 | O23: 0 | P23: 3.868097963 | Q23: 3.868097963
B24: Non network general - other | C24: 0 | D24: 0 | E24: 0 | F24: -1e-05 | H24: 0 | I24: 0 | J24: 0 | K24: 0 | P24: -1e-05
B25: Metering - Non AMI | C25: 0 | D25: 0 | E25: 0 | F25: 0 | G25: 0 | H25: 0 | I25: 0 | J25: 0 | K25: 0 | L25: 0 | M25: =SUM(C25,H25) -> 0 | N25: 0 | O25: 0 | P25: 0 | Q25: 0
B26: Standard Control - Total Additions | C26: =SUM(C21:C25) -> 11409.15125 | D26: =SUM(D21:D25) -> 12959.551 | E26: =SUM(E21:E25) -> 5136.247615 | F26: =SUM(F21:F25) -> 670.8334706 | G26: 30175.78333 | H26: =SUM(H21:H25) -> 9882.762737 | I26: =SUM(I21:I25) -> 11225.74019 | J26: =SUM(J21:J25) -> 4449.087881 | K26: =SUM(K21:K25) -> 603.2155889 | L26: 26160.8064 | M26: =SUM(M21:M25) -> 21291.91398 | N26: =SUM(N21:N25) -> 24185.29119 | O26: =SUM(O21:O25) -> 9585.335495 | P26: =SUM(P21:P25) -> 1274.04906 | Q26: 56336.58973
B28: Table 2 AMI
B30: $'000 nominal | C30: DIRECT | H30: INDIRECT | M30: TOTAL OVERHEADS
D31: Voltage | I31: Voltage | N31: Voltage
C32: Subtransmission | D32: HV | E32: LV | F32: Other | G32: Subtotal | H32: Subtransmission | I32: HV | J32: LV | K32: Other | L32: Subtotal | M32: Subtransmission | N32: HV | O32: LV | P32: Other | Q32: TOTAL
B33: Accumulation Meters | C33: 0 | D33: 0 | E33: 0 | F33: 3.44783 | G33: =SUM(C33:F33) -> 3.44783 | H33: 0 | I33: 0 | J33: 0 | K33: 9.345898901 | L33: =SUM(H33:K33) -> 9.345898901 | M33: =SUM(C33,H33) -> 0 | N33: =SUM(D33,I33) -> 0 | O33: 0 | P33: 12.7937289 | Q33: =SUM(M33:P33) -> 12.7937289
B34: Manually read interval meters | C34: 0 | D34: 0 | E34: 0 | F34: 4.3336 | G34: 4.3336 | H34: 0 | I34: 0 | J34: 0 | K34: 11.74390229 | L34: 11.74390229 | M34: 0 | N34: 0 | O34: 0 | P34: 16.07750229 | Q34: 16.07750229
B35: Remotely read interval meters & transformers | C35: 0 | D35: 0 | E35: 0 | F35: 335.7366548 | G35: 335.7366548 | H35: 0 | I35: 0 | J35: 0 | K35: 794.9550688 | L35: 794.9550688 | M35: 0 | N35: 0 | O35: 0 | P35: 1130.691724 | Q35: 1130.691724
B36: AMI communication | C36: 0 | D36: 0 | E36: 0 | F36: 0 | G36: 0 | H36: 0 | I36: 0 | J36: 0 | K36: 0 | L36: 0 | M36: 0 | N36: 0 | O36: 0 | P36: 0 | Q36: 0
B37: Metering data services (IT) | C37: 0 | D37: 0 | E37: 0 | F37: 0 | G37: 0 | H37: 0 | I37: 0 | J37: 0 | K37: 0 | L37: 0 | M37: 0 | N37: 0 | O37: 0 | P37: 0 | Q37: 0
B38: Metering data services (other) | C38: 0 | D38: 0 | E38: 0 | F38: 0 | G38: 0 | H38: 0 | I38: 0 | J38: 0 | K38: 0 | L38: 0 | M38: 0 | N38: 0 | O38: 0 | P38: 0 | Q38: 0
B40: AMI - Total Additions | C40: =SUM(C33:C38) -> 0 | D40: =SUM(D33:D38) -> 0 | E40: =SUM(E33:E38) -> 0 | F40: =SUM(F33:F38) -> 343.5180848 | G40: =SUM(C40:F40) -> 343.5180848 | H40: =SUM(H33:H38) -> 0 | I40: =SUM(I33:I38) -> 0 | J40: =SUM(J33:J38) -> 0 | K40: =SUM(K33:K38) -> 816.04487 | L40: =SUM(H40:K40) -> 816.04487 | M40: =SUM(M33:M38) -> 0 | N40: =SUM(N33:N38) -> 0 | O40: =SUM(O33:O38) -> 0 | P40: =SUM(P33:P38) -> 1159.562955 | Q40: =SUM(M40:P40) -> 1159.562955
B42: Table 3 Public lighting - Alternative Control
B44: $'000 nominal | C44: DIRECT | H44: INDIRECT | M44: TOTAL OVERHEADS
D45: Voltage | I45: Voltage | N45: Voltage
C46: Subtransmission | D46: HV | E46: LV | F46: Other | G46: Subtotal | H46: Subtransmission | I46: HV | J46: LV | K46: Other | L46: Subtotal | M46: Subtransmission | N46: HV | O46: LV | P46: Other | Q46: TOTAL
B47: Public lighting - energy efficient | C47: 0 | D47: 0 | E47: 0 | F47: 7.117129522 | G47: =SUM(C47:F47) -> 7.117129522 | H47: 0 | I47: 0 | J47: 0 | K47: 5.936607339 | L47: =SUM(H47:K47) -> 5.936607339 | M47: =SUM(C47,H47) -> 0 | N47: =SUM(D47,I47) -> 0 | O47: 0 | P47: 13.05373686 | Q47: =SUM(M47:P47) -> 13.05373686
B48: Public lighting - non energy efficient | C48: 0 | D48: 0 | E48: 0 | F48: 323.9136779 | G48: =SUM(C48:F48) -> 323.9136779 | H48: 0 | I48: 0 | J48: 0 | K48: 270.1859382 | L48: =SUM(H48:K48) -> 270.1859382 | M48: =SUM(C48,H48) -> 0 | N48: 0 | O48: 0 | P48: 594.0996162 | Q48: =SUM(M48:P48) -> 594.0996162
B50: Public Lighting - Total Additions | C50: =SUM(C47:C48) -> 0 | D50: =SUM(D47:D48) -> 0 | E50: =SUM(E47:E48) -> 0 | F50: =SUM(F47:F48) -> 331.0308075 | G50: =SUM(C50:F50) -> 331.0308075 | H50: =SUM(H47:H48) -> 0 | I50: =SUM(I47:I48) -> 0 | J50: =SUM(J47:J48) -> 0 | K50: =SUM(K47:K48) -> 276.1225456 | L50: =SUM(H50:K50) -> 276.1225456 | M50: =SUM(M47:M48) -> 0 | N50: =SUM(N47:N48) -> 0 | O50: =SUM(O47:O48) -> 0 | P50: =SUM(P47:P48) -> 607.153353 | Q50: =SUM(M50:P50) -> 607.153353
B52: Table 4 Alternative control - fee, quoted services
B54: $'000 nominal | C54: DIRECT | H54: INDIRECT | M54: TOTAL OVERHEADS
D55: Voltage | I55: Voltage | N55: Voltage
C56: Subtransmission | D56: HV | E56: LV | F56: Other | G56: Subtotal | H56: Subtransmission | I56: HV | J56: LV | K56: Other | L56: Subtotal | M56: Subtransmission | N56: HV | O56: LV | P56: Other | Q56: TOTAL
B57: Other - fee based services | C57: 0 | D57: 0 | E57: 0 | F57: 0 | G57: =SUM(C57:F57) -> 0 | H57: 0 | I57: 0 | J57: 0 | K57: 0 | L57: =SUM(H57:K57) -> 0 | M57: =SUM(C57,H57) -> 0 | N57: =SUM(D57,I57) -> 0 | O57: 0 | P57: 0 | Q57: =SUM(M57:P57) -> 0
B58: Other - quoted services | C58: 0 | D58: 0 | E58: 0 | F58: 0 | G58: =SUM(C58:F58) -> 0 | H58: 0 | I58: 0 | J58: 0 | K58: 0 | L58: =SUM(H58:K58) -> 0 | M58: =SUM(C58,H58) -> 0 | N58: 0 | O58: 0 | P58: 0 | Q58: =SUM(M58:P58) -> 0
B60: Note: Balancing is required at Powercor distribution business level | C60: =SUM(C57:C58) -> 0 | D60: =SUM(D57:D58) -> 0 | E60: =SUM(E57:E58) -> 0 | F60: =SUM(F57:F58) -> 0 | G60: =SUM(C60:F60) -> 0 | H60: =SUM(H57:H58) -> 0 | I60: =SUM(I57:I58) -> 0 | J60: =SUM(J57:J58) -> 0 | K60: =SUM(K57:K58) -> 0 | L60: =SUM(H60:K60) -> 0 | M60: =SUM(M57:M58) -> 0 | N60: =SUM(N57:N58) -> 0 | O60: =SUM(O57:O58) -> 0 | P60: =SUM(P57:P58) -> 0 | Q60: =SUM(M60:P60) -> 0
B62: Table 5 Negotiated
B64: $'000 nominal | C64: DIRECT | H64: INDIRECT | M64: TOTAL OVERHEADS
D65: Voltage | I65: Voltage | N65: Voltage
C66: Subtransmission | D66: HV | E66: LV | F66: Other | G66: Subtotal | H66: Subtransmission | I66: HV | J66: LV | K66: Other | L66: Subtotal | M66: Subtransmission | N66: HV | O66: LV | P66: Other | Q66: TOTAL
B67: Negotiated services | C67: 0 | D67: 0 | E67: 0 | F67: 457.64469 | G67: =SUM(C67:F67) -> 457.64469 | H67: 0 | I67: 0 | J67: 0 | K67: 372.4486281 | L67: =SUM(H67:K67) -> 372.4486281 | M67: =SUM(C67,H67) -> 0 | N67: =SUM(D67,I67) -> 0 | O67: =SUM(E67,J67) -> 0 | P67: =SUM(F67,K67) -> 830.0933181 | Q67: =SUM(M67:P67) -> 830.0933181
B69: Negotiated - Total Additions | C69: =C67 -> 0 | D69: =D67 -> 0 | E69: =E67 -> 0 | F69: =F67 -> 457.64469 | G69: =SUM(C69:F69) -> 457.64469 | H69: =H67 -> 0 | I69: =I67 -> 0 | J69: =J67 -> 0 | K69: =K67 -> 372.4486281 | L69: =SUM(H69:K69) -> 372.4486281 | M69: =M67 -> 0 | N69: =N67 -> 0 | O69: =O67 -> 0 | P69: =P67 -> 830.0933181 | Q69: =SUM(M69:P69) -> 830.0933181
B71: Table 6 Unregulated
B73: $'000 nominal | C73: DIRECT | H73: INDIRECT | M73: TOTAL OVERHEADS
D74: Voltage | I74: Voltage | N74: Voltage
C75: Subtransmission | D75: HV | E75: LV | F75: Other | G75: Subtotal | H75: Subtransmission | I75: HV | J75: LV | K75: Other | L75: Subtotal | M75: Subtransmission | N75: HV | O75: LV | P75: Other | Q75: TOTAL
B76: Unregulated | C76: 0 | D76: 0 | E76: 0 | F76: 12.16764254 | G76: =SUM(C76:F76) -> 12.16764254 | H76: 0 | I76: 0 | J76: 0 | K76: 10.14938898 | L76: =SUM(H76:K76) -> 10.14938898 | M76: =SUM(C76,H76) -> 0 | N76: =SUM(D76,I76) -> 0 | O76: =SUM(E76,J76) -> 0 | P76: =SUM(F76,K76) -> 22.31703152 | Q76: =SUM(M76:P76) -> 22.31703152
B78: Unregulated - Total Additions | C78: =C76 -> 0 | D78: =D76 -> 0 | E78: =E76 -> 0 | F78: =F76 -> 12.16764254 | G78: =SUM(C78:F78) -> 12.16764254 | H78: =H76 -> 0 | I78: =I76 -> 0 | J78: =J76 -> 0 | K78: =K76 -> 10.14938898 | L78: =SUM(H78:K78) -> 10.14938898 | M78: =M76 -> 0 | N78: =N76 -> 0 | O78: =O76 -> 0 | P78: =P76 -> 22.31703152 | Q78: =SUM(M78:P78) -> 22.31703152
B80: Table 7 Total all additions
B82: $'000 nominal | C82: DIRECT | H82: INDIRECT | M82: TOTAL OVERHEADS
D83: Voltage | I83: Voltage | N83: Voltage
C84: Subtransmission | D84: HV | E84: LV | F84: Other | G84: Subtotal | H84: Subtransmission | I84: HV | J84: LV | K84: Other | L84: Subtotal | M84: Subtransmission | N84: HV | O84: LV | P84: Other | Q84: TOTAL
B85: Total Additions (Net of Customer Contributions) $'000 nominal | C85: =C26+C40+C50+C60+C69+C78 -> 11409.15125 | D85: =D26+D40+D50+D60+D69+D78 -> 12959.551 | E85: =E26+E40+E50+E60+E69+E78 -> 5136.247615 | F85: =F26+F40+F50+F60+F69+F78 -> 1815.194695 | G85: =SUM(C85:F85) -> 31320.14455 | H85: =H26+H40+H50+H60+H69+H78 -> 9882.762737 | I85: =I26+I40+I50+I60+I69+I78 -> 11225.74019 | J85: =J26+J40+J50+J60+J69+J78 -> 4449.087881 | K85: =K26+K40+K50+K60+K69+K78 -> 2077.981022 | L85: =SUM(H85:K85) -> 27635.57183 | M85: =M26+M40+M50+M60+M69+M78 -> 21291.91398 | N85: =N26+N40+N50+N60+N69+N78 -> 24185.29119 | O85: =O26+O40+O50+O60+O69+O78 -> 9585.335495 | P85: =P26+P40+P50+P60+P69+P78 -> 3893.175717 | Q85: =SUM(M85:P85) -> 58955.71639
B87: Table 8 Customer Contributions
B89: $'000 nominal
B90: Standard control services | C90: 0
B91: AMI | C91: 0
B92: Public lighting | C92: 0
B93: Alternative control fee and quoted services | C93: 0
B94: Negotiated | C94: 0
B95: Unregulated | C95: 0
B96: Total Customer Contributions | C96: =SUM(C90:C95) -> 0

Sheet 9. Capex Tax
B1: =Cover!C22 -> Powercor Australia Ltd
B2: Additions by Tax
B3: =Cover!C26 -> 2013
B5: Table 1 Standard Control Services - excl metering
B7: Asset Class | C7: Tax Depreciation - Rate (Post Ralph 10 May 2006 onwards) | D7: Additions per Taxation Category Exclusive of Related Party Margin | E7: Additions per Taxation Category Inclusive of Related Party Margin
D8: $'000 nominal | E8: $'000 nominal
B9: Demand related capital expenditure | C9: 0.04 | D9: 162410.8745 | E9: 167099.4778
B10: Replacement expenditure (Group 1) | C10: 1 | D10: 36351.15609 | E10: 37644.44458
B11: Replacement expenditure (Group 2) | C11: 0.1 | D11: 1400.272188 | E11: 1439.56997
B12: Replacement expenditure (Group 3) | C12: 0.04 | D12: 16625.75301 | E12: 17045.73669
B13: Environment, safety & legal | C13: 0.1 | D13: 78900.30804 | E13: 81841.71607
B14: SCADA/Network control | C14: 0.1 | D14: 2951.929901 | E14: 3021.16816
B15: Non-network general assets - IT | C15: 0.4 | D15: 11564.72219 | E15: 13385.48787
B16: Non-network general assets - Other | C16: 0.1764705882 | D16: 11026.78098 | E16: 11026.78098
B17: RBPC - Excl Metering - TOTAL ADDITIONS | D17: =SUM(D9:D16) -> 321231.7969 | E17: =SUM(E9:E16) -> 332504.3822
B19: Capitalised Finance Charges Included in above Total | D19: Nil | E19: Nil
B21: Table 2 Metering
B23: Asset Class | C23: Tax Depreciation - Rate (Post Ralph 10 May 2006) | D23: Additions per Taxation Category Exclusive of Related Party Margin | E23: Additions per Taxation Category Inclusive of Related Party Margin
D24: $'000 nominal | E24: $'000 nominal
B25: Meters and transformers (Group 1) (Unit cost < $1,000) | C25: 0.375 | D25: 70657.25888 | E25: 72099.74752
B26: Meters and transformers (Group 2) (Unit cost => $1,000) | C26: 0.06 | D26: 897.0200045 | E26: 927.2545425
B27: IT | C27: 0.4 | D27: 5600.83234 | E27: 6387.45661
B28: Communications | C28: 0.2142857143 | D28: 3713.055837 | E28: 4114.819887
B29: Other | C29: 0.1764705882 | D29: 37.73184 | E29: 37.73184
B30: Metering - TOTAL ADDITIONS | D30: =SUM(D25:D29) -> 80905.8989 | E30: =SUM(E25:E29) -> 83567.0104
B32: Capitalised Finance Charges Included in above Total | D32: Nil | E32: Nil

Sheet 10. AMI
B1: =Cover!C22 -> Powercor Australia Ltd
B2: Advanced Metering Infrastructure
B3: =Cover!C26 -> 2013
B5: Table 1 Standard control asset base - metering
C7: Opening value | D7: Actual capital expenditure – as incurred | E7: Actual asset disposals – as incurred | F7: Actual capital contributions – as incurred | G7: Actual net capital expenditure – as incurred
C8: $'000 nominal | D8: $'000 nominal | E8: $'000 nominal | F8: $'000 nominal | G8: $'000 nominal
B9: Accumulation meters | C9: 0 | D9: 94.38584 | E9: 0 | F9: 0 | G9: =D9-E9-F9 -> 94.38584
B10: Manually read interval meters | C10: 0 | D10: 119.60911 | E10: 0 | F10: 0 | G10: 119.60911
B11: Remotely read interval meters and transformers | C11: 0 | D11: 72813.00711 | E11: 0 | F11: 0 | G11: 72813.00711
B12: IT | C12: 0 | D12: 6387.45661 | E12: 0 | F12: 0 | G12: 6387.45661
B13: Communications | C13: 0 | D13: 4114.819887 | E13: 0 | F13: 0 | G13: 4114.819887
B14: Other | C14: 0 | D14: 37.73184 | E14: 0 | F14: 0 | G14: 37.73184
B15: Total | C15: =SUM(C9:C14) -> 0 | D15: =SUM(D9:D14) -> 83567.0104 | E15: =SUM(E9:E14) -> 0 | F15: =SUM(F9:F14) -> 0 | G15: 83567.0104
B17: Table 2a Number of meters installed
C18: Current Year | D18: Prior Year
B19: Accumulation meters
B20: Single phase non off peak | C20: 4 | D20: 83
B21: Single phase off peak | C21: 24 | D21: 31
B22: Multi phase direct connect | C22: 12 | D22: 47
B23: Multi phase current transformers | C23: 0 | D23: 1
B24: Total accumulation meters installed | C24: =SUM(C20:C23) -> 40 | D24: =SUM(D20:D23) -> 162
B25: MRIM meters
B26: Single phase non off peak | C26: 1 | D26: 28
B27: Single phase off peak | C27: 189 | D27: 165
B28: Multi phase direct connect | C28: 1 | D28: 22
B29: Multi phase current transformers | C29: 0 | D29: 186
B30: Total MRIM meters installed | C30: =SUM(C26:C29) -> 191 | D30: =SUM(D26:D29) -> 401
B31: AMI meters
B32: Single phase single element | C32: 65600 | D32: 107400
B33: Single phase single element with contactor | C33: 15904 | D33: 22785
B34: Single phase two element with contactor | C34: 55813 | D34: 81508
B35: Three phase | C35: 40580 | D35: 36917
B36: Three phase direct connected meter | C36: 8341 | D36: 6643
B37: Three phase direct connected meter with contactor | C37: 0 | D37: 0
B38: Three phase Current transformer connected meter | C38: 2361 | D38: 2312
B39: Total AMI meters installed | C39: =SUM(C32:C38) -> 188599 | D39: =SUM(D32:D38) -> 257565
B41: Total meters installed | C41: =SUM(C24,C30,C39) -> 188830 | D41: =SUM(D24,D30,D39) -> 258128
B43: Table 2b Cumulative number of meters
C44: Current Year | D44: Prior Year
B45: Accumulation meters
B46: Single phase non off peak | C46: 13767 | D46: 70107.71134
B47: Single phase off peak | C47: 17124 | D47: 101329.0931
B48: Multi phase direct connect | C48: 12017 | D48: 52482.88466
B49: Multi phase current transformers | C49: 203 | D49: 1679.711349
B50: Total accumulation meters | C50: =SUM(C46:C49) -> 43111 | D50: =SUM(D46:D49) -> 225599.4004
B51: MRIM meters
B52: Single phase non off peak | C52: 129 | D52: 1070.563016
B53: Single phase off peak | C53: 998 | D53: 9468.107888
B54: Multi phase direct connect | C54: 1029 | D54: 5324.482602
B55: Multi phase current transformers | C55: 67 | D55: 603.0770868
B56: Total MRIM meters | C56: =SUM(C52:C55) -> 2223 | D56: =SUM(D52:D55) -> 16466.23059
B57: AMI meters
B58: Single phase single element | C58: 415710 | D58: 352858.1056
B59: Single phase single element with contactor | C59: 52612 | D59: 37344.72223
B60: Single phase two element with contactor | C60: 191437 | D60: 137177.0787
B61: Three phase | C61: 104146 | D61: 64599.46674
B62: Three phase direct connected meter | C62: 17805 | D62: 9705.826282
B63: Three phase direct connected meter with contactor | C63: 0 | D63: 0
B64: Three phase Current transformer connected meter | C64: 4503 | D64: 2268.894456
B65: Total AMI meters | C65: =SUM(C58:C64) -> 786213 | D65: =SUM(D58:D64) -> 603954.094
B67: Total meters | C67: =SUM(C50,C56,C65) -> 831547 | D67: =SUM(D50,D56,D65) -> 846019.725
B69: Table 3 AMI meter reconciliation
C70: Current Year | D70: Prior Year
B71: Opening number of meters | C71: 603954.094 | D71: 355667
B72: Installs | C72: =C39 -> 188599 | D72: =D39 -> 257565
B73: Abolishments | C73: 1550 | D73: 893
B74: AMI meter for AMI meter replacements | C74: 4790 | D74: 8370
B75: Closing number of meters | C75: =(C71+C72)-(C73+C74) -> 786213.094 | D75: =(D71+D72)-(D73+D74) -> 603969
B78: Table 4 Number of meter read quantity - end of year
B80: Number of meters read monthly - accumulation | C80: 715
B81: Number of meters read quarterly - accumulation | C81: 58841
B82: Number of meters read monthly - interval | C82: 189
B83: Number of meters read quarterly - interval | C83: 13894
B84: Number of meters read remotely | C84: 757908
B85: Total | C85: =SUM(C80:C84) -> 831547

Sheet 11a. Maintenance A
B1: =Cover!C22 -> Powercor Australia Ltd
B2: Maintenance Costs Exclusive of Margin
B3: =Cover!C26 -> 2013
B5: Instructions:
B6: Reported expenditure is to be entered EXCLUSIVE of any profit margins or management fees paid directly or indirectly to related party contractors (which is not an actual incurred cost of the related party contractor) for the reporting period.
B9: Statutory Account code or reference to account code | C9: Description | D9: Audited Statutory Financial Statements | E9: Adjustments | F9: Powercor | G9: Standard Control Services | L9: AMI | M9: Public Lighting - Alternative Control | O9: Other Alternative Control Services | Q9: Negotiated Services | R9: Unregulated Services | S9: Standard Control Services Prior Year
M10: Energy efficient | N10: Non energy efficient | O10: Fee based service | P10: Quoted service
D11: $'000 nominal | E11: $'000 nominal | F11: $'000 nominal | G11: $'000 nominal | L11: $'000 nominal | M11: $'000 nominal | N11: $'000 nominal | O11: $'000 nominal | P11: $'000 nominal | Q11: $'000 nominal | R11: $'000 nominal | S11: $'000 nominal
C12: Routine | D12: 68345.3952 | E12: -384.6691599 | F12: 67960.72604 | G12: 67960.72604 | L12: 0 | M12: 0 | N12: 0 | O12: 0 | P12: 0 | Q12: 0 | R12: 0 | S12: 42435.07048
C13: Condition based | D13: 38600.32151 | E13: -1369.698733 | F13: 37230.62278 | G13: 37230.62278 | L13: 0 | M13: 0 | N13: 0 | O13: 0 | P13: 0 | Q13: 0 | R13: 0 | S13: 31335.79827
C14: Emergency | D14: 27139.06727 | E14: -1160.822765 | F14: 25978.24451 | G14: 25978.24451 | L14: 0 | M14: 0 | N14: 0 | O14: 0 | P14: 0 | Q14: 0 | R14: 0 | S14: 23634.64632
C15: SCADA/Network Control | D15: 696.81481 | E15: -28.48301913 | F15: 668.3317909 | G15: 668.3317909 | L15: 0 | M15: 0 | N15: 0 | O15: 0 | P15: 0 | Q15: 0 | R15: 0 | S15: 965.5639732
C16: Other - Standard Control Services (a) | D16: 3964.529476 | E16: -114.5189779 | F16: 3850.010498 | G16: 3850.010498 | L16: 0 | M16: 0 | N16: 0 | O16: 0 | P16: 0 | Q16: 0 | R16: 0 | S16: 4030.427316
C17: AMI | D17: 2130.118 | E17: -65.60571084 | F17: 2064.512289 | G17: 3.552713679e-15 | L17: 2064.512289 | M17: 0 | N17: 0 | O17: 0 | P17: 0 | Q17: 0 | R17: 0 | S17: 0
C18: Public Lighting | D18: 6346.632508 | E18: -205.5738013 | F18: 6141.058707 | G18: 0 | L18: 0 | M18: 345.0741615 | N18: 5795.984545 | O18: 0 | P18: 0 | Q18: 0 | R18: 0 | S18: 0
C19: Alternative control -other | D19: 3975.370876 | E19: -118.992583 | F19: 3856.378293 | G19: 0 | L19: 0 | M19: 0 | N19: 0 | O19: 2666.482737 | P19: 1189.895557 | Q19: 0 | R19: 0 | S19: 0
C20: Negotiated services | D20: 0 | E20: 0 | F20: 0 | G20: 0 | L20: 0 | M20: 0 | N20: 0 | O20: 0 | P20: 0 | Q20: 0 | R20: 0 | S20: 0
C21: Sub Total | D21: =SUM(D12:D20) -> 151198.2496 | E21: =SUM(E12:E20) -> -3448.36475 | F21: =SUM(F12:F20) -> 147749.8849 | G21: =SUM(G12:K20) -> 135687.9356 | L21: =SUM(L12:L20) -> 2064.512289 | M21: 345.0741615 | N21: 5795.984545 | O21: 2666.482737 | P21: 1189.895557 | Q21: 0 | R21: 0 | S21: 102401.5064
C22: Unregulated services | D22: 0 | E22: 0 | F22: 0 | G22: 0 | L22: 0 | M22: 0 | N22: 0 | O22: 0 | P22: 0 | Q22: 0 | R22: 0 | S22: 0
C23: Total | D23: =SUM(D21:D22) -> 151198.2496 | E23: =SUM(E21:E22) -> -3448.36475 | F23: =SUM(F21:F22) -> 147749.8849 | G23: =SUM(G21:K22) -> 135687.9356 | L23: =SUM(L21:L22) -> 2064.512289 | M23: 345.0741615 | N23: 5795.984545 | O23: 2666.482737 | P23: 1189.895557 | Q23: 0 | R23: 0 | S23: 102401.5064
B26: a. Please list any cost item which is more than 5% of the total standard control maintenance cost in the table below:
B28: Statutory Account code or reference to account code | C28: Description | D28: Audited statutory financial statements | E28: Adjustments | F28: Powercor | G28: Standard Control Services
B37: Balancing is required at Powercor distribution business level

Sheet 11b. Maintenance B
B1: =Cover!C22 -> Powercor Australia Ltd
B2: Maintenance Costs Inclusive of Margin
B3: =Cover!C26 -> 2013
B5: Instructions:
B6: Reported expenditure is to be entered INCLUSIVE of any profit margins or management fees paid directly or indirectly to related party contractors (which is not an actual incurred cost of the related party contractor) for the reporting period.
B9: Statutory Account code or reference to account code | C9: Description | D9: Audited Statutory Financial Statements | E9: Adjustments | F9: Powercor | G9: Standard Control Services | L9: AMI | M9: Public Lighting - Alternative Control | O9: Other Alternative Control Services | Q9: Negotiated Services | R9: Unregulated Services | S9: Standard Control Services Prior Year
M10: Energy efficient | N10: Non energy efficient | O10: Fee based service | P10: Quoted service
D11: $'000 nominal | E11: $'000 nominal | F11: $'000 nominal | G11: $'000 nominal | L11: $'000 nominal | M11: $'000 nominal | N11: $'000 nominal | O11: $'000 nominal | P11: $'000 nominal | Q11: $'000 nominal | R11: $'000 nominal | S11: $'000 nominal
C12: Routine | D12: 68345.3952 | E12: 0 | F12: 68345.3952 | G12: 68345.3952 | L12: 0 | M12: 0 | N12: 0 | O12: 0 | P12: 0 | Q12: 0 | R12: 0 | S12: 42312.00568
C13: Condition based | D13: 38600.32151 | E13: 0 | F13: 38600.32151 | G13: 38600.32151 | L13: 0 | M13: 0 | N13: 0 | O13: 0 | P13: 0 | Q13: 0 | R13: 0 | S13: 32271.91626
C14: Emergency | D14: 27139.06727 | E14: 0 | F14: 27139.06727 | G14: 27139.06727 | L14: 0 | M14: 0 | N14: 0 | O14: 0 | P14: 0 | Q14: 0 | R14: 0 | S14: 24505.13956
C15: SCADA/Network Control | D15: 696.81481 | E15: 0 | F15: 696.81481 | G15: 696.81481 | L15: 0 | M15: 0 | N15: 0 | O15: 0 | P15: 0 | Q15: 0 | R15: 0 | S15: 1001.75862
C16: Other - Standard Control Services (a) | D16: 3964.529476 | E16: 0 | F16: 3964.529476 | G16: 3964.529476 | L16: 0 | M16: 0 | N16: 0 | O16: 0 | P16: 0 | Q16: 0 | R16: 0 | S16: 4135.21556
C17: AMI | D17: 2130.118 | E17: 0 | F17: 2130.118 | G17: 0 | L17: 2130.118 | M17: 0 | N17: 0 | O17: 0 | P17: 0 | Q17: 0 | R17: 0 | S17: 0
C18: Public Lighting | D18: 6346.632508 | E18: 0 | F18: 6346.632508 | G18: 0 | L18: 0 | M18: 356.6256236 | N18: 5990.006885 | O18: 0 | P18: 0 | Q18: 0 | R18: 0 | S18: 0
C19: Alternative control -other | D19: 3975.370876 | E19: 0 | F19: 3975.370876 | G19: 0 | L19: 0 | M19: 0 | N19: 0 | O19: 2744.479428 | P19: 1230.891448 | Q19: 0 | R19: 0 | S19: 0
C20: Negotiated services | D20: 0 | E20: 0 | F20: 0 | G20: 0 | L20: 0 | M20: 0 | N20: 0 | O20: 0 | P20: 0 | Q20: 0 | R20: 0 | S20: 0
C21: Sub Total | D21: =SUM(D12:D20) -> 151198.2496 | E21: =SUM(E12:E20) -> 0 | F21: =SUM(F12:F20) -> 151198.2496 | G21: =SUM(G12:K20) -> 138746.1283 | L21: =SUM(L12:L20) -> 2130.118 | M21: 356.6256236 | N21: 5990.006885 | O21: 2744.479428 | P21: 1230.891448 | Q21: 0 | R21: 0 | S21: 104226.0357
C22: Unregulated services | D22: 0 | E22: 0 | F22: 0 | G22: 0 | L22: 0 | M22: 0 | N22: 0 | O22: 0 | P22: 0 | Q22: 0 | R22: 0 | S22: 0
C23: Total | D23: =SUM(D21:D22) -> 151198.2496 | E23: =SUM(E21:E22) -> 0 | F23: =SUM(F21:F22) -> 151198.2496 | G23: =SUM(G21:K22) -> 138746.1283 | L23: =SUM(L21:L22) -> 2130.118 | M23: 356.6256236 | N23: 5990.006885 | O23: 2744.479428 | P23: 1230.891448 | Q23: 0 | R23: 0 | S23: 104226.0357
B26: a. Please list any cost item which is more than 5% of the total standard control maintenance cost in the table below:
B28: Statutory Account code or reference to account code | C28: Description | D28: Audited statutory financial statements | E28: Adjustments | F28: Powercor | G28: Standard Control Services
B37: Balancing is required at Powercor distribution business level

Sheet 12a. Operating A
B1: =Cover!C22 -> Powercor Australia Ltd
B2: Operating Expenditures Exclusive of Margin
B3: =Cover!C26 -> 2013
B5: Instructions:
B6: Reported expenditure is to be entered EXCLUSIVE of any profit margins or management fees paid directly or indirectly to related party contractors (which is not an actual incurred cost of the related party contractor) for the reporting period.
B9: Table 1 Operating Expenditure
B11: Account code or reference to account code | C11: Description | D11: Audited Statutory Financial Statements | E11: Adjustments | F11: Powercor | G11: Standard Control Services | H11: AMI | I11: Public Lighting - Alternative Control | K11: Other Alternative Control Services | M11: Negotiated Services | N11: Unregulated Services | O11: Standard Control Services Prior Year
I12: Energy efficient | J12: Non-energy efficient | K12: Fee based service | L12: Quoted service
C13: Designated Pricing Proposal Charges: | D13: $'000 nominal | E13: $'000 nominal | F13: $'000 nominal | G13: $'000 nominal | H13: $'000 nominal | I13: $'000 nominal | J13: $'000 nominal | K13: $'000 nominal | L13: $'000 nominal | M13: $'000 nominal | N13: $'000 nominal | O13: $'000 nominal
C14: Transmission Connection Fee | D14: 27012.91175 | E14: -27012.91175 | F14: 0 | G14: 0 | H14: 0 | I14: 0 | J14: 0 | K14: 0 | L14: 0 | M14: 0 | N14: 0 | O14: 0
C15: Avoided TUoS charges/transmission costs | D15: 2861.84795 | E15: -2861.84795 | F15: 0 | G15: 0 | H15: 0 | I15: 0 | J15: 0 | K15: 0 | L15: 0 | M15: 0 | N15: 0 | O15: 0
C16: AEMO shared TUOS Charges | D16: 126867.808 | E16: -126867.808 | F16: 0 | G16: 0 | H16: 0 | I16: 0 | J16: 0 | K16: 0 | L16: 0 | M16: 0 | N16: 0 | O16: 0
C17: Net Cross Boundary Network Charges | D17: 6009.91737 | E17: -6009.91737 | F17: 0 | G17: 0 | H17: 0 | I17: 0 | J17: 0 | K17: 0 | L17: 0 | M17: 0 | N17: 0 | O17: 0
C18: Jurisdictional Scheme Amounts:
C19: Premium Feed In Tariff | D19: 30342.86219 | E19: -30342.86219 | F19: 0 | G19: 0 | H19: 0 | I19: 0 | J19: 0 | K19: 0 | L19: 0 | M19: 0 | N19: 0 | O19: 0
C20: Transitional Feed In Tariff | D20: 0 | E20: 0 | F20: 0 | G20: 0 | H20: 0 | I20: 0 | J20: 0 | K20: 0 | L20: 0 | M20: 0 | N20: 0 | O20: 0
C21: <insert future jurisdictional scheme payment> | D21: 0 | E21: 0 | F21: 0 | G21: 0 | H21: 0 | I21: 0 | J21: 0 | K21: 0 | L21: 0 | M21: 0 | N21: 0 | O21: 0
C22: Sub Total | D22: =SUM(D14:D21) -> 193095.3472 | E22: -193095.3472 | F22: 0 | G22: 0 | H22: 0 | I22: 0 | J22: 0 | K22: 0 | L22: 0 | M22: 0 | N22: 0 | O22: 0
C23: Operating Costs
C24: Network Operating Costs | D24: 24519.66335 | E24: -2861.431603 | F24: 21658.23175 | G24: 21658.23175 | H24: 0 | I24: 0 | J24: 0 | K24: 0 | L24: 0 | M24: 0 | N24: 0 | O24: 16253.1202
C25: Billing & Revenue Collection | D25: 5737.720574 | E25: -1331.452771 | F25: 4406.267803 | G25: 4406.267803 | H25: 0 | I25: 0 | J25: 0 | K25: 0 | L25: 0 | M25: 0 | N25: 0 | O25: 3874.230045
C26: Advertising/Marketing | D26: 11.69669207 | E26: 7.272223102 | F26: 18.96891518 | G26: 18.96891518 | H26: 0 | I26: 0 | J26: 0 | K26: 0 | L26: 0 | M26: 0 | N26: 0 | O26: 233.0149833
C27: Customer Service | D27: 7317.944652 | E27: -1464.768337 | F27: 5853.176314 | G27: 5853.176314 | H27: 0 | I27: 0 | J27: 0 | K27: 0 | L27: 0 | M27: 0 | N27: 0 | O27: 4104.260047
C28: Regulatory | D28: 0 | E28: 0 | F28: 0 | G28: 0 | H28: 0 | I28: 0 | J28: 0 | K28: 0 | L28: 0 | M28: 0 | N28: 0 | O28: 0
C29: Regulatory Reset | D29: 280.38179 | E29: 0 | F29: 280.38179 | G29: 280.38179 | H29: 0 | I29: 0 | J29: 0 | K29: 0 | L29: 0 | M29: 0 | N29: 0 | O29: 0
C30: IT | D30: 0 | E30: 0 | F30: 0 | G30: 0 | H30: 0 | I30: 0 | J30: 0 | K30: 0 | L30: 0 | M30: 0 | N30: 0 | O30: 0
C31: Licence fee | D31: 49.98675 | E31: 0 | F31: 49.98675 | G31: 49.98675 | H31: 0 | I31: 0 | J31: 0 | K31: 0 | L31: 0 | M31: 0 | N31: 0 | O31: 37.296
C32: GSL payments | D32: 1040.4841 | E32: 0 | F32: 1040.4841 | G32: 1040.4841 | H32: 0 | I32: 0 | J32: 0 | K32: 0 | L32: 0 | M32: 0 | N32: 0 | O32: 3691.982973
C33: Non-network alternatives costs | D33: 0 | E33: 0 | F33: 0 | G33: 0 | H33: 0 | I33: 0 | J33: 0 | K33: 0 | L33: 0 | M33: 0 | N33: 0 | O33: 0
C34: Debt raising costs | D34: 0 | E34: 197.7411469 | F34: 197.7411469 | G34: 197.7411469 | H34: 0 | I34: 0 | J34: 0 | K34: 0 | L34: 0 | M34: 0 | N34: 0 | O34: 201.9817635
C35: Other - Standard Control Services (a, b) | D35: 226597.4721 | E35: -214587.1307 | F35: 12010.34139 | G35: 12010.34139 | H35: 0 | I35: 0 | J35: 0 | K35: 0 | L35: 0 | M35: 0 | N35: 0 | O35: 2994.206034
C36: AMI | D36: 22012.64466 | E36: -2508.624623 | F36: 19504.02004 | G36: 0 | H36: 19504.02004 | I36: 0 | J36: 0 | K36: 0 | L36: 0 | M36: 0 | N36: 0 | O36: 0
C37: Public Lighting | D37: 188.0232641 | E37: -35.88396602 | F37: 152.139298 | G37: 0 | H37: 0 | I37: 8.449910144 | J37: 143.6893879 | K37: 0 | L37: 0 | M37: 0 | N37: 0 | O37: 0
C38: Alternative control -other | D38: 15573.00671 | E38: -1204.712956 | F38: 14368.29375 | G38: 0 | H38: 0 | I38: 0 | J38: 0 | K38: 11202.44302 | L38: 3165.850737 | M38: 0 | N38: 0 | O38: 0
C39: Negotiated services | D39: 0 | E39: 0 | F39: 0 | G39: 0 | H39: 0 | I39: 0 | J39: 0 | K39: 0 | L39: 0 | M39: 0.1384995566 | N39: 0 | O39: 0
C40: Sub Total | D40: =SUM(D24:D39) -> 303329.0246 | E40: -223788.9916 | F40: 79540.03305 | G40: 45515.57996 | H40: 19504.02004 | I40: 8.449910144 | J40: 143.6893879 | K40: 11202.44302 | L40: 3165.850737 | M40: 0.1384995566 | N40: 0 | O40: 31390.09205
C41: Unregulated services | D41: 0 | E41: 0 | F41: 0 | G41: 0 | H41: 0 | I41: 0 | J41: 0 | K41: 0 | L41: 0 | M41: 0 | N41: 0 | O41: 0
C42: Total | D42: =SUM(D22, D40:D41) -> 496424.3718 | E42: -416884.3388 | F42: 79540.03305 | G42: 45515.57996 | H42: 19504.02004 | I42: 8.449910144 | J42: 143.6893879 | K42: 11202.44302 | L42: 3165.850737 | M42: 0.1384995566 | N42: 0 | O42: 31390.09205
B45: a. Please list any cost item which is more than 5% of standard control operating costs in the Table 2:
B48: Table 2 Operating Expenditure - Other Costs
B50: Statutory Account code or reference to account code | C50: Description | D50: Audited Statutory Financial Statements | E50: Adjustments | F50: Powercor | G50: Standard Control Services
B60: Table 3 Operating Expenditure - Non-Recurrent Network Operating Costs
B62: Statutory Account code or reference to account code | C62: Description | D62: Audited Statutory Financial Statements | E62: Adjustments | F62: Powercor | G62: Standard Control Services
B70: b. Please identify any non recurrent cost which is more than 5% of the total standard control operating costs in the Table 3:

Sheet 12b. Operating B
B1: =Cover!C22 -> Powercor Australia Ltd
B2: ACTIVITIES B: Operating Expenditures Inclusive of Margin
B3: =Cover!C26 -> 2013
B5: Instructions:
B6: Reported expenditure is to be entered INCLUSIVE of any profit margins or management fees paid directly or indirectly to related party contractors (which is not an actual incurred cost of the related party contractor) for the reporting period.
B9: Table 1 Operating Expenditure
B11: Account code or reference to account code | C11: Description | D11: Audited Statutory Financial Statements | E11: Adjustments | F11: Powercor | G11: Standard Control Services | H11: AMI | I11: Public Lighting - Alternative Control | K11: Other Alternative Control Services | M11: Negotiated Services | N11: Unregulated Services | O11: Standard Control Services Prior Year
I12: Energy efficient | J12: Non efficient | K12: Fee based service | L12: Quoted service
C13: Designated Pricing Proposal Charges: | D13: $'000 nominal | E13: $'000 nominal | F13: $'000 nominal | G13: $'000 nominal | H13: $'000 nominal | I13: $'000 nominal | J13: $'000 nominal | K13: $'000 nominal | L13: $'000 nominal | M13: $'000 nominal | N13: $'000 nominal | O13: $'000 nominal
C14: Transmission Connection Fee | D14: 27012.91175 | E14: -27012.91175 | F14: 0 | G14: 0 | H14: 0 | I14: 0 | J14: 0 | K14: 0 | L14: 0 | M14: 0 | N14: 0 | O14: 0
C15: Avoided TUoS charges/transmission costs | D15: 2861.84795 | E15: -2861.84795 | F15: 0 | G15: 0 | H15: 0 | I15: 0 | J15: 0 | K15: 0 | L15: 0 | M15: 0 | N15: 0 | O15: 0
C16: AEMO shared TUOS Charges | D16: 126867.808 | E16: -126867.808 | F16: 0 | G16: 0 | H16: 0 | I16: 0 | J16: 0 | K16: 0 | L16: 0 | M16: 0 | N16: 0 | O16: 0
C17: Net Cross Boundary Network Charges | D17: 6009.91737 | E17: -6009.91737 | F17: 0 | G17: 0 | H17: 0 | I17: 0 | J17: 0 | K17: 0 | L17: 0 | M17: 0 | N17: 0 | O17: 0
C18: Jurisdictional Scheme Amounts:
C19: Premium Feed In Tariff | D19: 30342.86219 | E19: -30342.86219 | F19: 0 | G19: 0 | H19: 0 | I19: 0 | J19: 0 | K19: 0 | L19: 0 | M19: 0 | N19: 0 | O19: 0
C20: Transitional Feed In Tariff | D20: 0 | E20: 0 | F20: 0 | G20: 0 | H20: 0 | I20: 0 | J20: 0 | K20: 0 | L20: 0 | M20: 0 | N20: 0 | O20: 0
C21: <insert future jurisdictional scheme payment>
C22: Sub Total | D22: =SUM(D14:D21) -> 193095.3472 | E22: -193095.3472 | F22: 0 | G22: 0 | H22: 0 | I22: 0 | J22: 0 | K22: 0 | L22: 0 | M22: 0 | N22: 0 | O22: 0
C23: Operating Costs
C24: Network Operating Costs | D24: 24519.66335 | E24: -2305.543012 | F24: 22214.12034 | G24: 22214.12034 | H24: 0 | I24: 0 | J24: 0 | K24: 0 | L24: 0 | M24: 0 | N24: 0 | O24: 16649.4562
C25: Billing & Revenue Collection | D25: 5737.720574 | E25: 0 | F25: 5737.720574 | G25: 5737.720574 | H25: 0 | I25: 0 | J25: 0 | K25: 0 | L25: 0 | M25: 0 | N25: 0 | O25: 4587.116649
C26: Advertising/Marketing | D26: 11.69669207 | E26: 0 | F26: 11.69669207 | G26: 11.69669207 | H26: 0 | I26: 0 | J26: 0 | K26: 0 | L26: 0 | M26: 0 | N26: 0 | O26: 100.9127358
C27: Customer Service | D27: 7317.944652 | E27: 0 | F27: 7317.944652 | G27: 7317.944652 | H27: 0 | I27: 0 | J27: 0 | K27: 0 | L27: 0 | M27: 0 | N27: 0 | O27: 6698.301262
C28: Regulatory | D28: 0 | E28: 0 | F28: 0 | G28: 0 | H28: 0 | I28: 0 | J28: 0 | K28: 0 | L28: 0 | M28: 0 | N28: 0 | O28: 0
C29: Regulatory Reset | D29: 280.38179 | E29: 0 | F29: 280.38179 | G29: 280.38179 | H29: 0 | I29: 0 | J29: 0 | K29: 0 | L29: 0 | M29: 0 | N29: 0 | O29: 0
C30: IT | D30: 0 | E30: 0 | F30: 0 | G30: 0 | H30: 0 | I30: 0 | J30: 0 | K30: 0 | L30: 0 | M30: 0 | N30: 0 | O30: 0
C31: Licence fee | D31: 49.98675 | E31: 0 | F31: 49.98675 | G31: 49.98675 | H31: 0 | I31: 0 | J31: 0 | K31: 0 | L31: 0 | M31: 0 | N31: 0 | O31: 37.296
C32: GSL payments | D32: 1040.4841 | E32: 0 | F32: 1040.4841 | G32: 1040.4841 | H32: 0 | I32: 0 | J32: 0 | K32: 0 | L32: 0 | M32: 0 | N32: 0 | O32: 3691.982973
C33: Non-network alternatives costs | D33: 0 | E33: 0 | F33: 0 | G33: 0 | H33: 0 | I33: 0 | J33: 0 | K33: 0 | L33: 0 | M33: 0 | N33: 0 | O33: 0
C34: Debt raising costs | D34: 0 | E34: 197.7411469 | F34: 197.7411469 | G34: 197.7411469 | H34: 0 | I34: 0 | J34: 0 | K34: 0 | L34: 0 | M34: 0 | N34: 0 | O34: 201.9698831
C35: Other - Standard Control Services (a,b) | D35: 226597.4721 | E35: -213898.0409 | F35: 12699.43119 | G35: 12699.43119 | H35: 0 | I35: 0 | J35: 0 | K35: 0 | L35: 0 | M35: 0 | N35: 0 | O35: 4250.428984
C36: AMI | D36: 22012.64466 | E36: 25.20070372 | F36: 22037.84537 | G36: 0 | H36: 22037.84537 | I36: 0 | J36: 0 | K36: 0 | L36: 0 | M36: 0 | N36: 0 | O36: 0
C37: Public Lighting | D37: 188.0232641 | E37: 1.866185656 | F37: 189.8894497 | G37: 0 | H37: 0 | I37: 10.57059549 | J37: 179.3188542 | K37: 0 | L37: 0 | M37: 0 | N37: 0 | O37: 0
C38: Alternative control -other | D38: 15573.00671 | E38: -40.16118443 | F38: 15532.84553 | G38: 0 | H38: 0 | I38: 0 | J38: 0 | K38: 12209.50784 | L38: 3323.337686 | M38: 0 | N38: 0 | O38: 0
C39: Negotiated services | D39: 0 | E39: 0.1384995566 | F39: 0.1384995566 | G39: 0 | H39: 0 | I39: 0 | J39: 0 | K39: 0 | L39: 0 | M39: 0.1384995566 | N39: 0 | O39: 0
C40: Sub Total | D40: =SUM(D24:D39) -> 303329.0246 | E40: -216018.7986 | F40: 87310.22607 | G40: 49549.50723 | H40: 22037.84537 | I40: 10.57059549 | J40: 179.3188542 | K40: 12209.50784 | L40: 3323.337686 | M40: 0.1384995566 | N40: 0 | O40: 36217.46469
C41: Unregulated services | D41: 0 | E41: 0.005524129131 | F41: 0 | G41: 0 | H41: 0 | I41: 0 | J41: 0 | K41: 0 | L41: 0 | M41: 0 | N41: 0.005524129131 | O41: 0
C42: Total | D42: =SUM(D22, D40:D41) -> 496424.3718 | E42: -409114.1402 | F42: 87310.22607 | G42: 49549.50723 | H42: 22037.84537 | I42: 10.57059549 | J42: 179.3188542 | K42: 12209.50784 | L42: 3323.337686 | M42: 0.1384995566 | N42: 0.005524129131 | O42: 36217.46469
B45: a. Please list any cost item which is more than 5% of standard control operating costs in the Table 2:
B48: Table 2 Operating Expenditure - Other Costs
B50: Statutory Account code or reference to account code | C50: Description | D50: Audited Statutory Financial Statements | E50: Adjustments | F50: Powercor | G50: Standard Control Services
B60: Table 3 Operating Expenditure - Non-Recurrent Network Operating Costs
B62: Statutory Account code or reference to account code | C62: Description | D62: Audited Statutory Financial Statements | E62: Adjustments | F62: Powercor | G62: Standard Control Services
B71: b. Please identify any non recurrent cost which is more than 5% of the total standard control operating costs in the Table 3:

Sheet 13. Labour
B1: =Cover!C22 -> Powercor Australia Ltd
B2: Labour and Non-Labour Costs
B3: =Cover!C26 -> 2013
B5: Account code or reference to account code | C5: Description | D5: Labour Costs | E5: Non-Labour Costs | F5: Total
D7: $'000 nominal | E7: $'000 nominal | F7: $'000 nominal
C8: Operating Expenditure | D8: 26227.15362 | E8: 58176.3576 | F8: =SUM(D8:E8) -> 84403.51122
C9: Maintenance Expenditure | D9: 18802.92104 | E9: 132395.3286 | F9: =SUM(D9:E9) -> 151198.2496
C10: Capital Expenditure | D10: 70421.43386 | E10: 327931.4434 | F10: =SUM(D10:E10) -> 398352.8773
C11: Total | D11: =SUM(D8:D10) -> 115451.5085 | E11: =SUM(E8:E10) -> 518503.1296 | F11: =SUM(F8:F10) -> 633954.6381

Sheet 15. Total Overheads
B1: =Cover!C22 -> Powercor Australia Ltd
B2: Total Overheads
B3: =Cover!C26 -> 2013
B5: Statutory Account code or reference to account code | D5: Gross Capex | E5: Opex | F5: Total
C6: Direct overheads | D6: $'000 nominal | E6: $'000 nominal | F6: $'000 nominal
C7: Standard Control | D7: 30175.78333 | E7: 12222.28991 | F7: =SUM(D7:E7) -> 42398.07324
C8: AMI | D8: 343.5180848 | E8: 89.04704 | F8: =SUM(D8:E8) -> 432.5651248
C9: Public lighting - energy efficient | D9: 7.117129522 | E9: 36.67917694 | F9: 43.79630646
C10: Public lighting - energy non efficient | D10: 323.9136779 | E10: 616.0760973 | F10: 939.9897752
C11: Alternative control - fee based | D11: 0 | E11: 459.5074261 | F11: 459.5074261
C12: Alternative control - quoted | D12: 0 | E12: 267.0321542 | F12: 267.0321542
C13: Negotiated services | D13: 457.64469 | E13: 0 | F13: 457.64469
C14: Unregulated | D14: 12.16764254 | E14: 0 | F14: 12.16764254
C15: Subtotal | D15: =SUM(D7:D14) -> 31320.14455 | E15: =SUM(E7:E14) -> 13690.63181 | F15: =SUM(F7:F14) -> 45010.77636
C16: Indirect overheads | D16: $'000 nominal | E16: $'000 nominal | F16: $'000 nominal
C17: Standard Control | D17: 27750.48894 | E17: 14121.3584 | F17: =SUM(D17:E17) -> 41871.84734
C18: AMI | D18: 865.6324959 | E18: 255.19484 | F18: =SUM(D18:E18) -> 1120.827336
C19: Public lighting - energy efficient | D19: 6.297350081 | E19: 35.08211837 | F19: 41.37946845
C20: Public lighting - energy non efficient | D20: 286.6040051 | E20: 589.2513512 | F20: 875.8553563
C21: Alternative control - fee based | D21: 0 | E21: 1011.462435 | F21: 1011.462435
C22: Alternative control - quoted | D22: 0 | E22: 291.7199082 | F22: 291.7199082
C23: Negotiated services | D23: 395.08077 | E23: 0 | F23: 395.08077
C24: Unregulated | D24: 10.76612481 | E24: 0 | F24: 10.76612481
C25: Subtotal | D25: =SUM(D17:D24) -> 29314.86969 | E25: =SUM(E17:E24) -> 16304.06905 | F25: =SUM(F17:F24) -> 45618.93874
C26: Total overheads | D26: $'000 nominal | E26: $'000 nominal | F26: $'000 nominal
C27: Standard Control | D27: =D7+D17 -> 57926.27227 | E27: 26343.64831 | F27: 84269.92058
C28: AMI | D28: 1209.150581 | E28: 344.24188 | F28: 1553.392461
C29: Public lighting - energy efficient | D29: 13.4144796 | E29: 71.76129531 | F29: 85.17577492
C30: Public lighting - energy non efficient | D30: 610.5176831 | E30: 1205.327448 | F30: 1815.845131
C31: Alternative control - fee based | D31: 0 | E31: 1470.969861 | F31: 1470.969861
C32: Alternative control - quoted | D32: 0 | E32: 558.7520625 | F32: 558.7520625
C33: Negotiated services | D33: =D13+D23 -> 852.72546 | E33: 0 | F33: 852.72546
C34: Unregulated | D34: 22.93376734 | E34: 0 | F34: 22.93376734
C35: Total Overheads | D35: =SUM(D27:D34) -> 60635.01424 | E35: =SUM(E27:E34) -> 29994.70086 | F35: =SUM(F27:F34) -> 90629.7151
B37: Note: (a) Provide direct overheads where applicable
B38: (b) The allocation of overheads is to be consistent with the approved Cost Allocation Method

Sheet 16. Provisions
B1: =Cover!C22 -> Powercor Australia Ltd
B2: Provisions
B3: =Cover!C26 -> 2013
B5: Instructions
B6: Fill out separate tables for each provision In addition it is mandatory to produce for each provision that has been allocated to the Regulated Business Segments a supporting - written explanation of the need for the provision - written explanation of the movements in the provision.
B10: Account code or reference to account code | C10: Provision for Stock Write Down | D10: Audited Statutory Financial Statements | E10: Adjustments | F10: Powercor | G10: Standard Control Services | H10: AMI | I10: Public Lighting | K10: Other Alternative Control Services | M10: Negotiated Services | N10: Unregulated Services
I11: Energy efficient | J11: Non efficient | K11: Fee based service | L11: Quoted service
D12: $'000 nominal | E12: $'000 nominal | F12: $'000 nominal | G12: $'000 nominal | H12: $'000 nominal | I12: $'000 nominal | J12: $'000 nominal | K12: $'000 nominal | L12: $'000 nominal | M12: $'000 nominal | N12: $'000 nominal
C13: Opening Balance | D13: -31.83689 | E13: 11.33335 | F13: -20.50354 | G13: -20.50354 | H13: 0 | I13: 0 | J13: 0 | K13: 0 | L13: 0 | M13: 0 | N13: 0
C14: Liabilities paid from provision charged to opex | D14: 0 | E14: 0 | F14: 0 | G14: 0 | H14: 0 | I14: 0 | J14: 0 | K14: 0 | L14: 0 | M14: 0 | N14: 0
C15: Liabilities paid from provision charged to capex | D15: 0 | E15: 0 | F15: 0 | G15: 0 | H15: 0 | I15: 0 | J15: 0 | K15: 0 | L15: 0 | M15: 0 | N15: 0
C16: Increase /decrease in provision charged to opex | D16: 0 | E16: 0 | F16: 0 | G16: 0 | H16: 0 | I16: 0 | J16: 0 | K16: 0 | L16: 0 | M16: 0 | N16: 0
C17: Increase/decrease in provision charged to capex | D17: 0 | E17: 0 | F17: 0 | G17: 0 | H17: 0 | I17: 0 | J17: 0 | K17: 0 | L17: 0 | M17: 0 | N17: 0
C18: Other adjustments (a) | D18: 0 | E18: 0 | F18: 0 | G18: 0 | H18: 0 | I18: 0 | J18: 0 | K18: 0 | L18: 0 | M18: 0 | N18: 0
D19: 0 | E19: 0 | F19: 0 | G19: 0 | H19: 0 | I19: 0 | J19: 0 | K19: 0 | L19: 0 | M19: 0 | N19: 0
C20: Closing Balance | D20: =SUM(D13:D19) -> -31.83689 | E20: =SUM(E13:E19) -> 11.33335 | F20: -20.50354 | G20: -20.50354 | H20: 0 | I20: 0 | J20: 0 | K20: 0 | L20: 0 | M20: 0 | N20: 0
B22: a: Please explain other adjustments in the table below:
B24: Account code or reference to account code | C24: Provision for Stock Write Down | D24: Audited Statutory Financial Statements | E24: Adjustments | F24: Powercor | G24: Standard Control Services | H24: AMI | I24: Public Lighting | K24: Other Alternative Control Services | M24: Negotiated Services | N24: Unregulated Services
I25: Energy efficient | J25: Non efficient | K25: Fee based service | L25: Quoted service
D26: $'000 nominal | E26: $'000 nominal | F26: $'000 nominal | G26: $'000 nominal | H26: $'000 nominal | I26: $'000 nominal | J26: $'000 nominal | K26: $'000 nominal | L26: $'000 nominal | M26: $'000 nominal | N26: $'000 nominal
C31: Explanation of the need for the provision
C33: Relates to materials and or stock held for maintenance and repair of Network Assets.
C35: Explanation of the movements in the provision
B41: Account code or reference to account code | C41: Provision for Uninsured Loss | D41: Audited Statutory Financial Statements | E41: Adjustments | F41: Powercor | G41: Standard Control Services | H41: AMI | I41: Public Lighting | K41: Other Alternative Control Services | M41: Negotiated Services | N41: Unregulated Services
I42: Energy efficient | J42: Non efficient | K42: Fee based service | L42: Quoted service
D43: $'000 nominal | E43: $'000 nominal | F43: $'000 nominal | G43: $'000 nominal | H43: $'000 nominal | I43: $'000 nominal | J43: $'000 nominal | K43: $'000 nominal | L43: $'000 nominal | M43: $'000 nominal | N43: $'000 nominal
C44: Opening Balance | D44: -1582.64073 | E44: 0 | F44: -1582.64073 | G44: -1582.64073 | H44: 0 | I44: 0 | J44: 0 | K44: 0 | L44: 0 | M44: 0 | N44: 0
C45: Liabilities paid from provision charged to opex | D45: 856.99823 | E45: 0 | F45: 856.99823 | G45: 856.99823 | H45: 0 | I45: 0 | J45: 0 | K45: 0 | L45: 0 | M45: 0 | N45: 0
C46: Liabilities paid from provision charged to capex | D46: 0 | E46: 0 | F46: 0 | G46: 0 | H46: 0 | I46: 0 | J46: 0 | K46: 0 | L46: 0 | M46: 0 | N46: 0
C47: Increase /decrease in provision charged to opex | D47: 36.92231 | E47: 0 | F47: 36.92231 | G47: 36.92231 | H47: 0 | I47: 0 | J47: 0 | K47: 0 | L47: 0 | M47: 0 | N47: 0
C48: Increase/decrease in provision charged to capex | D48: 0 | E48: 0 | F48: 0 | G48: 0 | H48: 0 | I48: 0 | J48: 0 | K48: 0 | L48: 0 | M48: 0 | N48: 0
C49: Other adjustments (a) | D49: 0 | E49: 0 | F49: 0 | G49: 0 | H49: 0 | I49: 0 | J49: 0 | K49: 0 | L49: 0 | M49: 0 | N49: 0
D50: 0 | E50: 0 | F50: 0 | G50: 0 | H50: 0 | I50: 0 | J50: 0 | K50: 0 | L50: 0 | M50: 0 | N50: 0
C51: Closing Balance | D51: =SUM(D44:D50) -> -688.72019 | E51: 0 | F51: -688.72019 | G51: -688.72019 | H51: 0 | I51: 0 | J51: 0 | K51: 0 | L51: 0 | M51: 0 | N51: 0
B53: a: Please explain other adjustments in the table below:
B55: Account code or reference to account code | C55: Provision for Uninsured Loss | D55: Audited Statutory Financial Statements | E55: Adjustments | F55: Powercor | G55: Standard Control Services | H55: AMI | I55: Public Lighting | K55: Other Alternative Control Services | M55: Negotiated Services | N55: Unregulated Services
I56: Energy efficient | J56: Non efficient | K56: Fee based service | L56: Quoted service
D57: $'000 nominal | E57: $'000 nominal | F57: $'000 nominal | G57: $'000 nominal | H57: $'000 nominal | I57: $'000 nominal | J57: $'000 nominal | K57: $'000 nominal | L57: $'000 nominal | M57: $'000 nominal | N57: $'000 nominal
C62: Explanation of the need for the provision
C64: Provision for claims relating to damages sustained from Network assets.
C66: Explanation of the movements in the provision
C68: Decrease in provision charged to profit due to a reassessment of likely claims.
B74: Account code or reference to account code | C74: Provision for Doubtful Debt | D74: Audited Statutory Financial Statements | E74: Adjustments | F74: Powercor | G74: Standard Control Services | H74: AMI | I74: Public Lighting | K74: Other Alternative Control Services | M74: Negotiated Services | N74: Unregulated Services
I75: Energy efficient | J75: Non efficient | K75: Fee based service | L75: Quoted service
D76: $'000 nominal | E76: $'000 nominal | F76: $'000 nominal | G76: $'000 nominal | H76: $'000 nominal | I76: $'000 nominal | J76: $'000 nominal | K76: $'000 nominal | L76: $'000 nominal | M76: $'000 nominal | N76: $'000 nominal
C77: Opening Balance | D77: -1560.99308 | E77: 257 | F77: -1303.99308 | G77: -1180.99308 | H77: 0 | I77: 0 | J77: -123 | K77: 0 | L77: 0 | M77: 0 | N77: 0
C78: Liabilities paid from provision charged to opex | D78: 0 | E78: 0 | F78: 0 | G78: 0 | H78: 0 | I78: 0 | J78: 0 | K78: 0 | L78: 0 | M78: 0 | N78: 0
C79: Liabilities paid from provision charged to capex | D79: 0 | E79: 0 | F79: 0 | G79: 0 | H79: 0 | I79: 0 | J79: 0 | K79: 0 | L79: 0 | M79: 0 | N79: 0
C80: Increase /decrease in provision charged to opex | D80: 9 | E80: -176 | F80: -167 | G80: -139.5 | H80: 0 | I80: 0 | J80: -27.5 | K80: 0 | L80: 0 | M80: 0 | N80: 0
C81: Increase/decrease in provision charged to capex | D81: 0 | E81: 0 | F81: 0 | G81: 0 | H81: 0 | I81: 0 | J81: 0 | K81: 0 | L81: 0 | M81: 0 | N81: 0
C82: Other adjustments (a) | D82: 0 | E82: 0 | F82: 0 | G82: 0 | H82: 0 | I82: 0 | J82: 0 | K82: 0 | L82: 0 | M82: 0 | N82: 0
D83: 0 | E83: 0 | F83: 0 | G83: 0 | H83: 0 | I83: 0 | J83: 0 | K83: 0 | L83: 0 | M83: 0 | N83: 0
C84: Closing Balance | D84: =SUM(D77:D83) -> -1551.99308 | E84: 81 | F84: -1470.99308 | G84: -1320.49308 | H84: 0 | I84: 0 | J84: -150.5 | K84: 0 | L84: 0 | M84: 0 | N84: 0
B86: a: Please explain other adjustments in the table below:
B88: Account code or reference to account code | C88: Provision for Doubtful Debt | D88: Audited Statutory Financial Statements | E88: Adjustments | F88: Powercor | G88: Standard Control Services | H88: AMI | I88: Public Lighting | K88: Other Alternative Control Services | M88: Negotiated Services | N88: Unregulated Services
I89: Energy efficient | J89: Non efficient | K89: Fee based service | L89: Quoted service
D90: $'000 nominal | E90: $'000 nominal | F90: $'000 nominal | G90: $'000 nominal | H90: $'000 nominal | I90: $'000 nominal | J90: $'000 nominal | K90: $'000 nominal | L90: $'000 nominal | M90: $'000 nominal | N90: $'000 nominal
C95: Explanation of the need for the provision
C97: Provision against doubtful tariff and non-tariff receivables.
C99: Explanation of the movements in the provision
C101: Movement based on remeasurement of debts considered to be doubtful.
B107: Account code or reference to account code | C107: Provision for Employee Entitlements | D107: Audited Statutory Financial Statements | E107: Adjustments | F107: Powercor | G107: Standard Control Services | H107: AMI | I107: Public Lighting | K107: Other Alternative Control Services | M107: Negotiated Services | N107: Unregulated Services
I108: Energy efficient | J108: Non efficient | K108: Fee based service | L108: Quoted service
D109: $'000 nominal | E109: $'000 nominal | F109: $'000 nominal | G109: $'000 nominal | H109: $'000 nominal | I109: $'000 nominal | J109: $'000 nominal | K109: $'000 nominal | L109: $'000 nominal | M109: $'000 nominal | N109: $'000 nominal
C110: Opening Balance | D110: -56648.84665 | E110: 2555.555307 | F110: -54093.29134 | G110: -54093.29134 | H110: 0 | I110: 0 | J110: 0 | K110: 0 | L110: 0 | M110: 0 | N110: 0
C111: Liabilities paid from provision charged to opex | D111: 7969.93698 | E111: -387.06388 | F111: 7582.8731 | G111: 7582.8731 | H111: 0 | I111: 0 | J111: 0 | K111: 0 | L111: 0 | M111: 0 | N111: 0
C112: Liabilities paid from provision charged to capex | D112: 12463.98977 | E112: 0 | F112: 12463.98977 | G112: 12463.98977 | H112: 0 | I112: 0 | J112: 0 | K112: 0 | L112: 0 | M112: 0 | N112: 0
C113: Increase /decrease in provision charged to opex | D113: -6095.332909 | E113: 946.18673 | F113: -5149.146179 | G113: -5149.146179 | H113: 0 | I113: 0 | J113: 0 | K113: 0 | L113: 0 | M113: 0 | N113: 0
C114: Increase/decrease in provision charged to capex | D114: -14786.05227 | E114: 0 | F114: -14786.05227 | G114: -14786.05227 | H114: 0 | I114: 0 | J114: 0 | K114: 0 | L114: 0 | M114: 0 | N114: 0
C115: Other adjustments (a) | D115: 0 | E115: 0 | F115: 0 | G115: 0 | H115: 0 | I115: 0 | J115: 0 | K115: 0 | L115: 0 | M115: 0 | N115: 0
D116: 0 | E116: 0 | F116: 0 | G116: 0 | H116: 0 | I116: 0 | J116: 0 | K116: 0 | L116: 0 | M116: 0 | N116: 0
C117: Closing Balance | D117: =SUM(D110:D116) -> -57096.30508 | E117: 3114.678157 | F117: -53981.62692 | G117: -53981.62692 | H117: 0 | I117: 0 | J117: 0 | K117: 0 | L117: 0 | M117: 0 | N117: 0
B119: a: Please explain other adjustments in the table below:
B121: Account code or reference to account code | C121: Provision for Employee Entitlements | D121: Audited Statutory Financial Statements | E121: Adjustments | F121: Powercor | G121: Standard Control Services | H121: AMI | I121: Public Lighting | K121: Other Alternative Control Services | M121: Negotiated Services | N121: Unregulated Services
I122: Energy efficient | J122: Non efficient | K122: Fee based service | L122: Quoted service
D123: $'000 nominal | E123: $'000 nominal | F123: $'000 nominal | G123: $'000 nominal | H123: $'000 nominal | I123: $'000 nominal | J123: $'000 nominal | K123: $'000 nominal | L123: $'000 nominal | M123: $'000 nominal | N123: $'000 nominal
C128: Explanation of the need for the provision
C130: Annual Leave ("AL") is provided for all employees.
C132: Long service leave ("LSL") is provided to meet the likely future entitlement of employees for LSL.
C134: Explanation of the movements in the provision
C136: Decrease in provision due to AL and LSL paid to employees in respect of leave taken.
C138: Increase in provision made to meet the future AL and LSL entitlements of employees.
B144: Account code or reference to account code | C144: Provision for Transmission Fees | D144: Audited Statutory Financial Statements | E144: Adjustments | F144: Powercor | G144: Standard Control Services | H144: AMI | I144: Public Lighting | K144: Other Alternative Control Services | M144: Negotiated Services | N144: Unregulated Services
I145: Energy efficient | J145: Non efficient | K145: Fee based service | L145: Quoted service
D146: $'000 nominal | E146: $'000 nominal | F146: $'000 nominal | G146: $'000 nominal | H146: $'000 nominal | I146: $'000 nominal | J146: $'000 nominal | K146: $'000 nominal | L146: $'000 nominal | M146: $'000 nominal | N146: $'000 nominal
C147: Opening Balance | D147: -17454.60674 | E147: 17454.60674 | F147: 0 | G147: 0 | H147: 0 | I147: 0 | J147: 0 | K147: 0 | L147: 0 | M147: 0 | N147: 0
C148: Liabilities paid from provision charged to opex | D148: 0 | E148: 0 | F148: 0 | G148: 0 | H148: 0 | I148: 0 | J148: 0 | K148: 0 | L148: 0 | M148: 0 | N148: 0
C149: Liabilities paid from provision charged to capex | D149: 0 | E149: 0 | F149: 0 | G149: 0 | H149: 0 | I149: 0 | J149: 0 | K149: 0 | L149: 0 | M149: 0 | N149: 0
C150: Increase /decrease in provision charged to opex | D150: 18384.02632 | E150: -18384.02632 | F150: 0 | G150: 0 | H150: 0 | I150: 0 | J150: 0 | K150: 0 | L150: 0 | M150: 0 | N150: 0
C151: Increase/decrease in provision charged to capex | D151: 0 | E151: 0 | F151: 0 | G151: 0 | H151: 0 | I151: 0 | J151: 0 | K151: 0 | L151: 0 | M151: 0 | N151: 0
C152: Other adjustments (a) | D152: -929.41954 | E152: 929.41954 | F152: 0 | G152: 0 | H152: 0 | I152: 0 | J152: 0 | K152: 0 | L152: 0 | M152: 0 | N152: 0
D153: 0 | E153: 0 | F153: 0 | G153: 0 | H153: 0 | I153: 0 | J153: 0 | K153: 0 | L153: 0 | M153: 0 | N153: 0
C154: Closing Balance | D154: =SUM(D147:D153) -> 4.000000195e-05 | E154: -4.000000195e-05 | F154: 0 | G154: 0 | H154: 0 | I154: 0 | J154: 0 | K154: 0 | L154: 0 | M154: 0 | N154: 0
B156: a: Please explain other adjustments in the table below:
B158: Account code or reference to account code | C158: Provision for Transmission Fees | D158: Audited Statutory Financial Statements | E158: Adjustments | F158: Powercor | G158: Standard Control Services | H158: AMI | I158: Public Lighting | K158: Other Alternative Control Services | M158: Negotiated Services | N158: Unregulated Services
I159: Energy efficient | J159: Non efficient | K159: Fee based service | L159: Quoted service
D160: $'000 nominal | E160: $'000 nominal | F160: $'000 nominal | G160: $'000 nominal | H160: $'000 nominal | I160: $'000 nominal | J160: $'000 nominal | K160: $'000 nominal | L160: $'000 nominal | M160: $'000 nominal | N160: $'000 nominal
C165: Explanation of the need for the provision
C167: Represents over/under collection of transmission charges included in network tariffs that will be adjusted for in future years.
C169: Explanation of the movements in the provision
C171: The increase in the provision charged to profit represents the over collection of transmission charges in network tariffs.
B177: Account code or reference to account code | C177: Provision for Restorations | D177: Audited Statutory Financial Statements | E177: Adjustments | F177: Powercor | G177: Standard Control Services | H177: AMI | I177: Public Lighting | K177: Other Alternative Control Services | M177: Negotiated Services | N177: Unregulated Services
I178: Energy efficient | J178: Non efficient | K178: Fee based service | L178: Quoted service
D179: $'000 nominal | E179: $'000 nominal | F179: $'000 nominal | G179: $'000 nominal | H179: $'000 nominal | I179: $'000 nominal | J179: $'000 nominal | K179: $'000 nominal | L179: $'000 nominal | M179: $'000 nominal | N179: $'000 nominal
C180: Opening Balance | D180: -311.07056 | E180: 311.07056 | F180: 0 | G180: 0 | H180: 0 | I180: 0 | J180: 0 | K180: 0 | L180: 0 | M180: 0 | N180: 0
C181: Liabilities paid from provision charged to opex | D181: 0 | E181: 0 | F181: 0 | G181: 0 | H181: 0 | I181: 0 | J181: 0 | K181: 0 | L181: 0 | M181: 0 | N181: 0
C182: Liabilities paid from provision charged to capex | D182: 0 | E182: 0 | F182: 0 | G182: 0 | H182: 0 | I182: 0 | J182: 0 | K182: 0 | L182: 0 | M182: 0 | N182: 0
C183: Increase /decrease in provision charged to opex | D183: 205.17 | E183: -205.17 | F183: 0 | G183: 0 | H183: 0 | I183: 0 | J183: 0 | K183: 0 | L183: 0 | M183: 0 | N183: 0
C184: Increase/decrease in provision charged to capex | D184: 0 | E184: 0 | F184: 0 | G184: 0 | H184: 0 | I184: 0 | J184: 0 | K184: 0 | L184: 0 | M184: 0 | N184: 0
C185: Other adjustments (a) | D185: 0 | E185: 0 | F185: 0 | G185: 0 | H185: 0 | I185: 0 | J185: 0 | K185: 0 | L185: 0 | M185: 0 | N185: 0
D186: 0 | E186: 0 | F186: 0 | G186: 0 | H186: 0 | I186: 0 | J186: 0 | K186: 0 | L186: 0 | M186: 0 | N186: 0
C187: Closing Balance | D187: =SUM(D180:D186) -> -105.90056 | E187: 105.90056 | F187: 0 | G187: 0 | H187: 0 | I187: 0 | J187: 0 | K187: 0 | L187: 0 | M187: 0 | N187: 0
B189: a: Please explain other adjustments in the table below:
B191: Account code or reference to account code | C191: Provision for Restorations | D191: Audited Statutory Financial Statements | E191: Adjustments | F191: Powercor | G191: Standard Control Services | H191: AMI | I191: Public Lighting | K191: Other Alternative Control Services | M191: Negotiated Services | N191: Unregulated Services
I192: Energy efficient | J192: Non efficient | K192: Fee based service | L192: Quoted service
D193: $'000 nominal | E193: $'000 nominal | F193: $'000 nominal | G193: $'000 nominal | H193: $'000 nominal | I193: $'000 nominal | J193: $'000 nominal | K193: $'000 nominal | L193: $'000 nominal | M193: $'000 nominal | N193: $'000 nominal
C198: Explanation of the need for the provision
C200: Provision represents the best estimate of costs that will be required to settle claims in respect of failure to meet agreed service levels for external projects.
C202: Explanation of the movements in the provision
C204: Decrease in provision represents a re-measurement of the adequacy of restorations likely to occur.

Sheet 17. Shared Cost Allocation
B1: =Cover!C22 -> Powercor Australia Ltd
B2: Shared Cost Allocations
B3: =Cover!C26 -> 2013
B5: Instructions
B6: 1. For shared cost allocation within distribution services, please state that all items have been allocated in accordance with the approved Cost Allocation Model (CAM)
B7: 2. For cost allocation between distribution and non-distribution business, please provide work paper to demonstrate costs have been allocated from statutory accounts to distribution business in accordance with the cost allocations principles set out in Appendix A of the RIN.
B10: Billing & Revenue Collection - Allocated
B11: Statutory Account code or reference to account code | C11: Statutory Accounts | D11: Audited Statutory Financial Statements | E11: Adjustments | F11: Powercor | G11: Standard Control Services | H11: AMI | I11: Public Lighting | K11: Other Alternative Control Services | M11: Negotiated Services | N11: Unregulated Services
I12: Energy efficient | J12: Non efficient | K12: Fee based service | L12: Quoted service
C13: $'000 nominal | D13: $'000 nominal | E13: $'000 nominal | F13: $'000 nominal | G13: $'000 nominal | H13: $'000 nominal | I13: $'000 nominal | J13: $'000 nominal | K13: $'000 nominal | L13: $'000 nominal | M13: $'000 nominal | N13: $'000 nominal
C14: 5351.441604 | D14: 5351.441604 | E14: 0 | F14: 5351.441604 | G14: 4781.205863 | H14: 274.4549342 | I14: 4.169961464 | J14: 70.05919172 | K14: 169.8331598 | L14: 51.71849389 | M14: 0 | N14: 0
F15: 0
B16: Note: please provide the following:
B18: Basis of allocation:
B19: Allocation based on Expenditure Split
B21: Reason for choosing this basis:
B22: Reflective of the costs incurred in providing different categories of distribution services
B26: Advertising/Marketing - Allocated
B27: Statutory Account code or reference to account code | C27: Statutory Accounts | D27: Audited Statutory Financial Statements | E27: Adjustments | F27: Powercor | G27: Standard Control Services | H27: AMI | I27: Public Lighting | K27: Other Alternative Control Services | M27: Negotiated Services | N27: Unregulated Services
I28: Energy efficient | J28: Non efficient | K28: Fee based service | L28: Quoted service
C29: $'000 nominal | D29: $'000 nominal | E29: $'000 nominal | F29: $'000 nominal | G29: $'000 nominal | H29: $'000 nominal | I29: $'000 nominal | J29: $'000 nominal | K29: $'000 nominal | L29: $'000 nominal | M29: $'000 nominal | N29: $'000 nominal
C30: 13.09171083 | D30: 13.09171083 | E30: 0 | F30: 13.09171083 | G30: 11.69669207 | H30: 0.6714236838 | I30: 0.01020135016 | J30: 0.1713920747 | K30: 0.4154780679 | L30: 0.1265235832 | M30: 0 | N30: 0
F31: 0
B32: Note: please provide the following:
B34: Basis of allocation:
B35: Allocation based on Expenditure Split
B37: Reason for choosing this basis:
B38: Reflective of the costs incurred in providing different categories of distribution services
B42: Customer Service - Allocated
B43: Statutory Account code or reference to account code | C43: Statutory Accounts | D43: Audited Statutory Financial Statements | E43: Adjustments | F43: Powercor | G43: Standard Control Services | H43: AMI | I43: Public Lighting | K43: Other Alternative Control Services | M43: Negotiated Services | N43: Unregulated Services
I44: Energy efficient | J44: Non efficient | K44: Fee based service | L44: Quoted service
C45: $'000 nominal | D45: $'000 nominal | E45: $'000 nominal | F45: $'000 nominal | G45: $'000 nominal | H45: $'000 nominal | I45: $'000 nominal | J45: $'000 nominal | K45: $'000 nominal | L45: $'000 nominal | M45: $'000 nominal | N45: $'000 nominal
C46: 8190.727316 | D46: 8190.727316 | E46: 0 | F46: 8190.727316 | G46: 7317.944652 | H46: 420.0710188 | I46: 6.382395586 | J46: 107.2301219 | K46: 259.9406298 | L46: 79.15849821 | M46: 0 | N46: 0
F47: 0
B48: Note: please provide the following:
B50: Basis of allocation:
B51: Allocation based on Expenditure Split
B53: Reason for choosing this basis:
B54: Reflective of the costs incurred in providing different categories of distribution services
B58: Debt Raising Costs - Allocated
B59: Statutory Account code or reference to account code | C59: Statutory Accounts | D59: Audited Statutory Financial Statements | E59: Adjustments | F59: Powercor | G59: Standard Control Services | H59: AMI | I59: Public Lighting | K59: Other Alternative Control Services | M59: Negotiated Services | N59: Unregulated Services
I60: Energy efficient | J60: Non efficient | K60: Fee based service | L60: Quoted service
C61: $'000 nominal | D61: $'000 nominal | E61: $'000 nominal | F61: $'000 nominal | G61: $'000 nominal | H61: $'000 nominal | I61: $'000 nominal | J61: $'000 nominal | K61: $'000 nominal | L61: $'000 nominal | M61: $'000 nominal | N61: $'000 nominal
C62: 0 | D62: 0 | E62: 224.95206 | F62: 224.95206 | G62: 197.7411469 | H62: 25.20070372 | I62: 0.008037094588 | J62: 1.858148562 | K62: 0 | L62: 0 | M62: 0.1384995566 | N62: 0.005524129131
F63: 0
B64: Note: please provide the following:
B66: Basis of allocation:
B67: Allocation based on Fixed Assets
B69: Reason for choosing this basis:
B70: Reflective of the costs incurred in providing different categories of distribution services

Sheet 18. Avoided Cost Payments
B1: =Cover!C22 -> Powercor Australia Ltd
B2: Avoided Cost Payments
B3: =Cover!C26 -> 2013
B6: Statutory Account code or reference to account code | C6: Description | D6: Avoided Cost Payment | E6: Number of Projects
C7: Deferral of Augmentation to Transmission Networks | D7: $'000 nominal
C8: Embedded generators | D8: 2861.84795 | E8: 13
C9: Related party embedded generators | D9: 0 | E9: 0
C10: Customers | D10: 0 | E10: 0
C11: Avoided TUOS | D11: 0 | E11: 0
C12: Sub Total | D12: =SUM(D8:D11) -> 2861.84795 | E12: =SUM(E8:E11) -> 13
C13: Deferral of Augmentation to Distribution Networks
C14: Embedded generators | D14: 0 | E14: 0
C15: Related party embedded generators | D15: 0 | E15: 0
C16: Customers | D16: 0 | E16: 0
C17: Sub Total | D17: =SUM(D14:D16) -> 0 | E17: =SUM(E14:E16) -> 0
C19: TOTAL | D19: =D17+D12 -> 2861.84795 | E19: =E17+E12 -> 13

Sheet 19. Alt Control&Others
B1: =Cover!C22 -> Powercor Australia Ltd
B2: Alternative Control Services and Other Services
B3: =Cover!C26 -> 2013
B6: Statutory Account code or reference to account code | C6: Description | D6: Direct O&M Costs | E6: Indirect O&M costs | F6: Direct Capex | G6: Indirect Capex | H6: Revenue
C8: Alternative Control Services - Fee Based | D8: $'000 nominal | E8: $'000 nominal | F8: $'000 nominal | G8: $'000 nominal | H8: $'000 nominal
C9: Meter investigation | D9: 69.91531145 | E9: 10.33555004 | F9: 0 | G9: 0 | H9: -150.09815
C10: Meter Testing | D10: 240.7650285 | E10: 35.59218929 | F10: 0 | G10: 0 | H10: -168.25213
C11: De-energisation of existing connections | D11: 1422.653697 | E11: 44.83414555 | F11: 0 | G11: 0 | H11: -1596.764323
C12: Energisation of existing connections | D12: 2247.207464 | E12: 70.81950211 | F12: 0 | G12: 0 | H12: -2599.734064
C13: Special meter reading | D13: 232.1674224 | E13: 7.316628091 | F13: 0 | G13: 0 | H13: -206.7426037
C14: Re-test of type 5 and 6 metering installations for first tier customers with annual consumption greater than 160 MWh | D14: 0 | E14: 0 | F14: 0 | G14: 0 | H14: 0
C15: Operation, repair, replacement and maintenance of DNSP public lighting assets | D15: 0 | E15: 0 | F15: 0 | G15: 0 | H15: 0
C16: Fault response - not DNSP fault | D16: 0 | E16: 0 | F16: 0 | G16: 0 | H16: 0
C17: Temporary disconnect/reconnect services | D17: 0 | E17: 0 | F17: 0 | G17: 0 | H17: 0
C18: Wasted attendance - not DNSP fault | D18: 140.5871857 | E18: 20.79681592 | F18: 0 | G18: 0 | H18: -174.52392
C19: Service truck visits | D19: 2651.691245 | E19: 391.5207088 | F19: 0 | G19: 0 | H19: -2871.6522
C20: Reserve feeder | D20: 208.6257019 | E20: 6.574723774 | F20: 0 | G20: 0 | H20: -87.34656
C21: PV installation | D21: 2206.292063 | E21: 69.53007584 | F21: 0 | G21: 0 | H21: -2847.40324
C22: Routine connections - customers below 100 amps | D22: 4230.636108 | E22: 646.1257035 | F22: 0 | G22: 0 | H22: -5824.72683
C23: Temporary supply services | D23: 0 | E23: 0 | F23: 0 | G23: 0 | H23: 0
C24: Remote meter re-configuration | D24: 0 | E24: 0 | F24: 0 | G24: 0 | H24: 0
C25: Remote de-energisation | D25: 0 | E25: 0 | F25: 0 | G25: 0 | H25: 0
C26: Remote re-energisation | D26: 0 | E26: 0 | F26: 0 | G26: 0 | H26: 0
C27: Total fee based alternative control services | D27: =SUM(D9:D26) -> 13650.54123 | E27: =SUM(E9:E26) -> 1303.446043 | F27: =SUM(F9:F26) -> 0 | G27: =SUM(G9:G26) -> 0 | H27: =SUM(H9:H26) -> -16527.24402
C29: Alternative Control Services - Quoted | D29: $'000 nominal | E29: $'000 nominal | F29: $'000 nominal | G29: $'000 nominal | H29: $'000 nominal
C30: Rearrangement of network assets at customer request, excluding alteration and relocation of existing public lighting assets | D30: 0 | E30: 0 | F30: 0 | G30: 0 | H30: 0
C31: Supply enhancement at customer request | D31: 0 | E31: 0 | F31: 0 | G31: 0 | H31: 0
C32: Supply abolishment | D32: 666.0635929 | E32: 99.20892559 | F32: 0 | G32: 0 | H32: -636.32017
C33: Emergency recoverable works (that is, emergency works where customer is at fault and immediate action needs to be taken by the DNSP) | D33: 1494.50918 | E33: 212.6464615 | F33: 0 | G33: 0 | H33: -1400.69847
C34: Auditing of design and construction | D34: 821.8981864 | E34: 108.3318623 | F34: 0 | G34: 0 | H34: -421.061
C35: Specification and design enquiry fees | D35: 574.1032936 | E35: 75.67078255 | F35: 0 | G35: 0 | H35: -533.29175
C36: Elective underground service where an existing overhead service exists | D36: 0 | E36: 0 | F36: 0 | G36: 0 | H36: 0
C37: Damage to overhead service cables pulled down by high load vehicles | D37: 0 | E37: 0 | F37: 0 | G37: 0 | H37: 0
C38: High load escorts—lifting overhead lines | D38: 128.3732904 | E38: 21.35524263 | F38: 0 | G38: 0 | H38: -120.92417
C39: Covering of low voltage mains for safety reasons | D39: 304.9138148 | E39: 43.20268904 | F39: 0 | G39: 0 | H39: -369.98713
C40: Routine connections, for customers > 100amps | D40: 0 | E40: 0 | F40: 0 | G40: 0 | H40: 0
C41: After hours truck by appointment | D41: 3.438691776 | E41: 0.5131203061 | F41: 0 | G41: 0 | H41: -7.88308
C42: Total quoted alternative control services | D42: =SUM(D30:D41) -> 3993.30005 | E42: =SUM(E30:E41) -> 560.9290839 | F42: =SUM(F30:F41) -> 0 | G42: =SUM(G30:G41) -> 0 | H42: =SUM(H30:H41) -> -3490.16577
C44: Public Lighting | D44: $'000 nominal | E44: $'000 nominal | F44: $'000 nominal | G44: $'000 nominal | H44: $'000 nominal
C45: Efficient | D45: 321.5435053 | E45: 45.64739275 | F45: 57.68723935 | G45: 6.297350081 | H45: -595.9511028
C46: Non-energy efficient | D46: 5400.755534 | E46: 766.7093408 | F46: 2625.452552 | G46: 286.6040051 | H46: -8736.786007
C47: Total public lighting | D47: =SUM(D45:D46) -> 5722.299039 | E47: =SUM(E45:E46) -> 812.3567336 | F47: =SUM(F45:F46) -> 2683.139792 | G47: =SUM(G45:G46) -> 292.9013552 | H47: =SUM(H45:H46) -> -9332.73711
C49: Other Activities - Non Regulated | D49: $'000 nominal | E49: $'000 nominal | F49: $'000 nominal | G49: $'000 nominal | H49: $'000 nominal
C50: Pole, Duct & Fibre Rental | D50: 0 | E50: 0 | F50: 0 | G50: 0 | H50: -3224.21851
C51: Public Lighting | D51: 0 | E51: 0 | F51: 98.62370849 | G51: 10.76612481 | H51: -137.27068
C52: Total non - regulated | D52: =SUM(D50:D51) -> 0 | E52: =SUM(E50:E51) -> 0 | F52: =SUM(F50:F51) -> 98.62370849 | G52: =SUM(G50:G51) -> 10.76612481 | H52: =SUM(H50:H51) -> -3361.48919
C54: TOTAL | D54: =SUM(D27,D42,D47,D52) -> 23366.14032 | E54: =SUM(E27,E42,E47,E52) -> 2676.73186 | F54: =SUM(F27,F42,F47,F52) -> 2781.7635 | G54: =SUM(G27,G42,G47,G52) -> 303.66748 | H54: =SUM(H27,H42,H47,H52) -> -32711.63609
B56: Note: Services classes are those used in the 2010 Distribution Determination Other alternative control services.

Sheet 20. Demand and Revenue
B1: Powercor
B2: Total Revenue and Demand
B3: =Cover!C26 -> 2013
B5: Table 1 Standard Control Services Revenue - Current Year
B6: Note: insert additional rows as necessary
B8: Statutory Account code or reference to account code | C8: Distribution Category | D8: Amount of Electricity Distributed | E8: Distribution Revenue
C9: Tariff categories | D9: GWh | E9: $'000 nominal
C10: D1 - Small Single Rate | D10: 2107.685654 | E10: 163620.8625
C11: D1CS - Climate Saver | D11: 26.69509031 | E11: 1398.350058
C12: D3CS - ClimateSaver Interval | D12: 7.929719451 | E12: 406.4211786
C13: D2 - Small Two Rate | D13: 341.0670073 | E13: 20107.19965
C14: D2DK - Small Two Rate DK | D14: 3.983416244 | E14: 271.2946436
C15: D3 - Residential Interval | D15: 509.7918554 | E15: 37228.21192
C16: DD1 - Dedicated Circuit | D16: 365.5008558 | E16: 1162.221451
C17: D3HW - Hot Water Interval | D17: 11.67166959 | E17: 36.97679919
C18: P13R - Residential - Flexible Pricing | D18: 0.121101941 | E18: 5.727856762
C19: P13RDK - Residential Docklands - Flexible Pricing | D19: 0 | E19: 0
C20: P13RCS - Climate Saver - Flexible Pricing | D20: 0 | E20: 0
C21: ND1 - Medium single rate | D21: 264.5123301 | E21: 23097.76416
C22: ND1R - Medium single rate | D22: 0 | E22: 0
C23: ND2 - Medium Two Rate - 5d | D23: 1168.6979 | E23: 86656.91903
C24: ND2BS - Medium Two Rate - 5d | D24: 0 | E24: 0
C25: ND3 - Medium Two Rate - 7d | D25: 176.337522 | E25: 14052.07464
C26: ND5 - Non Residential Interval | D26: 375.9644472 | E26: 29682.16804
C27: PL2 - Unmetered Supplies | D27: 104.6221458 | E27: 5163.422276
C28: DL - Large Tariff (kW) | D28: 1144.650218 | E28: 51413.6617
C29: DLA - Large Tariff A (kW) | D29: 0.003298679925 | E29: 0.05364799993
C30: DLC - Large Tariff C (kW) | D30: 612.6532018 | E30: 25548.28624
C31: DLCXX - Large Tariff CXX (kW) | D31: 417.2229396 | E31: 22637.47652
C32: DLS - Large Tariff S (kW) | D32: 25.60736244 | E32: 1418.144004
C33: DLDK - Large Tariff DK (kW) | D33: 6.418311423 | E33: 232.3925177
C34: DL.R - Large Tariff R (kW) | D34: 0 | E34: 0
C35: DL.NR - Large Tariff NR (kW) | D35: 52.46692126 | E35: 2531.906421
C36: DL.CXXR - Large Tariff CXXR (kW) | D36: 1.589720415 | E36: 95.19946668
C37: DL.CXXNR - Large Tariff CXXNR (kW) | D37: 3.543741436 | E37: 165.0596741
C38: DH - High Voltage (kW) | D38: 935.567608 | E38: 25379.69018
C39: DHA - High Voltage A (kW) | D39: 12.74003307 | E39: 191.7315597
C40: DHC - High Voltage C (kW) | D40: 447.9332626 | E40: 11237.54124
C41: DHD1 - High Voltage D1 (kW) | D41: 163.7995805 | E41: 1291.109396
C42: DHD2 - High Voltage D2 (kW) | D42: 76.10708098 | E42: 704.1578483
C43: DHD3 - High Voltage D3 (kW) | D43: 33.20997302 | E43: 768.9809625
C44: DHD4 - High Voltage D4 (kW) | D44: 4.945364009 | E44: 12.73332975
C45: DHDK - High Voltage DK (kW) | D45: 2.098473151 | E45: 49.02906914
C46: DHD5 - High Voltage D5 (kW) | D46: 0 | E46: 0
C47: DHR - High Voltage R (kW) | D47: 0 | E47: 0
C48: DHNR - High Voltage NR (kW) | D48: 0 | E48: 0
C49: DSA - Subtransmission A | D49: 181.0456258 | E49: 1058.771524
C50: DSG - Subtransmission G | D50: 606.4292613 | E50: 3423.969418
C51: DSS - Subtransmission S | D51: 363.2680409 | E51: 1670.61046
C56: Total | D56: =SUM(D10:D52) -> 10555.88073 | E56: =SUM(E10:E52) -> 532720.1194
B58: Table 2 Standard Control Revenue - Prior Year
B59: Note: insert additional rows as necessary
B61: Statutory Account code or reference to account code | C61: Distribution Category | D61: Amount of Electricity Distributed | E61: Distribution Revenue
C62: Tariff categories | D62: GWh | E62: $'000 nominal
C63: D1 - Small Single Rate | D63: 2231.089817 | E63: 148710.3065
C64: D1CS - Climate Saver | D64: 30.78645606 | E64: 1248.976395
C65: D3CS - ClimateSaver Interval | D65: 9.238085626 | E65: 366.3881969
C66: D2 - Small Two Rate | D66: 369.0507604 | E66: 18226.6495
C67: D2DK - Small Two Rate DK | D67: 4.288043243 | E67: 246.9895267
C68: D3 - Residential Interval | D68: 406.3038793 | E68: 24763.77895
C69: DD1 - Dedicated Circuit | D69: 403.4875746 | E69: 1138.014647
C70: D3HW - Hot Water Interval | D70: 12.18544983 | E70: 33.63811824
C71: ND1 - Medium single rate | D71: 275.4950603 | E71: 20841.77681
C72: ND1R - Medium single rate | D72: 0 | E72: 0
C73: ND2 - Medium Two Rate - 5d | D73: 1214.824308 | E73: 79026.86058
C74: ND2BS - Medium Two Rate - 5d | D74: 0 | E74: 0
C75: ND3 - Medium Two Rate - 7d | D75: 187.3469922 | E75: 12920.94882
C76: ND5 - Non Residential Interval | D76: 332.7471655 | E76: 23002.01647
C77: PL2 - Unmetered Supplies | D77: 102.920591 | E77: 4462.993555
C78: DL - Large Tariff (kW) | D78: 1078.052357 | E78: 43104.81943
C79: DLA - Large Tariff A (kW) | D79: 1.009623655 | E79: 29.22532871
C80: DLC - Large Tariff C (kW) | D80: 652.556212 | E80: 24023.5686
C81: DLCXX - Large Tariff CXX (kW) | D81: 400.041655 | E81: 19193.1908
C82: DLS - Large Tariff S (kW) | D82: 26.29142497 | E82: 1311.481756
C83: DLDK - Large Tariff DK (kW) | D83: 6.673652276 | E83: 223.7073977
C84: DL.R - Large Tariff R (kW) | D84: 0 | E84: 0
C85: DL.NR - Large Tariff NR (kW) | D85: 49.87328246 | E85: 2084.005778
C86: DL.CXXR - Large Tariff CXXR (kW) | D86: 1.29045523 | E86: 73.91718292
C87: DL.CXXNR - Large Tariff CXXNR (kW) | D87: 0.511456707 | E87: 26.20175122
C88: DH - High Voltage (kW) | D88: 969.0260656 | E88: 22582.27412
C89: DHA - High Voltage A (kW) | D89: 13.90309365 | E89: 178.6153023
C90: DHC - High Voltage C (kW) | D90: 443.0187125 | E90: 10011.93704
C91: DHD1 - High Voltage D1 (kW) | D91: 174.7123999 | E91: 1151.784885
C92: DHD2 - High Voltage D2 (kW) | D92: 75.5363714 | E92: 580.7120299
C93: DHD3 - High Voltage D3 (kW) | D93: 32.54851576 | E93: 694.7815278
C94: DHD4 - High Voltage D4 (kW) | D94: 53.50423545 | E94: 233.3577347
C95: DHDK - High Voltage DK (kW) | D95: 2.077586587 | E95: 43.5348039
C96: DHD5 - High Voltage D5 (kW) | D96: 0 | E96: 0
C97: DHR - High Voltage R (kW) | D97: 0 | E97: 0
C98: DHNR - High Voltage NR (kW) | D98: 0 | E98: 0
C99: DSA - Subtransmission A | D99: 189.0443501 | E99: 934.5351677
C100: DSG - Subtransmission G | D100: 624.0489833 | E100: 3020.412728
C101: DSS - Subtransmission S | D101: 370.3215211 | E101: 1691.23823
C103: Total | D103: =SUM(D63:D102) -> 10743.80614 | E103: =SUM(E63:E102) -> 466182.6397
B105: Table 3 AMI - Current Year
B106: Note: Number of Meters\NMIs refers to end of year figures
B108: Statutory Account code or reference to account code | C108: Distribution Category | D108: Number of Meters | E108: Metering Revenue
C109: Tariff categories | E109: $'000 nominal
C110: MP - Single phase non-off peak meter | D110: 365042.9669 | E110: 46639.10504
C111: MP - Single phase off peak meter | D111: 249035.7918 | E111: 31817.64205
C112: MP - Two or threee phase direct connet | D112: 120029.4144 | E112: 20227.07511
C113: MP - Two or threee phase current transformer connet | D113: 4497.188874 | E113: 1004.19287
D114: 0 | E114: 0
D115: 0 | E115: 0
D116: 0 | E116: 0
C117: Total | D117: =SUM(D110:D116) -> 738605.362 | E117: =SUM(E110:E116) -> 99688.01507
B120: Table 4 AMI - Prior Year
B121: Note: Number of Meters\NMIs refers to end of year figures
B123: Statutory Account code or reference to account code | C123: Distribution Category | D123: Number of Meters | E123: Metering Revenue
C124: Tariff categories | E124: $'000 nominal
C125: MP - Single phase non-off peak meter | D125: 367804.654 | E125: 37875.97544
C126: MP - Single phase off peak meter | D126: 240580.073 | E126: 24774.57758
C127: MP - Two or threee phase direct connet | D127: 115402.8508 | E127: 15663.30745
C128: MP - Two or threee phase current transformer connet | D128: 4309.511887 | E128: 775.591129
D129: 0 | E129: 0
D130: 0 | E130: 0
D131: 0 | E131: 0
C132: Total | D132: =SUM(D125:D131) -> 728097.0897 | E132: =SUM(E125:E131) -> 79089.45159
B135: Table 5 Public lighting- Current Year
B137: Statutory Account code or reference to account code | C137: Distribution Category | D137: Number of Lights | E137: Metering Revenue
C138: Tariff categories | E138: $'000 nominal
C139: MDs - Unmetered Supplies | D139: 177718 | E139: 224.0303816
C146: Total | D146: =SUM(D139:D145) -> 177718 | E146: =SUM(E139:E145) -> 224.0303816
B149: Table 6 Public lighting - Prior Year
B151: Statutory Account code or reference to account code | C151: Distribution Category | D151: Number of Lights | E151: Metering Revenue
C152: Tariff categories | E152: $'000 nominal
C153: MDs - Unmetered Supplies | D153: 173703 | E153: 211.9991979
C160: Total | D160: =SUM(D153:D159) -> 173703 | E160: =SUM(E153:E159) -> 211.9991979

Sheet 21. EBSS
B1: =Cover!C22 -> Powercor Australia Ltd
B2: Efficiency Benefits Sharing Schemes
B3: =Cover!C26 -> 2013
B5: Table 1 Opex for EBSS Purposes
B7: Note: a) Only superannuation costs related to defined benefit schemes are to be reported
B8: b) Only self insurance cost categories approved in the AER's determination are to be reported
C10: $'000 nominal
B11: Total Actual Opex | C11: 181203.5156
B12: Debt raising costs | C12: 197.7411469
B13: Self insurance | C13: 0
B14: Superannuation defined benefit schemes | C14: 7544
B15: Non network alternatives costs | C15: 0
B16: DMIA costs | C16: 189.852
B17: Pass through event costs | C17: 3263.476
B18: GSL payments | C18: 1040.4841
B19: Total opex adjustment for EBSS purposes | C19: 12235.55325
B20: Total opex for EBSS purposes | C20: =C11-C19 -> 168967.9623
B22: Table 2 Explanation of Capitalisation Policy Changes
B24: Note: this should include a description of any items that have previously been considered as opex items, but are now being considered capex items.
B26: Capitalisation Policy Change | C26: Impact on forecast opex ($'000 nominal) | D26: Description
B27: 0 | C27: 0 | D27: 0 | E27: 0 | F27: 0 | G27: 0 | H27: 0 | I27: 0 | J27: 0 | K27: 0
B28: 0 | C28: 0 | D28: 0 | E28: 0 | F28: 0 | G28: 0 | H28: 0 | I28: 0 | J28: 0 | K28: 0
B29: 0 | C29: 0 | D29: 0 | E29: 0 | F29: 0 | G29: 0 | H29: 0 | I29: 0 | J29: 0 | K29: 0
B30: 0 | C30: 0 | D30: 0 | E30: 0 | F30: 0 | G30: 0 | H30: 0 | I30: 0 | J30: 0 | K30: 0
B31: Total | C31: =SUM(C27:C30) -> 0

Sheet 22. Juris Scheme
B1: =Cover!C22 -> Powercor Australia Ltd
B2: Jurisdictional Scheme Payments
B3: =Cover!C26 -> 2013
B6: Scheme Payment Name | C6: Description | D6: Date DNSP Became Subject to Scheme | E6: Description of Cost Recovery Method | F6: Total Scheme Payments ($'000 nominal)
B7: Premium Solar Feed-in Tariff & Transitional feed-in tariff payments | C7: Credit per kWh paid for excess electricity fed back into the grid | D7: 1 November 2009 | E7: Appendix F3 of the Final Decision Distribution determination 2011-2015 | F7: 45813.21732
B8: 0 | C8: 0 | D8: 0 | E8: 0 | F8: 0
B9: 0 | C9: 0 | D9: 0 | E9: 0 | F9: 0
B10: 0 | C10: 0 | D10: 0 | E10: 0 | F10: 0
B11: Total jurisdictional scheme payments | D11: Total jurisdictional scheme payments | F11: =SUM(F7:F10) -> 45813.21732

Sheet 23. DMIS-DMIA
B1: =Cover!C22 -> Powercor Australia Ltd
B2: Demand management incentive scheme
B3: =Cover!C26 -> 2013
B5: Instructions:
B7: Enter all demand management innovation allowance information for the relevant regulatory year in the tables below. The information should be provided in accordance with the AER's Final demand management incentive scheme for Victorian DNSPs, April 2009.
B9: Table 1 provide the following for each demand management incentive allowance project submitted for approval:
B10: a) the name of each project
B11: b) operating expenditure ($ nominal)
B12: c) capital expenditure ($ nominal)
B14: Table 2 provide information on the total amount of DMIA spent in the previous regulatory year
B15: a) the name of each project
B16: b) operating expenditure ($ nominal)
B17: c) capital expenditure ($ nominal)
B19: Table 3 provide the following for each demand management program or project for which forgone revenue is claimed:
B20: a) the name of the project
B21: b) forecast demand (MW) without the implementation of the non-tariff demand management program
B22: c) actual demand (MW) with the implementation of the non-tariff demand management program
B23: d) price applicable to forgone quantities
B28: Table 1 DMIA projects submitted for approval
B30: Name of project
C31: =B3 -> 2013
C32: Operating expenditure ($ nominal) | D32: Capital expenditure ($ nominal) | E32: Total expenditure ($ nominal)
B33: BBD21 Generation 2012/2013 Summer | C33: 189852 | D33: 0 | E33: =SUM(C33:D33) -> 189852
B34: 0 | C34: 0 | D34: 0 | E34: 0
B35: 0 | C35: 0 | D35: 0 | E35: 0
B36: 0 | C36: 0 | D36: 0 | E36: 0
B37: 0 | C37: 0 | D37: 0 | E37: 0
B38: 0 | C38: 0 | D38: 0 | E38: 0
B39: Total | C39: =SUM(C33:C38) -> 189852 | D39: =SUM(D33:D38) -> 0 | E39: =SUM(E33:E38) -> 189852
B41: Table 2 DMIA expenditure in the regulatory reporting year
B43: Name of project | C43: Total amount of the DMIA spent in previous regulatory year
C45: Operating expenditure ($ nominal) | D45: Capital expenditure ($ nominal) | E45: Total expenditure ($ nominal)
B46: Water Treatment Business DM Program Stage 1 | C46: 19180 | D46: 0 | E46: =SUM(C46:D46) -> 19180
B47: 0 | C47: 0 | D47: 0 | E47: =SUM(C47:D47) -> 0
B48: 0 | C48: 0 | D48: 0 | E48: =SUM(C48:D48) -> 0
B49: Total | C49: =SUM(C46:C48) -> 19180 | D49: =SUM(D46:D48) -> 0 | E49: =SUM(E46:E48) -> 19180
B51: Table 3 Foregone revenue in the regulatory reporting year
B53: Name of project
C54: =B39 -> Total
C55: Forecast quantity | D55: Actual quantity | E55: Forgone quantity | F55: Price
B56: 0 | C56: 0 | D56: 0 | E56: =C56-D56 -> 0 | F56: 0
B57: 0 | C57: 0 | D57: 0 | E57: =C57-D57 -> 0 | F57: 0
B58: 0 | C58: 0 | D58: 0 | E58: 0 | F58: 0
B59: 0 | C59: 0 | D59: 0 | E59: 0 | F59: 0
B60: 0 | C60: 0 | D60: 0 | E60: 0 | F60: 0
B61: 0 | C61: 0 | D61: 0 | E61: 0 | F61: 0
B62: Total | C62: =SUM(C56:C61) -> 0 | D62: =SUM(D56:D61) -> 0 | E62: 0

Sheet 24. Self Insurance
B1: Powercor
B2: Self Insurance
B3: =Cover!C26 -> 2013
B5: Table 1 Self Insurance Events with an Incurred Cost of Greater than $100 000 per Event.
B7: Type of Self Insurance Event | C7: Date of Event | D7: Description of Event | I7: Cost of the Event that Relates to Regulated Assets ($'000 nominal) | K7: Other Costs (eg Costs Related to Non-regulated Assets) ($'000 nominal) | M7: Total Cost of Self Insurance Event ($'000 nominal) | O7: Costs Covered by External Funding ($'000 nominal) | Q7: Costs to be passed through ($'000 nominal) | S7: Independently verifiable information attached?
D16: Total actual cost of self insurance | I16: =SUM(I8:J15) -> 0 | K16: =SUM(K8:L15) -> 0 | M16: =SUM(M8:N15) -> 0 | O16: =SUM(O8:P15) -> 0 | Q16: =SUM(Q8:R15) -> 0
B18: Table 2 Self insurance events with an incurred cost of less than $100 000 per event
B20: Number of events | C20: Costs of the events that relate to regulated assets | F20: Costs covered by external funding | J20: Costs that do not relate to regulated assets
B24: Table 3 Total self insurance that relate to regulated assets
B26: Total self insurance | D26: =I16+C21+C22 -> 0

Sheet 25. CHAP
B1: =Cover!C22 -> Powercor Australia Ltd
B2: Change of Accounting Policy
B3: =Cover!C26 -> 2013
B5: Please state the nature and reason for the change:
B10: Table 1 The aggregate effect of the change in accounting policy on the balance sheet and income statements
B12: Statutory Account code or reference to account code | C12: Powercor Category | D12: Previously Stated | E12: Adjustment | F12: Restated
C13: Balance Sheet | D13: $'000 nominal | E13: $'000 nominal | F13: $'000 nominal
C14: Item
C17: Income Statement
C18: Item

Sheet 26. Related Party
B1: =Cover!C22 -> Powercor Australia Ltd
B2: Related Party Transactions
B3: =Cover!C26 -> 2013
B5: Table 1. Payments made by Powercor to Related Party under CONTROL or INFLUENCING Ownership
B6: Note: for transactions with a Related Party that is related to the provision of standard control services, alternative control services, Advanced Metering Infrastructure or negotiated distribution services and greater than $500,000
B8: Name of related party | C8: Services Provided | D8: Contract Charge ($'000 nominal) | F8: Actual Cost ($'000 nominal) | H8: Margin ($'000 nominal) | J8: Description of how this transaction amount was determined | K8: Description of how this amount is reflected in the Regulatory Accounting Statements, including the asset class or cost category | L8: Where the related party costs have been allocated to different asset classes or cost categories, the description of the basis of allocation and the quantum of the allocator
D9: Capex | E9: Opex | F9: Capex | G9: Opex | H9: Capex | I9: Opex
B10: CHED Services | C10: Corporate Services - management, administration, back office and other business functions | J10: The services fee amount is based on an arms length negotiated price. The actual incurred cost of the individual services was determined by the related party. | K10: The contract price / actual cost is included in operating expenses, maintenance and capital expenditure, allocated between Standard Control, AMI and ACS. | L10: Refer to the Services Fee Allocation workpaper for details of the amount and the method of its allocation.
B11: Powercor Network Services | C11: Network Services - construction, maintenance, faults, emergency and related services | J11: The fee amount is based on an arms length negotiated price and the actual cost incurred was determined by the related party. | K11: The contract price /actual cost is directly attributable to Standard Control and AMI capital, maintenance and operating expenditure. | L11: No costs are allocated
B12: CHED Services | C12: Infill Insurance Premium | J12: The fee amount is in accordance with external assessment and advice for these services. The actual cost is based on actual administrative costs and the acturial cost of providing the infill insurance services. | K12: The contract price / actual cost is included in Operating Expenses as a directly attributable cost to Standard Control | L12: No costs are allocated
B13: CHED Services | C13: AMI Project Services | J13: The fee amount is based on an arms length negotiated price. The actual incurred cost was determined by the related party. | K13: The contract price actual cost has been directly attributed to AMI capital and operating expenses | L13: No costs are allocated
B14: CHED Services | C14: Metering and Servicing Activities | J14: The fee amount is based on an arms length negotiated price. The actual incurred cost was determined by the related party. | K14: The contract price / actual cost is included in operating, maintenance and capital expenditure as a directly attributable cost to AMI and ACS. | L14: No costs are allocated
B15: CHED Services | C15: IT AMI Support Services | J15: The fee amount is based on an arms length negotiated price. The actual incurred cost was determined by the related party | K15: The contract price / actual cost is included in operating expenses as an ACS. | L15: No costs are allocated
B16: CHED Services | C16: IT System Enhancements | J16: The fee amount is based on an arms length negotiated price. The actual incurred cost was determined by the related party | K16: The contract price / actual cost is included in capital expenses and is allocated directly to Standard Control | L16: No costs are allocated
B18: Table 2. Composition of margins in relation to table 1.
B20: Name of related party | C20: Services Provided | D20: Margins ($'000 nominal) | H20: Total ($'000 nominal)
D21: Overhead | F21: Residual
B22: CHED Services | C22: Corporate Services - management, administration, back office and other business functions | D22: 0 | E22: 0
B23: Powercor Network Services | C23: Network Services - construction, maintenance, faults, emergency and related services | D23: 0 | E23: 0
B24: CHED Services | C24: Infill Insurance Premium | D24: 0 | E24: 0
B25: CHED Services | C25: AMI Project Services | D25: 0 | E25: 0
B26: CHED Services | C26: Metering and Servicing Activities | D26: 0 | E26: 0
B27: CHED Services | C27: IT AMI Support Services | D27: 0 | E27: 0
B28: CHED Services | C28: IT System Enhancements | D28: 0 | E28: 0
B30: Note: Provide, if separately identifiable the proportion of margins related to overhead costs and the proportion if any, that is related to assets used but not in the Distribution Businesses regulatory asset base.
H40: 0 | I40: =SUM(H22:H28)-SUM(H10:I16) -> 0
H41: 0
H42: 0
H43: 0
H44: 0
H45: 0
H46: 0

Sheet 27. Safety and Bushfire
B1: Powercor
B2: Safety and Bushfire Related Expenditure
B3: =Cover!C26 -> 2013
B5: Instructions
B6: Please populate table 1 where the asset categories definitions differ from the "Asset Installation"' worksheet.
B7: The definitions in table 1 are not limited or restricted. Please include additional definitions where necessary.
B8: Median unit costs should be used. Where unit costs are not recorded at the asset category level - provide the best estimates of the unit cost using the cost allocation method outlined in table 1. As a transitional measure, the unit cost may be based on a
B9: Provide basis of allocation where applicable
B10: AER expected expenditure ($2010) means ESL and non ESL, ESMS related expected expenditure as approved under the AER Determination for 2011-15
B11: AER expected expenditure ($2010) means bushfire related expenditure as approved under the pass through application
B12: AER expected volumes means the bushfire related expenditure volumes approved under pass through applications.
B13: AER expected volumes means the ESL and non ESL and ESMS related volumes as approved under the AER Determination for 2011-15
B14: Replacement information to be reported concern the asset that has replaced an existing asset for bushfire and safety purposes.
B15: CPI applied to convert expenditure in real $2010 to nominal based on lagged September CPI index | C15: 1.085380726
B17: Table 1 Asset groups: Definitions, cost-allocation basis and methodology
B19: Asset group | C19: Category i.e., bushfire, ESMS, ESL or non-ESL | D19: Definitions | H19: Basis for allocation of cost to asset group or category
B20: Pole replacements (FC148) - subtransmission | C20: ESL | H20: Actual costs are captured at a composite project level including these and other physicals. Costs are allocated to function codes for settlement based on allocation rules. Allocation to voltages for poles is based on actual physicals completed.
B21: Pole replacements (FC148) - HV | C21: ESL
B22: Pole replacements (FC148) - LV | C22: ESL
B23: Pole replacements (FC148) - pole and stay | C23: ESL
B24: Pole replacements (FC149) - staked | C24: ESL
B25: Crossarm replacements (FC155) | C25: ESL
B26: HV overhead conductor replacements | C26: ESL | H26: Actual costs are captured at a function code level. Allocation to voltages is based on value of asset additions to various voltages
B27: LV overhead conductor replacements | C27: ESL
B28: Replacement of SWER with ABC/underground cabling | H28: 0
B29: Replacement of 22kV distribution feeders with ABC/underground cabling
B30: <DNSP to input as appropriate>
B34: Table 2 Bushfire-related expenditure - approved under pass-through applications (volumes)
B36: Asset group | C36: Units | D36: As approved under pass through applications | E36: Actual Units | F36: Variance | G36: Reasons for variance
B37: Pole replacements (FC148) - subtransmission | C37: no. of poles | F37: =E37-D37 -> 0
B38: Pole replacements (FC148) - HV | C38: no. of poles | F38: 0
B39: Pole replacements (FC148) - LV | C39: no. of poles | F39: 0
B40: Pole replacements (FC148) - pole and stay | C40: no. of poles | F40: 0
B41: Pole replacements (FC149) - staked | C41: no. of poles | F41: 0
B42: Crossarm replacements (FC155) | C42: no. of crossarms | F42: 0
B43: HV overhead conductor replacements | C43: no. of km | F43: 0
B44: LV overhead conductor replacements | C44: no. of km | F44: 0
B45: Replacement of SWER with ABC/underground cabling | C45: no. of km | F45: 0
B46: Replacement of 22kV distribution feeders with ABC/underground cabling | C46: no. of feeders | F46: 0
B47: VBRC Armour Rods and Dampers and Armour Rods (FC 167) | C47: Non compliant poles | D47: 44801 | E47: 34992 | F47: -9809 | G47: Resource ramp up program has different profile to original plan.
B48: VBRC SWER ACR (FC 167) Not Approved by pass through | C48: SWER ACRs | D48: 0 | E48: 10 | F48: 10 | G48: Stage 1 SWER ACR Program finalisation (not pass through)
B49: VBRC Spacers - Lidar Conductor Clearance Survey | C49: Kms | D49: 500 | E49: 37 | F49: -463 | G49: Program changed to suit successful tenderer availability to be completed 2014
B50: <DNSP to input as appropriate> | C50: <DNSP to input as appropriate> | F50: 0
B53: Table 3 Safety related other - ESL, non ESL and ESMS (volumes) - approved under AER determination for 2011-15
B55: Asset group | C55: Units | D55: AER expected volumes | E55: Actual Units | F55: Variance | G55: Reasons for variance
B56: Pole replacements (FC148) - subtransmission | C56: no. of poles | D56: 67.2 | E56: 48 | F56: =E56-D56 -> -19.2 | G56: Actuals driven by the Asset Inspection Program - EPDR values are estimates only
B57: Pole replacements (FC148) - HV | C57: no. of poles | D57: 662.4 | E57: 1046 | F57: =E57-D57 -> 383.6 | G57: Actuals driven by the Asset Inspection Program - EPDR values are estimates only
B58: Pole replacements (FC148) - LV | C58: no. of poles | D58: 211.2 | E58: 319 | F58: 107.8 | G58: Actuals driven by the Asset Inspection Program - EPDR values are estimates only
B59: Pole replacements (FC148) - pole and stay | C59: no. of poles | D59: 19.2 | E59: 16 | F59: -3.2 | G59: Actuals driven by the Asset Inspection Program - EPDR values are estimates only
B60: Pole replacements (FC149) - staked | C60: no. of poles | D60: 952 | E60: 1286 | F60: 334 | G60: Actuals driven by the Asset Inspection Program - EPDR values are estimates only
B61: Crossarm replacements (FC155) | C61: no. of crossarms | D61: 3200 | E61: 8653 | F61: 5453 | G61: Actuals driven by the Asset Inspection Program - EPDR values are estimates only
B62: HV overhead conductor replacements | C62: no. of km | D62: 480 | E62: 155.3 | F62: -324.7 | G62: The replacement of HV overhead conductor program is being reviewed in light of the Victorian Government’s Powerline Relocation Program outcomes. Further some of the expenditure originally assigned to this project has been redirected to install 189 SWER ACRs in accordance with ESV directives.
B63: LV overhead conductor replacements | C63: no. of km | D63: 4 | E63: 4.6 | F63: 0.6 | G63: Actuals driven by the Asset Inspection Program - EPDR values are estimates only
B64: Replacement of SWER with ABC/underground cabling | C64: no. of km | F64: 0 | G64: Not Applicable
B65: Replacement of 22kV distribution feeders with ABC/underground cabling | C65: no. of feeders | F65: 0 | G65: Not Applicable
B66: <DNSP to input as appropriate> | C66: <DNSP to input as appropriate> | F66: 0
B69: Table 4 Bushfire-related expenditure pass-through applications ($ nominal - excluding margins and overheads)
B71: Asset group | C71: As approved pass through ($'000 nominal) | D71: Actual ($'000 nominal) | E71: Variance ($'000 nominal) | F71: Reasons for variance
B72: Pole replacements (FC148) - subtransmission | E72: =C72-D72 -> 0
B73: Pole replacements (FC148) - HV | E73: 0
B74: Pole replacements (FC148) - LV | E74: 0
B75: Pole replacements (FC148) - pole and stay | E75: 0
B76: Pole replacements (FC149) - staked | E76: 0
B77: Crossarm replacements (FC155) | E77: 0
B78: HV overhead conductor replacements | E78: 0
B79: LV overhead conductor replacements | E79: 0
B80: Replacement of SWER with ABC/underground cabling | E80: 0
B81: Replacement of 22kV distribution feeders with ABC/underground cabling | E81: 0
B82: Armour Rods & Dampers Retrofit (pass through) | C82: 14108.65709 | D82: 16840.92221 | E82: -2732.265125 | F82: 0
B83: VBRC SWER ACR (FC 167) Not Approved by pass through | C83: 0 | D83: 515.8549428 | E83: -515.8549428 | F83: Not pass through
B84: VBRC Spacers - Lidar Conductor Clearance Survey | C84: 1170 | D84: 19.70631722 | E84: 1150.293683 | F84: Program changed to suit successful tenderer availability to be completed 2014
B85: <DNSP to input as appropriate> | E85: 0 | F85: 0
B87: Note - Reported expenditure is to be entered EXCLUDING any overheads, profit margins or management fees paid directly or indirectly to related party contractors for the report period.
B89: Table 5 Safety related other - ESL, non ESL and ESMS ($ nominal - excluding margins and overheads)
B91: Asset group | C91: Category i.e., ESMS, ESL or non-ESL | D91: AER expected expenditure ($ 2010) | E91: Actual ($'000 nominal) | F91: Variance ($'000 nominal) | G91: Reasons for variance
B92: Pole replacements (FC148) - subtransmission | C92: ESL | D92: 554.2954263 | E92: 527.8947235 | F92: =D92*$C$15-E92 -> 73.72684867 | G92: As per reasons provided in Tables 3 and 9
B93: Pole replacements (FC148) - HV | C93: ESL | D93: 5463.769202 | E93: 11503.70585 | F93: -5573.436066 | G93: As per reasons provided in Tables 3 and 9
B94: Pole replacements (FC148) - LV | C94: ESL | D94: 1742.07134 | E94: 3508.30035 | F94: -1617.489694 | G94: As per reasons provided in Tables 3 and 9
B95: Pole replacements (FC148) - pole and stay | C95: ESL | D95: 158.3701218 | E95: 175.9649078 | F95: -4.073030069 | G95: As per reasons provided in Tables 3 and 9
B96: Pole replacements (FC149) - staked | C96: ESL | D96: 1070.051937 | E96: 1025.2224 | F96: 136.1913484 | G96: As per reasons provided in Tables 3 and 9
B97: Crossarm replacements (FC155) | C97: ESL | D97: 6687.037213 | E97: 11822.64655 | F97: -4564.665246 | G97: As per reasons provided in Tables 3 and 9
B98: HV overhead conductor replacements | C98: ESL | D98: 22184.0088 | E98: 5298.270224 | F98: 18779.82535 | G98: As per reasons provided in Tables 3 and 9
B99: LV overhead conductor replacements | C99: ESL | D99: 184.86674 | E99: 2099.858846 | F99: -1899.208049 | G99: As per reasons provided in Tables 3 and 9
B100: Replacement of SWER with ABC/underground cabling | D100: 0 | E100: 0 | F100: 0 | G100: Not Applicable
B101: Replacement of 22kV distribution feeders with ABC/underground cabling | D101: 0 | E101: 0 | F101: 0 | G101: Not Applicable
B102: <DNSP to input as appropriate> | C102: <DNSP to input as appropriate> | F102: 0
B104: Note - Reported expenditure is to be entered EXCLUDING any overheads, profit margins or management fees paid directly or indirectly to related party contractors for the report period.
B106: Table 6 Bushfire-related expenditure pass-through applications ($ nominal - margins and overheads)
B108: Asset group | C108: As approved under pass through ($'000 nominal) | D108: Actual ($'000 nominal) | E108: Variance ($'000 nominal) | F108: Reasons for variance
B109: Pole replacements (FC148) - subtransmission | E109: =C109-D109 -> 0
B110: Pole replacements (FC148) - HV | E110: 0
B111: Pole replacements (FC148) - LV | E111: 0
B112: Pole replacements (FC148) - pole and stay | E112: 0
B113: Pole replacements (FC149) - staked | E113: 0
B114: Crossarm replacements (FC155) | E114: 0
B115: HV overhead conductor replacements | E115: 0
B116: Armour Rods & Dampers Retrofit (pass through) | C116: 0 | D116: 5700.66966 | E116: -5700.66966
B117: VBRC SWER ACR (FC 167) Not Approved by pass through | C117: 0 | D117: 57.24371722 | E117: -57.24371722
B118: VBRC Spacers - Lidar Conductor Clearance Survey | C118: 0 | D118: 6.65427278 | E118: -6.65427278
B119: <DNSP to input as appropriate> | E119: 0
B121: Note -Reported expenditure to be entered is the sum of overheads, profit margins or management fees paid directly or indirectly to related party contractors for the report period.
B123: Table 7 Safety related other - ESL, non ESL and ESMS ($ nominal - margins and overheads)
B125: Asset group | C125: Category i.e., ESMS, ESL or non-ESL | D125: AER expected expenditure ($'000 2010) | E125: Actual ($'000 nominal) | F125: Variance ($'000 nominal) | G125: Reasons for variance
B126: Pole replacements (FC148) - subtransmission | C126: ESL | D126: 90.91387494 | E126: 142.457539 | F126: =D126*$C$15-E126 -> -43.7813714 | G126: As per reasons provided in Tables 3 and 9
B127: Pole replacements (FC148) - HV | C127: ESL | D127: 896.151053 | E127: 3104.387204 | F127: -2131.722123 | G127: As per reasons provided in Tables 3 and 9
B128: Pole replacements (FC148) - LV | C128: ESL | D128: 285.7293213 | E128: 946.7490611 | F128: -636.623963 | G128: As per reasons provided in Tables 3 and 9
B129: Pole replacements (FC148) - pole and stay | C129: ESL | D129: 25.97539284 | E129: 47.48584633 | F129: -19.29265559 | G129: As per reasons provided in Tables 3 and 9
B130: Pole replacements (FC149) - staked | C130: ESL | D130: 192.2967494 | E130: 284.2533 | F130: -75.53811456 | G130: As per reasons provided in Tables 3 and 9
B131: Crossarm replacements (FC155) | C131: ESL | D131: 1049.341975 | E131: 3168.78727 | F131: -2029.851715 | G131: As per reasons provided in Tables 3 and 9
B132: HV overhead conductor replacements | C132: ESL | D132: 3939.615627 | E132: 1411.524599 | F132: 2864.45827 | G132: As per reasons provided in Tables 3 and 9
B133: LV overhead conductor replacements | C133: ESL | D133: 32.83013022 | E133: 559.4283209 | F133: -523.7951304 | G133: As per reasons provided in Tables 3 and 9
B134: Replacement of SWER with ABC/underground cabling | D134: 0 | E134: 0 | F134: 0 | G134: Not Applicable
B135: Replacement of 22kV distribution feeders with ABC/underground cabling | D135: 0 | E135: 0 | F135: 0 | G135: Not Applicable
B136: <DNSP to input as appropriate> | C136: <DNSP to input as appropriate> | F136: 0
B138: Note -Reported expenditure to be entered is the sum of overheads, profit margins or management fees paid directly or indirectly to related party contractors for the report period.
B140: Table 8 Bushfire-related expenditure including approved pass-through applications ($ unit cost)
B142: Asset group | C142: As approved under pass through applications ($'000 nominal) | D142: Actual ($'000 nominal) | E142: Variance ($'000 nominal) | F142: Reasons for variance
B143: Pole replacements (FC148) - subtransmission | E143: =C143-D143 -> 0
B144: Pole replacements (FC148) - HV | E144: 0
B145: Pole replacements (FC148) - LV | E145: 0
B146: Pole replacements (FC148) - pole and stay | E146: 0
B147: Pole replacements (FC149) - staked | E147: 0
B148: Crossarm replacements (FC155) | E148: 0
B149: HV overhead conductor replacements | E149: 0
B150: Armour Rods & Dampers Retrofit (pass through) | C150: 0.3149183519 | D150: 0.6441927261 | E150: -0.3292743741
B151: VBRC SWER ACR (FC 167) Not Approved by pass through | C151: 0 | D151: 57.309866 | E151: -57.309866
B152: VBRC Spacers - Lidar Conductor Clearance Survey | C152: 2.34 | D152: 0.7124483784 | E152: 1.627551622
B153: <DNSP to input as appropriate> | E153: 0
B155: Note - Where applicable, provide allocation assumptions and methods.
B156: Table 9 Safety related other - ESL, non ESL and ESMS ($ unit cost)
B158: Asset group | C158: Category i.e., ESMS, ESL or non-ESL | D158: AER expected expenditure ($ 2010) | E158: Actual ($'000 nominal) | F158: Variance ($'000 nominal) | G158: Reasons for variance
B159: Pole replacements (FC148) - subtransmission | C159: ESL | D159: 8.248443844 | E159: 10.99780674 | F159: =D159*$C$15-E159 -> -2.045104773 | G159: Average actual cost is derived from settlment rules applied to actual costs of composite maintenance packages including items in addition to poles. Average cost varies with mix of pole types, locations and acess conditions.
B160: Pole replacements (FC148) - HV | C160: ESL | D160: 8.248443844 | E160: 10.99780674 | F160: -2.045104773
B161: Pole replacements (FC148) - LV | C161: ESL | D161: 8.248443844 | E161: 10.99780674 | F161: -2.045104773
B162: Pole replacements (FC148) - pole and stay | C162: ESL | D162: 8.248443844 | E162: 10.99780674 | F162: -2.045104773
B163: Pole replacements (FC149) - staked | C163: ESL | D163: 1.124004136 | E163: 0.7972180404 | F163: 0.4227543844 | G163: No material variance
B164: Crossarm replacements (FC155) | C164: ESL | D164: 2.089699129 | E164: 1.366306085 | F164: 0.901813073 | G164: Average actual cost is derived from settlment rules applied to actual costs of composite maintenance packages including items in addition to cross arms Average cost varies with mix of cross arm types, locations and acess conditions.
B165: HV overhead conductor replacements | C165: ESL | D165: 46.216685 | F165: 50.16269911 | G165: Refer comments in table 3
B166: LV overhead conductor replacements | C166: ESL | D166: 46.216685 | F166: 50.16269911 | G166: Refer comments in table 3
B167: Replacement of SWER with ABC/underground cabling | F167: 0 | G167: Not Applicable
B168: Replacement of 22kV distribution feeders with ABC/underground cabling | F168: 0 | G168: Not Applicable
B169: <DNSP to input as appropriate> | C169: <DNSP to input as appropriate> | F169: 0

Sheet 29. Unmetered supply
B1: Powercor
B2: Unmetered Supply Tariff Quantity Data Template (Actual t-2)
B3: 0
D6: Qt-2
D7: NMIs | E7: Meters | F7: Lights
B8: Proposed tariff | D8: ActVolComp1 | E8: ActVolComp2 | F8: ActVolComp3
B9: metering data services - unmetered supplies | F9: 177718

Sheet 30. Actual t-2 Distr Tariff
B1: Powercor
B2: Tariff Quantity Data Template (Actual t-2) Distribution Tariff Revenue
B3: 0
D5: Distribution Tariffs (Pt-2) | Z5: Actual Quantities (Qt-2) (INCLUDING boundary load adjustment) | AW5: Actual Revenue (P-2)*(Qt-2)
B6: Tariffs t-2 | D6: (t-2)Tar Fixed | E6: (t-2)Tar PkBlk1 | F6: (t-2)Tar PkBlk2 | G6: (t-2)Tar PkBlk3 | H6: (t-2)Tar PkBlk4 | I6: (t-2)Tar OPkBlk1 | J6: (t-2)Tar OPkBlk2 | K6: (t-2)Tar OPkBlk3 | L6: (t-2)Tar OPkBlk4 | M6: (t-2)Tar DemBlk1 | N6: (t-2)Tar DemBlk2 | O6: (t-2)Tar DemBlk3 | P6: (t-2)Tar DemBlk4 | Q6: (t-2)Tar SumBlk1 | R6: (t-2)Tar SumBlk2 | S6: (t-2)Tar SumBlk3 | T6: (t-2)Tar SumBlk4 | U6: (t-2)Tar WtrBlk1 | V6: (t-2)Tar WtrBlk2 | W6: (t-2)Tar WtrBlk3 | X6: (t-2)Tar WtrBlk4 | Z6: ActVol Fixed | AA6: ActVol PkBlk1 | AB6: ActVol PkBlk2 | AC6: ActVol PkBlk3 | AD6: ActVol PkBlk4 | AE6: ActVol OPkBlk1 | AF6: ActVol OPkBlk2 | AG6: ActVol OPkBlk3 | AH6: ActVol OPkBlk4 | AI6: ActVol DemBlk1 | AJ6: ActVol DemBlk2 | AK6: ActVol DemBlk3 | AL6: ActVol DemBlk4 | AM6: ActVol SumBlk1 | AN6: ActVol SumBlk2 | AO6: ActVol SumBlk3 | AP6: ActVol SumBlk4 | AQ6: ActVol WtrBlk1 | AR6: ActVol WtrBlk2 | AS6: ActVol WtrBlk3 | AT6: ActVol WtrBlk4 | AW6: ActRev Fixed | AX6: ActRev PkBlk1 | AY6: ActRev PkBlk2 | AZ6: ActRev PkBlk3 | BA6: ActRev PkBlk4 | BB6: ActRev OPkBlk1 | BC6: ActRev OPkBlk2 | BD6: ActRev OPkBlk3 | BE6: ActRev OPkBlk4 | BF6: ActRev DemBlk1 | BG6: ActRev DemBlk2 | BH6: ActRev DemBlk3 | BI6: ActRev DemBlk4 | BJ6: ActRev SumBlk1 | BK6: ActRev SumBlk2 | BL6: ActRev SumBlk3 | BM6: ActRev SumBlk4 | BN6: ActRev WtrBlk1 | BO6: ActRev WtrBlk2 | BP6: ActRev WtrBlk3 | BQ6: ActRev WtrBlk4 | BR6: ActRev Total
A8: D1 | B8: Residential Single Rate | D8: 28.5201 | E8: 6.5053 | F8: 7.9191 | G8: 9.1318 | H8: 10.0732 | I8: 0 | J8: 0 | K8: 0 | L8: 0 | M8: 0 | N8: 0 | O8: 0 | P8: 0 | Q8: 0 | R8: 0 | S8: 0 | T8: 0 | U8: 0 | V8: 0 | W8: 0 | X8: 0 | Z8: 488961.5833 | AA8: 1498750537 | AB8: 590221441.1 | AC8: 15881114.58 | AD8: 2832561.329 | AE8: 0 | AF8: 0 | AG8: 0 | AH8: 0 | AI8: 0 | AJ8: 0 | AK8: 0 | AL8: 0 | AM8: 0 | AN8: 0 | AO8: 0 | AP8: 0 | AQ8: 0 | AR8: 0 | AS8: 0 | AW8: 13972391.05 | AX8: 97435154.54 | AY8: 46840098.69 | AZ8: 1463449.689 | BA8: 290777.8377 | BB8: 0 | BC8: 0 | BD8: 0 | BE8: 0 | BF8: 0 | BG8: 0 | BH8: 0 | BI8: 0 | BJ8: 0 | BK8: 0 | BL8: 0 | BM8: 0 | BN8: 0 | BO8: 0 | BP8: 0 | BQ8: 0 | BR8: =SUM(AW8:BQ8) -> 160001871.8
A9: D1CS | B9: Climate Saver | D9: 0 | E9: 7.2619 | F9: 8.5762 | G9: 9.8892 | H9: 11.2032 | I9: 3.4373 | J9: 0 | K9: 0 | L9: 0 | M9: 0 | N9: 0 | O9: 0 | P9: 0 | Q9: 0 | R9: 0 | S9: 0 | T9: 0 | U9: 0 | V9: 0 | W9: 0 | X9: 0 | Z9: 17268 | AA9: 8769848.466 | AB9: 2193024.651 | AC9: 43145.04377 | AD9: 304.1281154 | AE9: 15688768.02 | AF9: 0 | AG9: 0 | AH9: 0 | AI9: 0 | AJ9: 0 | AK9: 0 | AL9: 0 | AM9: 0 | AN9: 0 | AO9: 0 | AP9: 0 | AQ9: 0 | AR9: 0 | AS9: 0 | AW9: 0 | AX9: 627065.4465 | AY9: 186176.4851 | AZ9: 4281.964677 | BA9: 34.07647258 | BB9: 546901.4712 | BC9: 0 | BD9: 0 | BE9: 0 | BF9: 0 | BG9: 0 | BH9: 0 | BI9: 0 | BJ9: 0 | BK9: 0 | BL9: 0 | BM9: 0 | BN9: 0 | BO9: 0 | BP9: 0 | BQ9: 0 | BR9: =SUM(AW9:BQ9) -> 1364459.444
A10: D3CS | B10: Climate Saver Interval | D10: 0 | E10: 7.2619 | F10: 8.5762 | G10: 9.8892 | H10: 11.2032 | I10: 3.4373 | J10: 0 | K10: 0 | L10: 0 | M10: 0 | N10: 0 | O10: 0 | P10: 0 | Q10: 0 | R10: 0 | S10: 0 | T10: 0 | U10: 0 | V10: 0 | W10: 0 | X10: 0 | Z10: 4679.5 | AA10: 2464608.925 | AB10: 575760.9858 | AC10: 14761.15559 | AD10: 0 | AE10: 4874588.385 | AF10: 0 | AG10: 0 | AH10: 0 | AI10: 0 | AJ10: 0 | AK10: 0 | AL10: 0 | AM10: 0 | AN10: 0 | AO10: 0 | AP10: 0 | AQ10: 0 | AR10: 0 | AS10: 0 | AW10: 0 | AX10: 175942.0234 | AY10: 48448.19785 | AZ10: 1434.362157 | BA10: 0 | BB10: 170757.7385 | BC10: 0 | BD10: 0 | BE10: 0 | BF10: 0 | BG10: 0 | BH10: 0 | BI10: 0 | BJ10: 0 | BK10: 0 | BL10: 0 | BM10: 0 | BN10: 0 | BO10: 0 | BP10: 0 | BQ10: 0 | BR10: 396582.3219
A11: P13R | B11: Residential - Flexible Pricing | D11: 23.1916 | E11: 0 | F11: 0 | G11: 0 | H11: 0 | I11: 0 | J11: 0 | K11: 0 | L11: 0 | M11: 0 | N11: 0 | O11: 0 | P11: 0 | Q11: 11.1002 | R11: 4.1056 | S11: 1.1056 | T11: 0 | U11: 11.1002 | V11: 4.1056 | W11: 1.1056 | X11: 0 | Z11: 72.83333333 | AA11: 0 | AB11: 0 | AC11: 0 | AD11: 0 | AE11: 0 | AF11: 0 | AG11: 0 | AH11: 0 | AI11: 0 | AJ11: 0 | AK11: 0 | AL11: 0 | AM11: 18861.70558 | AN11: 42220.72588 | AO11: 29107.93621 | AP11: 0 | AQ11: 6218.526918 | AR11: 13889.74636 | AS11: 10803.30007 | AW11: 68.97380667 | AX11: 0 | AY11: 0 | AZ11: 0 | BA11: 0 | BB11: 0 | BC11: 0 | BD11: 0 | BE11: 0 | BF11: 0 | BG11: 0 | BH11: 0 | BI11: 0 | BJ11: 2085.239597 | BK11: 1733.728091 | BL11: 322.0028417 | BM11: 0 | BN11: 690.3826311 | BO11: 570.1970785 | BP11: 119.5190151 | BQ11: 0 | BR11: 5590.043061
A12: P13RDK | B12: Residential Docklands - Flexible Pricing | D12: 30.9016 | E12: 0 | F12: 0 | G12: 0 | H12: 0 | I12: 0 | J12: 0 | K12: 0 | L12: 0 | M12: 0 | N12: 0 | O12: 0 | P12: 0 | Q12: 10.5453 | R12: 4.0505 | S12: 1.0505 | T12: 0 | U12: 10.5453 | V12: 4.0505 | W12: 1.0505 | X12: 0 | Z12: 0 | AA12: 0 | AB12: 0 | AC12: 0 | AD12: 0 | AE12: 0 | AF12: 0 | AG12: 0 | AH12: 0 | AI12: 0 | AJ12: 0 | AK12: 0 | AL12: 0 | AM12: 0 | AN12: 0 | AO12: 0 | AP12: 0 | AQ12: 0 | AR12: 0 | AS12: 0 | AW12: 0 | AX12: 0 | AY12: 0 | AZ12: 0 | BA12: 0 | BB12: 0 | BC12: 0 | BD12: 0 | BE12: 0 | BF12: 0 | BG12: 0 | BH12: 0 | BI12: 0 | BJ12: 0 | BK12: 0 | BL12: 0 | BM12: 0 | BN12: 0 | BO12: 0 | BP12: 0 | BQ12: 0 | BR12: 0
A13: P13RCS | B13: Climate Saver - Flexible Pricing | D13: 0 | E13: 0 | F13: 0 | G13: 0 | H13: 0 | I13: 0 | J13: 0 | K13: 0 | L13: 0 | M13: 0 | N13: 0 | O13: 0 | P13: 0 | Q13: 7.2619 | R13: 0 | S13: 0 | T13: 0 | U13: 3.4373 | V13: 0 | W13: 0 | X13: 0 | Z13: 0 | AA13: 0 | AB13: 0 | AC13: 0 | AD13: 0 | AE13: 0 | AF13: 0 | AG13: 0 | AH13: 0 | AI13: 0 | AJ13: 0 | AK13: 0 | AL13: 0 | AM13: 0 | AN13: 0 | AO13: 0 | AP13: 0 | AQ13: 0 | AR13: 0 | AS13: 0 | AW13: 0 | AX13: 0 | AY13: 0 | AZ13: 0 | BA13: 0 | BB13: 0 | BC13: 0 | BD13: 0 | BE13: 0 | BF13: 0 | BG13: 0 | BH13: 0 | BI13: 0 | BJ13: 0 | BK13: 0 | BL13: 0 | BM13: 0 | BN13: 0 | BO13: 0 | BP13: 0 | BQ13: 0 | BR13: 0
A14: D2 | B14: Residential Two Rate 5d | D14: 35.2179 | E14: 11.7126 | F14: 13.19 | G14: 14.0542 | H14: 14.1484 | I14: 1.0993 | J14: 0 | K14: 0 | L14: 0 | M14: 0 | N14: 0 | O14: 0 | P14: 0 | Q14: 0 | R14: 0 | S14: 0 | T14: 0 | U14: 0 | V14: 0 | W14: 0 | X14: 0 | Z14: 46082.08333 | AA14: 109136399.2 | AB14: 21382486 | AC14: 734743.5095 | AD14: 165087.6166 | AE14: 209648291 | AF14: 0 | AG14: 0 | AH14: 0 | AI14: 0 | AJ14: 0 | AK14: 0 | AL14: 0 | AM14: 0 | AN14: 0 | AO14: 0 | AP14: 0 | AQ14: 0 | AR14: 0 | AS14: 0 | AW14: 1632097.769 | AX14: 12753488.93 | AY14: 2833345.866 | AZ14: 104751.4916 | BA14: 23783.74724 | BB14: 2310433.494 | BC14: 0 | BD14: 0 | BE14: 0 | BF14: 0 | BG14: 0 | BH14: 0 | BI14: 0 | BJ14: 0 | BK14: 0 | BL14: 0 | BM14: 0 | BN14: 0 | BO14: 0 | BP14: 0 | BQ14: 0 | BR14: 19657901.3
A15: D2DK | B15: Docklands Two Rate 5d | D15: 37.6168 | E15: 10.6467 | F15: 12.092 | G15: 13.0602 | H15: 14.1514 | I15: 1.1288 | J15: 0 | K15: 0 | L15: 0 | M15: 0 | N15: 0 | O15: 0 | P15: 0 | Q15: 0 | R15: 0 | S15: 0 | T15: 0 | U15: 0 | V15: 0 | W15: 0 | X15: 0 | Z15: 584.5 | AA15: 1674534.042 | AB15: 271304.9999 | AC15: 71272.37586 | AD15: 507.8640477 | AE15: 1965796.962 | AF15: 0 | AG15: 0 | AH15: 0 | AI15: 0 | AJ15: 0 | AK15: 0 | AL15: 0 | AM15: 0 | AN15: 0 | AO15: 0 | AP15: 0 | AQ15: 0 | AR15: 0 | AS15: 0 | AW15: 22118.12003 | AX15: 178468.9558 | AY15: 33040.44366 | AZ15: 9311.59389 | BA15: 71.8679659 | BB15: 22249.75914 | BC15: 0 | BD15: 0 | BE15: 0 | BF15: 0 | BG15: 0 | BH15: 0 | BI15: 0 | BJ15: 0 | BK15: 0 | BL15: 0 | BM15: 0 | BN15: 0 | BO15: 0 | BP15: 0 | BQ15: 0 | BR15: 265260.7405
A16: D3 | B16: Residential Interval | D16: 35.2179 | E16: 11.7126 | F16: 13.19 | G16: 14.0542 | H16: 14.1484 | I16: 1.0993 | J16: 0 | K16: 0 | L16: 0 | M16: 0 | N16: 0 | O16: 0 | P16: 0 | Q16: 0 | R16: 0 | S16: 0 | T16: 0 | U16: 0 | V16: 0 | W16: 0 | X16: 0 | Z16: 104338.6667 | AA16: 214269263.9 | AB16: 34321900.61 | AC16: 1498328.941 | AD16: 76651.82845 | AE16: 259625710.2 | AF16: 0 | AG16: 0 | AH16: 0 | AI16: 0 | AJ16: 0 | AK16: 0 | AL16: 0 | AM16: 0 | AN16: 0 | AO16: 0 | AP16: 0 | AQ16: 0 | AR16: 0 | AS16: 0 | AW16: 3719499.945 | AX16: 25071847.24 | AY16: 4536648.173 | AZ16: 210741.6817 | BA16: 10908.87406 | BB16: 2863446.578 | BC16: 0 | BD16: 0 | BE16: 0 | BF16: 0 | BG16: 0 | BH16: 0 | BI16: 0 | BJ16: 0 | BK16: 0 | BL16: 0 | BM16: 0 | BN16: 0 | BO16: 0 | BP16: 0 | BQ16: 0 | BR16: 36413092.49
A17: D2OP | B17: Residential Two Rate 5d - controlled load | D17: 0 | E17: 0 | F17: 0 | G17: 0 | H17: 0 | I17: 1.0993 | J17: 0 | K17: 0 | L17: 0 | M17: 0 | N17: 0 | O17: 0 | P17: 0 | Q17: 0 | R17: 0 | S17: 0 | T17: 0 | U17: 0 | V17: 0 | W17: 0 | X17: 0 | Z17: 0.25 | AA17: 0 | AB17: 0 | AC17: 0 | AD17: 0 | AE17: 579.2136789 | AF17: 0 | AG17: 0 | AH17: 0 | AI17: 0 | AJ17: 0 | AK17: 0 | AL17: 0 | AM17: 0 | AN17: 0 | AO17: 0 | AP17: 0 | AQ17: 0 | AR17: 0 | AS17: 0 | AW17: 0 | AX17: 0 | AY17: 0 | AZ17: 0 | BA17: 0 | BB17: 6.370721779 | BC17: 0 | BD17: 0 | BE17: 0 | BF17: 0 | BG17: 0 | BH17: 0 | BI17: 0 | BJ17: 0 | BK17: 0 | BL17: 0 | BM17: 0 | BN17: 0 | BO17: 0 | BP17: 0 | BQ17: 0 | BR17: 6.370721779
A18: D2DKOP | B18: Docklands Two Rate 5d - controlled load | D18: 0 | E18: 0 | F18: 0 | G18: 0 | H18: 0 | I18: 1.1288 | J18: 0 | K18: 0 | L18: 0 | M18: 0 | N18: 0 | O18: 0 | P18: 0 | Q18: 0 | R18: 0 | S18: 0 | T18: 0 | U18: 0 | V18: 0 | W18: 0 | X18: 0 | Z18: 0 | AA18: 0 | AB18: 0 | AC18: 0 | AD18: 0 | AE18: 0 | AF18: 0 | AG18: 0 | AH18: 0 | AI18: 0 | AJ18: 0 | AK18: 0 | AL18: 0 | AM18: 0 | AN18: 0 | AO18: 0 | AP18: 0 | AQ18: 0 | AR18: 0 | AS18: 0 | AW18: 0 | AX18: 0 | AY18: 0 | AZ18: 0 | BA18: 0 | BB18: 0 | BC18: 0 | BD18: 0 | BE18: 0 | BF18: 0 | BG18: 0 | BH18: 0 | BI18: 0 | BJ18: 0 | BK18: 0 | BL18: 0 | BM18: 0 | BN18: 0 | BO18: 0 | BP18: 0 | BQ18: 0 | BR18: 0
A19: DD1 | B19: Dedicated circuit | D19: 0 | E19: 0 | F19: 0 | G19: 0 | H19: 0 | I19: 0.3098 | J19: 0 | K19: 0 | L19: 0 | M19: 0 | N19: 0 | O19: 0 | P19: 0 | Q19: 0 | R19: 0 | S19: 0 | T19: 0 | U19: 0 | V19: 0 | W19: 0 | X19: 0 | Z19: 162826.3333 | AA19: 0 | AB19: 0 | AC19: 0 | AD19: 0 | AE19: 365500855.8 | AF19: 0 | AG19: 0 | AH19: 0 | AI19: 0 | AJ19: 0 | AK19: 0 | AL19: 0 | AM19: 0 | AN19: 0 | AO19: 0 | AP19: 0 | AQ19: 0 | AR19: 0 | AS19: 0 | AW19: 0 | AX19: 0 | AY19: 0 | AZ19: 0 | BA19: 0 | BB19: 1131500.802 | BC19: 0 | BD19: 0 | BE19: 0 | BF19: 0 | BG19: 0 | BH19: 0 | BI19: 0 | BJ19: 0 | BK19: 0 | BL19: 0 | BM19: 0 | BN19: 0 | BO19: 0 | BP19: 0 | BQ19: 0 | BR19: 1131500.802
A20: D3HW | B20: Hot Water Interval | D20: 0 | E20: 0 | F20: 0 | G20: 0 | H20: 0 | I20: 0.3098 | J20: 0 | K20: 0 | L20: 0 | M20: 0 | N20: 0 | O20: 0 | P20: 0 | Q20: 0 | R20: 0 | S20: 0 | T20: 0 | U20: 0 | V20: 0 | W20: 0 | X20: 0 | Z20: 5575.333333 | AA20: 0 | AB20: 0 | AC20: 0 | AD20: 0 | AE20: 11671669.59 | AF20: 0 | AG20: 0 | AH20: 0 | AI20: 0 | AJ20: 0 | AK20: 0 | AL20: 0 | AM20: 0 | AN20: 0 | AO20: 0 | AP20: 0 | AQ20: 0 | AR20: 0 | AS20: 0 | AW20: 0 | AX20: 0 | AY20: 0 | AZ20: 0 | BA20: 0 | BB20: 36000.24551 | BC20: 0 | BD20: 0 | BE20: 0 | BF20: 0 | BG20: 0 | BH20: 0 | BI20: 0 | BJ20: 0 | BK20: 0 | BL20: 0 | BM20: 0 | BN20: 0 | BO20: 0 | BP20: 0 | BQ20: 0 | BR20: 36000.24551
A21: ND1 | B21: Non-Residential Single Rate | D21: 27.9834 | E21: 6.6994 | F21: 7.9406 | G21: 9.4036 | H21: 10.6525 | I21: 0 | J21: 0 | K21: 0 | L21: 0 | M21: 0 | N21: 0 | O21: 0 | P21: 0 | Q21: 0 | R21: 0 | S21: 0 | T21: 0 | U21: 0 | V21: 0 | W21: 0 | X21: 0 | Z21: 41827.83333 | AA21: 84144870.11 | AB21: 104346063.4 | AC21: 57036153.67 | AD21: 18985242.88 | AE21: 0 | AF21: 0 | AG21: 0 | AH21: 0 | AI21: 0 | AJ21: 0 | AK21: 0 | AL21: 0 | AM21: 0 | AN21: 0 | AO21: 0 | AP21: 0 | AQ21: 0 | AR21: 0 | AS21: 0 | AW21: 1171043.652 | AX21: 5694949.969 | AY21: 8301259.988 | AZ21: 5372958.156 | BA21: 2029877.885 | BB21: 0 | BC21: 0 | BD21: 0 | BE21: 0 | BF21: 0 | BG21: 0 | BH21: 0 | BI21: 0 | BJ21: 0 | BK21: 0 | BL21: 0 | BM21: 0 | BN21: 0 | BO21: 0 | BP21: 0 | BQ21: 0 | BR21: 22570089.65
A22: ND2 | B22: Non-Residential Two Rate 5d | D22: 35.5786 | E22: 10.9256 | F22: 11.7704 | G22: 12.4218 | H22: 13.979 | I22: 0.9761 | J22: 0 | K22: 0 | L22: 0 | M22: 0 | N22: 0 | O22: 0 | P22: 0 | Q22: 0 | R22: 0 | S22: 0 | T22: 0 | U22: 0 | V22: 0 | W22: 0 | X22: 0 | Z22: 31830.33333 | AA22: 89083892.83 | AB22: 202019807.4 | AC22: 210235747 | AD22: 131164325 | AE22: 536194127.4 | AF22: 0 | AG22: 0 | AH22: 0 | AI22: 0 | AJ22: 0 | AK22: 0 | AL22: 0 | AM22: 0 | AN22: 0 | AO22: 0 | AP22: 0 | AQ22: 0 | AR22: 0 | AS22: 0 | AW22: 1136269.404 | AX22: 9763839.633 | AY22: 23839163.91 | AZ22: 26193287.56 | BA22: 18414457.29 | BB22: 5242421.353 | BC22: 0 | BD22: 0 | BE22: 0 | BF22: 0 | BG22: 0 | BH22: 0 | BI22: 0 | BJ22: 0 | BK22: 0 | BL22: 0 | BM22: 0 | BN22: 0 | BO22: 0 | BP22: 0 | BQ22: 0 | BR22: 84589439.14
A23: ND5 | B23: Non-Residential Interval | D23: 35.5786 | E23: 10.9256 | F23: 11.7704 | G23: 12.4218 | H23: 13.979 | I23: 0.9761 | J23: 0 | K23: 0 | L23: 0 | M23: 0 | N23: 0 | O23: 0 | P23: 0 | Q23: 0 | R23: 0 | S23: 0 | T23: 0 | U23: 0 | V23: 0 | W23: 0 | X23: 0 | Z23: 14428.41667 | AA23: 36959982.53 | AB23: 73426742.34 | AC23: 72932371.97 | AD23: 37183735.4 | AE23: 155461615 | AF23: 0 | AG23: 0 | AH23: 0 | AI23: 0 | AJ23: 0 | AK23: 0 | AL23: 0 | AM23: 0 | AN23: 0 | AO23: 0 | AP23: 0 | AQ23: 0 | AR23: 0 | AS23: 0 | AW23: 514931.4787 | AX23: 4040920.175 | AY23: 8647963.559 | AZ23: 9057552.308 | BA23: 5197919.995 | BB23: 1515227.505 | BC23: 0 | BD23: 0 | BE23: 0 | BF23: 0 | BG23: 0 | BH23: 0 | BI23: 0 | BJ23: 0 | BK23: 0 | BL23: 0 | BM23: 0 | BN23: 0 | BO23: 0 | BP23: 0 | BQ23: 0 | BR23: 28974515.02
A24: ND3 | B24: Non-Residential Two Rate 7d | D24: 37.4833 | E24: 8.5196 | F24: 9.2579 | G24: 10.6244 | H24: 11.7943 | I24: 1.079 | J24: 0 | K24: 0 | L24: 0 | M24: 0 | N24: 0 | O24: 0 | P24: 0 | Q24: 0 | R24: 0 | S24: 0 | T24: 0 | U24: 0 | V24: 0 | W24: 0 | X24: 0 | Z24: 8718.75 | AA24: 21349877.6 | AB24: 40452162.33 | AC24: 34917345.66 | AD24: 30049831 | AE24: 49568305.45 | AF24: 0 | AG24: 0 | AH24: 0 | AI24: 0 | AJ24: 0 | AK24: 0 | AL24: 0 | AM24: 0 | AN24: 0 | AO24: 0 | AP24: 0 | AQ24: 0 | AR24: 0 | AS24: 0 | AW24: 328332.7252 | AX24: 1822368.885 | AY24: 3754858.747 | AZ24: 3720334.077 | BA24: 3556367.933 | BB24: 539024.4645 | BC24: 0 | BD24: 0 | BE24: 0 | BF24: 0 | BG24: 0 | BH24: 0 | BI24: 0 | BJ24: 0 | BK24: 0 | BL24: 0 | BM24: 0 | BN24: 0 | BO24: 0 | BP24: 0 | BQ24: 0 | BR24: 13721286.83
A25: PL2 | B25: Public Lighting | D25: 0 | E25: 10.3715 | F25: 0 | G25: 0 | H25: 0 | I25: 2.6208 | J25: 0 | K25: 0 | L25: 0 | M25: 0 | N25: 0 | O25: 0 | P25: 0 | Q25: 0 | R25: 0 | S25: 0 | T25: 0 | U25: 0 | V25: 0 | W25: 0 | X25: 0 | Z25: 6357 | AA25: 29770081.69 | AB25: 0 | AC25: 0 | AD25: 0 | AE25: 74852064.14 | AF25: 0 | AG25: 0 | AH25: 0 | AI25: 0 | AJ25: 0 | AK25: 0 | AL25: 0 | AM25: 0 | AN25: 0 | AO25: 0 | AP25: 0 | AQ25: 0 | AR25: 0 | AS25: 0 | AW25: 0 | AX25: 3169173.877 | AY25: 0 | AZ25: 0 | BA25: 0 | BB25: 1868610.138 | BC25: 0 | BD25: 0 | BE25: 0 | BF25: 0 | BG25: 0 | BH25: 0 | BI25: 0 | BJ25: 0 | BK25: 0 | BL25: 0 | BM25: 0 | BN25: 0 | BO25: 0 | BP25: 0 | BQ25: 0 | BR25: 5037784.015
A26: DL | B26: Large Low Voltage Demand | D26: 0 | E26: 2.2805 | F26: 0 | G26: 0 | H26: 0 | I26: 1.3917 | J26: 0 | K26: 0 | L26: 0 | M26: 71.8764 | N26: 0 | O26: 0 | P26: 0 | Q26: 0 | R26: 0 | S26: 0 | T26: 0 | U26: 0 | V26: 0 | W26: 0 | X26: 0 | Z26: 864.8333333 | AA26: 641046469.8 | AB26: 0 | AC26: 0 | AD26: 0 | AE26: 503603748 | AF26: 0 | AG26: 0 | AH26: 0 | AI26: 417063.6972 | AJ26: 0 | AK26: 0 | AL26: 0 | AM26: 0 | AN26: 0 | AO26: 0 | AP26: 0 | AQ26: 0 | AR26: 0 | AS26: 0 | AW26: 0 | AX26: 14609025.17 | AY26: 0 | AZ26: 0 | BA26: 0 | BB26: 7003016.468 | BC26: 0 | BD26: 0 | BE26: 0 | BF26: 29270650.46 | BG26: 0 | BH26: 0 | BI26: 0 | BJ26: 0 | BK26: 0 | BL26: 0 | BM26: 0 | BN26: 0 | BO26: 0 | BP26: 0 | BQ26: 0 | BR26: 50882692.1
A27: DLA | B27: Large Low Voltage Demand A | D27: 0 | E27: 2.2805 | F27: 0 | G27: 0 | H27: 0 | I27: 1.3917 | J27: 0 | K27: 0 | L27: 0 | M27: 71.8764 | N27: 0 | O27: 0 | P27: 0 | Q27: 0 | R27: 0 | S27: 0 | T27: 0 | U27: 0 | V27: 0 | W27: 0 | X27: 0 | Z27: 0 | AA27: 1554.509292 | AB27: 0 | AC27: 0 | AD27: 0 | AE27: 1744.170634 | AF27: 0 | AG27: 0 | AH27: 0 | AI27: 0 | AJ27: 0 | AK27: 0 | AL27: 0 | AM27: 0 | AN27: 0 | AO27: 0 | AP27: 0 | AQ27: 0 | AR27: 0 | AS27: 0 | AW27: 0 | AX27: 36.2542657 | AY27: 0 | AZ27: 0 | BA27: 0 | BB27: 24.29629693 | BC27: 0 | BD27: 0 | BE27: 0 | BF27: 0 | BG27: 0 | BH27: 0 | BI27: 0 | BJ27: 0 | BK27: 0 | BL27: 0 | BM27: 0 | BN27: 0 | BO27: 0 | BP27: 0 | BQ27: 0 | BR27: 60.55056263
A28: DLC | B28: Large Low Voltage Demand C | D28: 0 | E28: 2.2894 | F28: 0 | G28: 0 | H28: 0 | I28: 1.294 | J28: 0 | K28: 0 | L28: 0 | M28: 68.5527 | N28: 0 | O28: 0 | P28: 0 | Q28: 0 | R28: 0 | S28: 0 | T28: 0 | U28: 0 | V28: 0 | W28: 0 | X28: 0 | Z28: 445 | AA28: 356472619.1 | AB28: 0 | AC28: 0 | AD28: 0 | AE28: 256180582.6 | AF28: 0 | AG28: 0 | AH28: 0 | AI28: 208522.8654 | AJ28: 0 | AK28: 0 | AL28: 0 | AM28: 0 | AN28: 0 | AO28: 0 | AP28: 0 | AQ28: 0 | AR28: 0 | AS28: 0 | AW28: 0 | AX28: 8156724.415 | AY28: 0 | AZ28: 0 | BA28: 0 | BB28: 3313499.655 | BC28: 0 | BD28: 0 | BE28: 0 | BF28: 13797348.95 | BG28: 0 | BH28: 0 | BI28: 0 | BJ28: 0 | BK28: 0 | BL28: 0 | BM28: 0 | BN28: 0 | BO28: 0 | BP28: 0 | BQ28: 0 | BR28: 25267573.03
A29: DLS | B29: Large Low Voltage Demand S | D29: 0 | E29: 2.5543 | F29: 0 | G29: 0 | H29: 0 | I29: 1.527 | J29: 0 | K29: 0 | L29: 0 | M29: 74.5322 | N29: 0 | O29: 0 | P29: 0 | Q29: 0 | R29: 0 | S29: 0 | T29: 0 | U29: 0 | V29: 0 | W29: 0 | X29: 0 | Z29: 48.83333333 | AA29: 15026429.07 | AB29: 0 | AC29: 0 | AD29: 0 | AE29: 10580933.37 | AF29: 0 | AG29: 0 | AH29: 0 | AI29: 11972.55433 | AJ29: 0 | AK29: 0 | AL29: 0 | AM29: 0 | AN29: 0 | AO29: 0 | AP29: 0 | AQ29: 0 | AR29: 0 | AS29: 0 | AW29: 0 | AX29: 383812.5144 | AY29: 0 | AZ29: 0 | BA29: 0 | BB29: 161551.2834 | BC29: 0 | BD29: 0 | BE29: 0 | BF29: 859372.0505 | BG29: 0 | BH29: 0 | BI29: 0 | BJ29: 0 | BK29: 0 | BL29: 0 | BM29: 0 | BN29: 0 | BO29: 0 | BP29: 0 | BQ29: 0 | BR29: 1404735.848
A30: DLDK | B30: Large Low Voltage Demand Docklands | D30: 0 | E30: 1.5319 | F30: 0 | G30: 0 | H30: 0 | I30: 1.3219 | J30: 0 | K30: 0 | L30: 0 | M30: 60.9467 | N30: 0 | O30: 0 | P30: 0 | Q30: 0 | R30: 0 | S30: 0 | T30: 0 | U30: 0 | V30: 0 | W30: 0 | X30: 0 | Z30: 7.916666667 | AA30: 3117592.188 | AB30: 0 | AC30: 0 | AD30: 0 | AE30: 3300719.235 | AF30: 0 | AG30: 0 | AH30: 0 | AI30: 1597.166667 | AJ30: 0 | AK30: 0 | AL30: 0 | AM30: 0 | AN30: 0 | AO30: 0 | AP30: 0 | AQ30: 0 | AR30: 0 | AS30: 0 | AW30: 0 | AX30: 47747.0752 | AY30: 0 | AZ30: 0 | BA30: 0 | BB30: 43634.45402 | BC30: 0 | BD30: 0 | BE30: 0 | BF30: 138782.3512 | BG30: 0 | BH30: 0 | BI30: 0 | BJ30: 0 | BK30: 0 | BL30: 0 | BM30: 0 | BN30: 0 | BO30: 0 | BP30: 0 | BQ30: 0 | BR30: 230163.8805
A31: DLCXX | B31: Large Low Voltage Demand CXX | D31: 0 | E31: 2.6669 | F31: 0 | G31: 0 | H31: 0 | I31: 1.5937 | J31: 0 | K31: 0 | L31: 0 | M31: 81.5519 | N31: 0 | O31: 0 | P31: 0 | Q31: 0 | R31: 0 | S31: 0 | T31: 0 | U31: 0 | V31: 0 | W31: 0 | X31: 0 | Z31: 1019.583333 | AA31: 239036380.8 | AB31: 0 | AC31: 0 | AD31: 0 | AE31: 178186558.9 | AF31: 0 | AG31: 0 | AH31: 0 | AI31: 165242.8369 | AJ31: 0 | AK31: 0 | AL31: 0 | AM31: 0 | AN31: 0 | AO31: 0 | AP31: 0 | AQ31: 0 | AR31: 0 | AS31: 0 | AW31: 0 | AX31: 6376047.894 | AY31: 0 | AZ31: 0 | BA31: 0 | BB31: 2839948.017 | BC31: 0 | BD31: 0 | BE31: 0 | BF31: 13194735.9 | BG31: 0 | BH31: 0 | BI31: 0 | BJ31: 0 | BK31: 0 | BL31: 0 | BM31: 0 | BN31: 0 | BO31: 0 | BP31: 0 | BQ31: 0 | BR31: 22410731.82
A32: DL.R | B32: Large Low Voltage Demand EN.R | D32: 0 | E32: 2.5248 | F32: 0 | G32: 0 | H32: 0 | I32: 1.555 | J32: 0 | K32: 0 | L32: 0 | M32: 78.5914 | N32: 0 | O32: 0 | P32: 0 | Q32: 0 | R32: 0 | S32: 0 | T32: 0 | U32: 0 | V32: 0 | W32: 0 | X32: 0 | Z32: 0 | AA32: 0 | AB32: 0 | AC32: 0 | AD32: 0 | AE32: 0 | AF32: 0 | AG32: 0 | AH32: 0 | AI32: 0 | AJ32: 0 | AK32: 0 | AL32: 0 | AM32: 0 | AN32: 0 | AO32: 0 | AP32: 0 | AQ32: 0 | AR32: 0 | AS32: 0 | AW32: 0 | AX32: 0 | AY32: 0 | AZ32: 0 | BA32: 0 | BB32: 0 | BC32: 0 | BD32: 0 | BE32: 0 | BF32: 0 | BG32: 0 | BH32: 0 | BI32: 0 | BJ32: 0 | BK32: 0 | BL32: 0 | BM32: 0 | BN32: 0 | BO32: 0 | BP32: 0 | BQ32: 0 | BR32: 0
A33: DL.NR | B33: Large Low Voltage Demand EN.NR | D33: 0 | E33: 2.5248 | F33: 0 | G33: 0 | H33: 0 | I33: 1.555 | J33: 0 | K33: 0 | L33: 0 | M33: 78.5914 | N33: 0 | O33: 0 | P33: 0 | Q33: 0 | R33: 0 | S33: 0 | T33: 0 | U33: 0 | V33: 0 | W33: 0 | X33: 0 | Z33: 23 | AA33: 31922766.46 | AB33: 0 | AC33: 0 | AD33: 0 | AE33: 20544154.8 | AF33: 0 | AG33: 0 | AH33: 0 | AI33: 18204.64133 | AJ33: 0 | AK33: 0 | AL33: 0 | AM33: 0 | AN33: 0 | AO33: 0 | AP33: 0 | AQ33: 0 | AR33: 0 | AS33: 0 | AW33: 0 | AX33: 805959.9001 | AY33: 0 | AZ33: 0 | BA33: 0 | BB33: 319407.2054 | BC33: 0 | BD33: 0 | BE33: 0 | BF33: 1378860.878 | BG33: 0 | BH33: 0 | BI33: 0 | BJ33: 0 | BK33: 0 | BL33: 0 | BM33: 0 | BN33: 0 | BO33: 0 | BP33: 0 | BQ33: 0 | BR33: 2504227.984
A34: DL.CXXR | B34: Large Low Voltage Demand EN.R CXX | D34: 0 | E34: 2.5248 | F34: 0 | G34: 0 | H34: 0 | I34: 2.0478 | J34: 0 | K34: 0 | L34: 0 | M34: 82.4805 | N34: 0 | O34: 0 | P34: 0 | Q34: 0 | R34: 0 | S34: 0 | T34: 0 | U34: 0 | V34: 0 | W34: 0 | X34: 0 | Z34: 3 | AA34: 1116066.491 | AB34: 0 | AC34: 0 | AD34: 0 | AE34: 473653.9242 | AF34: 0 | AG34: 0 | AH34: 0 | AI34: 683.4863333 | AJ34: 0 | AK34: 0 | AL34: 0 | AM34: 0 | AN34: 0 | AO34: 0 | AP34: 0 | AQ34: 0 | AR34: 0 | AS34: 0 | AW34: 0 | AX34: 28179.03681 | AY34: 0 | AZ34: 0 | BA34: 0 | BB34: 9699.368569 | BC34: 0 | BD34: 0 | BE34: 0 | BF34: 56386.92737 | BG34: 0 | BH34: 0 | BI34: 0 | BJ34: 0 | BK34: 0 | BL34: 0 | BM34: 0 | BN34: 0 | BO34: 0 | BP34: 0 | BQ34: 0 | BR34: 94265.33275
A35: DL.CXXNR | B35: Large Low Voltage Demand EN.NRCXX | D35: 0 | E35: 2.5248 | F35: 0 | G35: 0 | H35: 0 | I35: 2.0478 | J35: 0 | K35: 0 | L35: 0 | M35: 82.4805 | N35: 0 | O35: 0 | P35: 0 | Q35: 0 | R35: 0 | S35: 0 | T35: 0 | U35: 0 | V35: 0 | W35: 0 | X35: 0 | Z35: 4.583333333 | AA35: 2118570.845 | AB35: 0 | AC35: 0 | AD35: 0 | AE35: 1425170.591 | AF35: 0 | AG35: 0 | AH35: 0 | AI35: 1135.359667 | AJ35: 0 | AK35: 0 | AL35: 0 | AM35: 0 | AN35: 0 | AO35: 0 | AP35: 0 | AQ35: 0 | AR35: 0 | AS35: 0 | AW35: 0 | AX35: 53498.59614 | AY35: 0 | AZ35: 0 | BA35: 0 | BB35: 29141.72216 | BC35: 0 | BD35: 0 | BE35: 0 | BF35: 80357.50278 | BG35: 0 | BH35: 0 | BI35: 0 | BJ35: 0 | BK35: 0 | BL35: 0 | BM35: 0 | BN35: 0 | BO35: 0 | BP35: 0 | BQ35: 0 | BR35: 162997.8211
A36: DH | B36: High Voltage Demand | D36: 0 | E36: 1.4733 | F36: 0 | G36: 0 | H36: 0 | I36: 0.39 | J36: 0 | K36: 0 | L36: 0 | M36: 61.5354 | N36: 0 | O36: 0 | P36: 0 | Q36: 0 | R36: 0 | S36: 0 | T36: 0 | U36: 0 | V36: 0 | W36: 0 | X36: 0 | Z36: 111.25 | AA36: 491638563.6 | AB36: 0 | AC36: 0 | AD36: 0 | AE36: 443929044.4 | AF36: 0 | AG36: 0 | AH36: 0 | AI36: 271005.8853 | AJ36: 0 | AK36: 0 | AL36: 0 | AM36: 0 | AN36: 0 | AO36: 0 | AP36: 0 | AQ36: 0 | AR36: 0 | AS36: 0 | AW36: 0 | AX36: 7219591.558 | AY36: 0 | AZ36: 0 | BA36: 0 | BB36: 1728235.867 | BC36: 0 | BD36: 0 | BE36: 0 | BF36: 16212436.44 | BG36: 0 | BH36: 0 | BI36: 0 | BJ36: 0 | BK36: 0 | BL36: 0 | BM36: 0 | BN36: 0 | BO36: 0 | BP36: 0 | BQ36: 0 | BR36: 25160263.86
A37: DHA | B37: High Voltage Demand A | D37: 0 | E37: 0.8519 | F37: 0 | G37: 0 | H37: 0 | I37: 0.2513 | J37: 0 | K37: 0 | L37: 0 | M37: 33.1917 | N37: 0 | O37: 0 | P37: 0 | Q37: 0 | R37: 0 | S37: 0 | T37: 0 | U37: 0 | V37: 0 | W37: 0 | X37: 0 | Z37: 3 | AA37: 6374933.475 | AB37: 0 | AC37: 0 | AD37: 0 | AE37: 6365099.591 | AF37: 0 | AG37: 0 | AH37: 0 | AI37: 3962.666667 | AJ37: 0 | AK37: 0 | AL37: 0 | AM37: 0 | AN37: 0 | AO37: 0 | AP37: 0 | AQ37: 0 | AR37: 0 | AS37: 0 | AW37: 0 | AX37: 54241.65251 | AY37: 0 | AZ37: 0 | BA37: 0 | BB37: 15998.77898 | BC37: 0 | BD37: 0 | BE37: 0 | BF37: 119801.5575 | BG37: 0 | BH37: 0 | BI37: 0 | BJ37: 0 | BK37: 0 | BL37: 0 | BM37: 0 | BN37: 0 | BO37: 0 | BP37: 0 | BQ37: 0 | BR37: 190041.989
A38: DHC | B38: High Voltage Demand C | D38: 0 | E38: 1.4437 | F38: 0 | G38: 0 | H38: 0 | I38: 0.3847 | J38: 0 | K38: 0 | L38: 0 | M38: 59.6903 | N38: 0 | O38: 0 | P38: 0 | Q38: 0 | R38: 0 | S38: 0 | T38: 0 | U38: 0 | V38: 0 | W38: 0 | X38: 0 | Z38: 41 | AA38: 241115145.2 | AB38: 0 | AC38: 0 | AD38: 0 | AE38: 206818117.4 | AF38: 0 | AG38: 0 | AH38: 0 | AI38: 118039.1263 | AJ38: 0 | AK38: 0 | AL38: 0 | AM38: 0 | AN38: 0 | AO38: 0 | AP38: 0 | AQ38: 0 | AR38: 0 | AS38: 0 | AW38: 0 | AX38: 3479999.259 | AY38: 0 | AZ38: 0 | BA38: 0 | BB38: 795631.6248 | BC38: 0 | BD38: 0 | BE38: 0 | BF38: 6857154.267 | BG38: 0 | BH38: 0 | BI38: 0 | BJ38: 0 | BK38: 0 | BL38: 0 | BM38: 0 | BN38: 0 | BO38: 0 | BP38: 0 | BQ38: 0 | BR38: 11132785.15
A39: DHD1 | B39: High Voltage Demand D1 | D39: 0 | E39: 0.3654 | F39: 0 | G39: 0 | H39: 0 | I39: 0.1141 | J39: 0 | K39: 0 | L39: 0 | M39: 38.387 | N39: 0 | O39: 0 | P39: 0 | Q39: 0 | R39: 0 | S39: 0 | T39: 0 | U39: 0 | V39: 0 | W39: 0 | X39: 0 | Z39: 1 | AA39: 77353440.38 | AB39: 0 | AC39: 0 | AD39: 0 | AE39: 86446140.12 | AF39: 0 | AG39: 0 | AH39: 0 | AI39: 23472.00207 | AJ39: 0 | AK39: 0 | AL39: 0 | AM39: 0 | AN39: 0 | AO39: 0 | AP39: 0 | AQ39: 0 | AR39: 0 | AS39: 0 | AW39: 0 | AX39: 282479.7366 | AY39: 0 | AZ39: 0 | BA39: 0 | BB39: 98939.64911 | BC39: 0 | BD39: 0 | BE39: 0 | BF39: 900991.4364 | BG39: 0 | BH39: 0 | BI39: 0 | BJ39: 0 | BK39: 0 | BL39: 0 | BM39: 0 | BN39: 0 | BO39: 0 | BP39: 0 | BQ39: 0 | BR39: 1282410.822
A40: DHD2 | B40: High Voltage Demand D2 | D40: 0 | E40: 0.2027 | F40: 0 | G40: 0 | H40: 0 | I40: 0.2015 | J40: 0 | K40: 0 | L40: 0 | M40: 43.8713 | N40: 0 | O40: 0 | P40: 0 | Q40: 0 | R40: 0 | S40: 0 | T40: 0 | U40: 0 | V40: 0 | W40: 0 | X40: 0 | Z40: 1 | AA40: 36506880.52 | AB40: 0 | AC40: 0 | AD40: 0 | AE40: 39600200.46 | AF40: 0 | AG40: 0 | AH40: 0 | AI40: 12488.577 | AJ40: 0 | AK40: 0 | AL40: 0 | AM40: 0 | AN40: 0 | AO40: 0 | AP40: 0 | AQ40: 0 | AR40: 0 | AS40: 0 | AW40: 0 | AX40: 72868.74106 | AY40: 0 | AZ40: 0 | BA40: 0 | BB40: 79827.60233 | BC40: 0 | BD40: 0 | BE40: 0 | BF40: 547900.1606 | BG40: 0 | BH40: 0 | BI40: 0 | BJ40: 0 | BK40: 0 | BL40: 0 | BM40: 0 | BN40: 0 | BO40: 0 | BP40: 0 | BQ40: 0 | BR40: 700596.504
A41: DHDK | B41: High Voltage Demand Docklands | D41: 0 | E41: 0.9802 | F41: 0 | G41: 0 | H41: 0 | I41: 0.4844 | J41: 0 | K41: 0 | L41: 0 | M41: 31.1187 | N41: 0 | O41: 0 | P41: 0 | Q41: 0 | R41: 0 | S41: 0 | T41: 0 | U41: 0 | V41: 0 | W41: 0 | X41: 0 | Z41: 1 | AA41: 1480164.226 | AB41: 0 | AC41: 0 | AD41: 0 | AE41: 618308.9254 | AF41: 0 | AG41: 0 | AH41: 0 | AI41: 1000 | AJ41: 0 | AK41: 0 | AL41: 0 | AM41: 0 | AN41: 0 | AO41: 0 | AP41: 0 | AQ41: 0 | AR41: 0 | AS41: 0 | AW41: 0 | AX41: 14493.29045 | AY41: 0 | AZ41: 0 | BA41: 0 | BB41: 2995.08074 | BC41: 0 | BD41: 0 | BE41: 0 | BF41: 31115.72993 | BG41: 0 | BH41: 0 | BI41: 0 | BJ41: 0 | BK41: 0 | BL41: 0 | BM41: 0 | BN41: 0 | BO41: 0 | BP41: 0 | BQ41: 0 | BR41: 48604.10112
A42: DHD3 | B42: High Voltage Demand D3 | D42: 0 | E42: 1.0293 | F42: 0 | G42: 0 | H42: 0 | I42: 0.1287 | J42: 0 | K42: 0 | L42: 0 | M42: 42.9487 | N42: 0 | O42: 0 | P42: 0 | Q42: 0 | R42: 0 | S42: 0 | T42: 0 | U42: 0 | V42: 0 | W42: 0 | X42: 0 | Z42: 1 | AA42: 15667468.26 | AB42: 0 | AC42: 0 | AD42: 0 | AE42: 17542504.76 | AF42: 0 | AG42: 0 | AH42: 0 | AI42: 13522 | AJ42: 0 | AK42: 0 | AL42: 0 | AM42: 0 | AN42: 0 | AO42: 0 | AP42: 0 | AQ42: 0 | AR42: 0 | AS42: 0 | AW42: 0 | AX42: 161666.241 | AY42: 0 | AZ42: 0 | BA42: 0 | BB42: 22391.07018 | BC42: 0 | BD42: 0 | BE42: 0 | BF42: 580380.2796 | BG42: 0 | BH42: 0 | BI42: 0 | BJ42: 0 | BK42: 0 | BL42: 0 | BM42: 0 | BN42: 0 | BO42: 0 | BP42: 0 | BQ42: 0 | BR42: 764437.5907
A43: DHD4 | B43: High Voltage Demand D4 | D43: 0 | E43: 0.3811 | F43: 0 | G43: 0 | H43: 0 | I43: 0.1156 | J43: 0 | K43: 0 | L43: 0 | M43: 15.5398 | N43: 0 | O43: 0 | P43: 0 | Q43: 0 | R43: 0 | S43: 0 | T43: 0 | U43: 0 | V43: 0 | W43: 0 | X43: 0 | Z43: 0.1666666667 | AA43: 2117199.359 | AB43: 0 | AC43: 0 | AD43: 0 | AE43: 2828164.65 | AF43: 0 | AG43: 0 | AH43: 0 | AI43: 916.6666667 | AJ43: 0 | AK43: 0 | AL43: 0 | AM43: 0 | AN43: 0 | AO43: 0 | AP43: 0 | AQ43: 0 | AR43: 0 | AS43: 0 | AW43: 0 | AX43: 9313.792175 | AY43: 0 | AZ43: 0 | BA43: 0 | BB43: 3795.957564 | BC43: 0 | BD43: 0 | BE43: 0 | BF43: -401.156513 | BG43: 0 | BH43: 0 | BI43: 0 | BJ43: 0 | BK43: 0 | BL43: 0 | BM43: 0 | BN43: 0 | BO43: 0 | BP43: 0 | BQ43: 0 | BR43: 12708.59323
A44: DSA | B44: Subtransmission Demand A | D44: 0 | E44: 0.7416 | F44: 0 | G44: 0 | H44: 0 | I44: 0.034 | J44: 0 | K44: 0 | L44: 0 | M44: 5.6881 | N44: 0 | O44: 0 | P44: 0 | Q44: 0 | R44: 0 | S44: 0 | T44: 0 | U44: 0 | V44: 0 | W44: 0 | X44: 0 | Z44: 3 | AA44: 101590056.1 | AB44: 0 | AC44: 0 | AD44: 0 | AE44: 79455569.71 | AF44: 0 | AG44: 0 | AH44: 0 | AI44: 51000.30733 | AJ44: 0 | AK44: 0 | AL44: 0 | AM44: 0 | AN44: 0 | AO44: 0 | AP44: 0 | AQ44: 0 | AR44: 0 | AS44: 0 | AW44: 0 | AX44: 752173.6871 | AY44: 0 | AZ44: 0 | BA44: 0 | BB44: 27952.82922 | BC44: 0 | BD44: 0 | BE44: 0 | BF44: 260691.0647 | BG44: 0 | BH44: 0 | BI44: 0 | BJ44: 0 | BK44: 0 | BL44: 0 | BM44: 0 | BN44: 0 | BO44: 0 | BP44: 0 | BQ44: 0 | BR44: 1040817.581
A45: DSG | B45: Subtransmission Demand G | D45: 0 | E45: 0.7478 | F45: 0 | G45: 0 | H45: 0 | I45: 0.034 | J45: 0 | K45: 0 | L45: 0 | M45: 5.6881 | N45: 0 | O45: 0 | P45: 0 | Q45: 0 | R45: 0 | S45: 0 | T45: 0 | U45: 0 | V45: 0 | W45: 0 | X45: 0 | Z45: 8 | AA45: 289961259.5 | AB45: 0 | AC45: 0 | AD45: 0 | AE45: 316468001.8 | AF45: 0 | AG45: 0 | AH45: 0 | AI45: 199917.5869 | AJ45: 0 | AK45: 0 | AL45: 0 | AM45: 0 | AN45: 0 | AO45: 0 | AP45: 0 | AQ45: 0 | AR45: 0 | AS45: 0 | AW45: 0 | AX45: 2164324.555 | AY45: 0 | AZ45: 0 | BA45: 0 | BB45: 109229.545 | BC45: 0 | BD45: 0 | BE45: 0 | BF45: 1098105.291 | BG45: 0 | BH45: 0 | BI45: 0 | BJ45: 0 | BK45: 0 | BL45: 0 | BM45: 0 | BN45: 0 | BO45: 0 | BP45: 0 | BQ45: 0 | BR45: 3371659.391
A46: DSS | B46: Subtransmission Demand S | D46: 0 | E46: 0.7441 | F46: 0 | G46: 0 | H46: 0 | I46: 0.0328 | J46: 0 | K46: 0 | L46: 0 | M46: 5.7246 | N46: 0 | O46: 0 | P46: 0 | Q46: 0 | R46: 0 | S46: 0 | T46: 0 | U46: 0 | V46: 0 | W46: 0 | X46: 0 | Z46: 2 | AA46: 151344015.1 | AB46: 0 | AC46: 0 | AD46: 0 | AE46: 211924025.7 | AF46: 0 | AG46: 0 | AH46: 0 | AI46: 109485.296 | AJ46: 0 | AK46: 0 | AL46: 0 | AM46: 0 | AN46: 0 | AO46: 0 | AP46: 0 | AQ46: 0 | AR46: 0 | AS46: 0 | AW46: 0 | AX46: 1111044.268 | AY46: 0 | AZ46: 0 | BA46: 0 | BB46: 67578.92176 | BC46: 0 | BD46: 0 | BE46: 0 | BF46: 464561.9941 | BG46: 0 | BH46: 0 | BI46: 0 | BJ46: 0 | BK46: 0 | BL46: 0 | BM46: 0 | BN46: 0 | BO46: 0 | BP46: 0 | BQ46: 0 | BR46: 1643185.184
BR47: 0
BR48: 0
BR49: 0
BR50: 0
BR51: 0
BR52: 0
BR53: 0
BR54: 0
BR55: 0
BR56: 0
BR57: 0
BR58: 0
BR59: 0
BR60: 0
BR61: 0
BR62: 0
BR63: 0
BR64: 0
BR65: 0
BR66: =SUM(AW66:BQ66) -> 0
Z67: =SUM(Z7:Z66) -> 936140.5833 | AA67: 4801381471 | AB67: 1069210694 | AC67: 393364983.9 | AD67: 220458247 | AE67: 4071344814 | AF67: 0 | AG67: 0 | AH67: 0 | AI67: 1629232.722 | AJ67: 0 | AK67: 0 | AL67: 0 | AM67: 18861.70558 | AN67: 42220.72588 | AO67: 29107.93621 | AP67: 0 | AQ67: 6218.526918 | AR67: 13889.74636 | AS67: 10803.30007 | AT67: 0 | AW67: =SUM(AW7:AW66) -> 22496753.12 | AX67: 206516447.3 | AY67: 99021004.06 | AZ67: 46138102.88 | BA67: 29524199.5 | BB67: 32919079.32 | BC67: 0 | BD67: 0 | BE67: 0 | BF67: 85849232.1 | BG67: 0 | BH67: 0 | BI67: 0 | BJ67: 2085.239597 | BK67: 1733.728091 | BL67: 322.0028417 | BM67: 0 | BN67: 690.3826311 | BO67: 570.1970785 | BP67: 119.5190151 | BQ67: 0 | BR67: =SUM(AW67:BQ67) -> 522470339.4

Sheet 31. Actual t-2 Trans Tariff
B1: Powercor
B2: Tariff Quantity Data Template (Actual t-2) Transmission Tariff Revenue
B3: 0
D5: Transmission Tariffs (Pt-2) | Z5: Actual Quantities (Qt-2) (INCLUDING boundary load adjustment) | AW5: Actual Revenue (P-2)*(Qt-2)
B6: Tariffs t-2 | D6: (t-2)Tar Fixed | E6: (t-2)Tar PkBlk1 | F6: (t-2)Tar PkBlk2 | G6: (t-2)Tar PkBlk3 | H6: (t-2)Tar PkBlk4 | I6: (t-2)Tar OPkBlk1 | J6: (t-2)Tar OPkBlk2 | K6: (t-2)Tar OPkBlk3 | L6: (t-2)Tar OPkBlk4 | M6: (t-2)Tar DemBlk1 | N6: (t-2)Tar DemBlk2 | O6: (t-2)Tar DemBlk3 | P6: (t-2)Tar DemBlk4 | Q6: (t-2)Tar SumBlk1 | R6: (t-2)Tar SumBlk2 | S6: (t-2)Tar SumBlk3 | T6: (t-2)Tar SumBlk4 | U6: (t-2)Tar WtrBlk1 | V6: (t-2)Tar WtrBlk2 | W6: (t-2)Tar WtrBlk3 | X6: (t-2)Tar WtrBlk4 | Z6: ActVol Fixed | AA6: ActVol PkBlk1 | AB6: ActVol PkBlk2 | AC6: ActVol PkBlk3 | AD6: ActVol PkBlk4 | AE6: ActVol OPkBlk1 | AF6: ActVol OPkBlk2 | AG6: ActVol OPkBlk3 | AH6: ActVol OPkBlk4 | AI6: ActVol DemBlk1 | AJ6: ActVol DemBlk2 | AK6: ActVol DemBlk3 | AL6: ActVol DemBlk4 | AM6: ActVol SumBlk1 | AN6: ActVol SumBlk2 | AO6: ActVol SumBlk3 | AP6: ActVol SumBlk4 | AQ6: ActVol WtrBlk1 | AR6: ActVol WtrBlk2 | AS6: ActVol WtrBlk3 | AT6: ActVol WtrBlk4 | AW6: ActRev Fixed | AX6: ActRev PkBlk1 | AY6: ActRev PkBlk2 | AZ6: ActRev PkBlk3 | BA6: ActRev PkBlk4 | BB6: ActRev OPkBlk1 | BC6: ActRev OPkBlk2 | BD6: ActRev OPkBlk3 | BE6: ActRev OPkBlk4 | BF6: ActRev DemBlk1 | BG6: ActRev DemBlk2 | BH6: ActRev DemBlk3 | BI6: ActRev DemBlk4 | BJ6: ActRev SumBlk1 | BK6: ActRev SumBlk2 | BL6: ActRev SumBlk3 | BM6: ActRev SumBlk4 | BN6: ActRev WtrBlk1 | BO6: ActRev WtrBlk2 | BP6: ActRev WtrBlk3 | BQ6: ActRev WtrBlk4 | BR6: ActRev Total
A8: D1 | B8: Residential Single Rate | D8: 12.1684 | E8: 1.0209 | F8: 1.0209 | G8: 1.0209 | H8: 1.0209 | I8: 0 | J8: 0 | K8: 0 | L8: 0 | M8: 0 | N8: 0 | O8: 0 | P8: 0 | Q8: 0 | R8: 0 | S8: 0 | T8: 0 | U8: 0 | V8: 0 | W8: 0 | Z8: 488961.5833 | AA8: 1498750537 | AB8: 590221441.1 | AC8: 15881114.58 | AD8: 2832561.329 | AE8: 0 | AF8: 0 | AG8: 0 | AH8: 0 | AI8: 0 | AJ8: 0 | AK8: 0 | AL8: 0 | AM8: 0 | AN8: 0 | AO8: 0 | AP8: 0 | AQ8: 0 | AR8: 0 | AS8: 0 | AW8: 5949880.131 | AX8: 15300744.23 | AY8: 6025570.692 | AZ8: 162130.2987 | BA8: 28917.61861 | BB8: 0 | BC8: 0 | BD8: 0 | BE8: 0 | BF8: 0 | BG8: 0 | BH8: 0 | BI8: 0 | BJ8: 0 | BK8: 0 | BL8: 0 | BM8: 0 | BN8: 0 | BO8: 0 | BP8: 0 | BQ8: 0 | BR8: =SUM(AW8:BQ8) -> 27467242.97
A9: D1CS | B9: Climate Saver | D9: 0 | E9: 1.0525 | F9: 1.0525 | G9: 1.0525 | H9: 1.0525 | I9: 0.557 | J9: 0 | K9: 0 | L9: 0 | M9: 0 | N9: 0 | O9: 0 | P9: 0 | Q9: 0 | R9: 0 | S9: 0 | T9: 0 | U9: 0 | V9: 0 | W9: 0 | Z9: 17268 | AA9: 8769848.466 | AB9: 2193024.651 | AC9: 43145.04377 | AD9: 304.1281154 | AE9: 15688768.02 | AF9: 0 | AG9: 0 | AH9: 0 | AI9: 0 | AJ9: 0 | AK9: 0 | AL9: 0 | AM9: 0 | AN9: 0 | AO9: 0 | AP9: 0 | AQ9: 0 | AR9: 0 | AS9: 0 | AW9: 0 | AX9: 92302.6551 | AY9: 23081.58445 | AZ9: 454.1015856 | BA9: 3.200948415 | BB9: 87386.43787 | BC9: 0 | BD9: 0 | BE9: 0 | BF9: 0 | BG9: 0 | BH9: 0 | BI9: 0 | BJ9: 0 | BK9: 0 | BL9: 0 | BM9: 0 | BN9: 0 | BO9: 0 | BP9: 0 | BQ9: 0 | BR9: 203227.98
A10: D3CS | B10: Climate Saver Interval | D10: 0 | E10: 1.0525 | F10: 1.0525 | G10: 1.0525 | H10: 1.0525 | I10: 0.557 | J10: 0 | K10: 0 | L10: 0 | M10: 0 | N10: 0 | O10: 0 | P10: 0 | Q10: 0 | R10: 0 | S10: 0 | T10: 0 | U10: 0 | V10: 0 | W10: 0 | Z10: 4679.5 | AA10: 2464608.925 | AB10: 575760.9858 | AC10: 14761.15559 | AD10: 0 | AE10: 4874588.385 | AF10: 0 | AG10: 0 | AH10: 0 | AI10: 0 | AJ10: 0 | AK10: 0 | AL10: 0 | AM10: 0 | AN10: 0 | AO10: 0 | AP10: 0 | AQ10: 0 | AR10: 0 | AS10: 0 | AW10: 0 | AX10: 25940.00893 | AY10: 6059.884375 | AZ10: 155.3611626 | BA10: 0 | BB10: 27151.4573 | BC10: 0 | BD10: 0 | BE10: 0 | BF10: 0 | BG10: 0 | BH10: 0 | BI10: 0 | BJ10: 0 | BK10: 0 | BL10: 0 | BM10: 0 | BN10: 0 | BO10: 0 | BP10: 0 | BQ10: 0 | BR10: 59306.71177
A11: P13R | B11: Residential - Flexible Pricing | D11: 14.4877 | E11: 0 | F11: 0 | G11: 0 | H11: 0 | I11: 0 | J11: 0 | K11: 0 | L11: 0 | M11: 0 | N11: 0 | O11: 0 | P11: 0 | Q11: 1.1983 | R11: 0.8936 | S11: 0.5003 | T11: 0 | U11: 1.1983 | V11: 0.8936 | W11: 0.5003 | Z11: 72.83333333 | AA11: 0 | AB11: 0 | AC11: 0 | AD11: 0 | AE11: 0 | AF11: 0 | AG11: 0 | AH11: 0 | AI11: 0 | AJ11: 0 | AK11: 0 | AL11: 0 | AM11: 18861.70558 | AN11: 42220.72588 | AO11: 29107.93621 | AP11: 0 | AQ11: 6218.526918 | AR11: 13889.74636 | AS11: 10803.30007 | AW11: 1055.187483 | AX11: 0 | AY11: 0 | AZ11: 0 | BA11: 0 | BB11: 0 | BC11: 0 | BD11: 0 | BE11: 0 | BF11: 0 | BG11: 0 | BH11: 0 | BI11: 0 | BJ11: 226.0198179 | BK11: 377.2844065 | BL11: 145.6270048 | BM11: 0 | BN11: 74.51660806 | BO11: 124.1187735 | BP11: 54.04891026 | BQ11: 0 | BR11: 2056.803004
A12: P13RDK | B12: Residential Docklands - Flexible Pricing | D12: 14.7166 | E12: 0 | F12: 0 | G12: 0 | H12: 0 | I12: 0 | J12: 0 | K12: 0 | L12: 0 | M12: 0 | N12: 0 | O12: 0 | P12: 0 | Q12: 1.1168 | R12: 0.8436 | S12: 0.4997 | T12: 0 | U12: 1.1168 | V12: 0.8436 | W12: 0.4997 | Z12: 0 | AA12: 0 | AB12: 0 | AC12: 0 | AD12: 0 | AE12: 0 | AF12: 0 | AG12: 0 | AH12: 0 | AI12: 0 | AJ12: 0 | AK12: 0 | AL12: 0 | AM12: 0 | AN12: 0 | AO12: 0 | AP12: 0 | AQ12: 0 | AR12: 0 | AS12: 0 | AW12: 0 | AX12: 0 | AY12: 0 | AZ12: 0 | BA12: 0 | BB12: 0 | BC12: 0 | BD12: 0 | BE12: 0 | BF12: 0 | BG12: 0 | BH12: 0 | BI12: 0 | BJ12: 0 | BK12: 0 | BL12: 0 | BM12: 0 | BN12: 0 | BO12: 0 | BP12: 0 | BQ12: 0 | BR12: 0
A13: P13RCS | B13: Climate Saver - Flexible Pricing | D13: 0 | E13: 0 | F13: 0 | G13: 0 | H13: 0 | I13: 0 | J13: 0 | K13: 0 | L13: 0 | M13: 0 | N13: 0 | O13: 0 | P13: 0 | Q13: 1.1693 | R13: 0 | S13: 0 | T13: 0 | U13: 0.557 | V13: 0 | W13: 0 | Z13: 0 | AA13: 0 | AB13: 0 | AC13: 0 | AD13: 0 | AE13: 0 | AF13: 0 | AG13: 0 | AH13: 0 | AI13: 0 | AJ13: 0 | AK13: 0 | AL13: 0 | AM13: 0 | AN13: 0 | AO13: 0 | AP13: 0 | AQ13: 0 | AR13: 0 | AS13: 0 | AW13: 0 | AX13: 0 | AY13: 0 | AZ13: 0 | BA13: 0 | BB13: 0 | BC13: 0 | BD13: 0 | BE13: 0 | BF13: 0 | BG13: 0 | BH13: 0 | BI13: 0 | BJ13: 0 | BK13: 0 | BL13: 0 | BM13: 0 | BN13: 0 | BO13: 0 | BP13: 0 | BQ13: 0 | BR13: 0
A14: D2 | B14: Residential Two Rate 5d | D14: 14.4884 | E14: 0.7494 | F14: 0.7494 | G14: 0.7494 | H14: 0.7494 | I14: 0.6269 | J14: 0 | K14: 0 | L14: 0 | M14: 0 | N14: 0 | O14: 0 | P14: 0 | Q14: 0 | R14: 0 | S14: 0 | T14: 0 | U14: 0 | V14: 0 | W14: 0 | Z14: 46082.08333 | AA14: 109136399.2 | AB14: 21382486 | AC14: 734743.5095 | AD14: 165087.6166 | AE14: 209648291 | AF14: 0 | AG14: 0 | AH14: 0 | AI14: 0 | AJ14: 0 | AK14: 0 | AL14: 0 | AM14: 0 | AN14: 0 | AO14: 0 | AP14: 0 | AQ14: 0 | AR14: 0 | AS14: 0 | AW14: 667655.6562 | AX14: 817868.1757 | AY14: 160240.3501 | AZ14: 5506.16786 | BA14: 1237.166599 | BB14: 1314285.136 | BC14: 0 | BD14: 0 | BE14: 0 | BF14: 0 | BG14: 0 | BH14: 0 | BI14: 0 | BJ14: 0 | BK14: 0 | BL14: 0 | BM14: 0 | BN14: 0 | BO14: 0 | BP14: 0 | BQ14: 0 | BR14: 2966792.653
A15: D2DK | B15: Docklands Two Rate 5d | D15: 14.7174 | E15: 1.0419 | F15: 1.0419 | G15: 1.0419 | H15: 1.0419 | I15: 0.6963 | J15: 0 | K15: 0 | L15: 0 | M15: 0 | N15: 0 | O15: 0 | P15: 0 | Q15: 0 | R15: 0 | S15: 0 | T15: 0 | U15: 0 | V15: 0 | W15: 0 | Z15: 584.5 | AA15: 1674534.042 | AB15: 271304.9999 | AC15: 71272.37586 | AD15: 507.8640477 | AE15: 1965796.962 | AF15: 0 | AG15: 0 | AH15: 0 | AI15: 0 | AJ15: 0 | AK15: 0 | AL15: 0 | AM15: 0 | AN15: 0 | AO15: 0 | AP15: 0 | AQ15: 0 | AR15: 0 | AS15: 0 | AW15: 8602.3203 | AX15: 17446.97019 | AY15: 2826.726794 | AZ15: 742.5868841 | BA15: 5.291435513 | BB15: 13687.84424 | BC15: 0 | BD15: 0 | BE15: 0 | BF15: 0 | BG15: 0 | BH15: 0 | BI15: 0 | BJ15: 0 | BK15: 0 | BL15: 0 | BM15: 0 | BN15: 0 | BO15: 0 | BP15: 0 | BQ15: 0 | BR15: 43311.73985
A16: D3 | B16: Residential Interval | D16: 14.4884 | E16: 0.7494 | F16: 0.7494 | G16: 0.7494 | H16: 0.7494 | I16: 0.6269 | J16: 0 | K16: 0 | L16: 0 | M16: 0 | N16: 0 | O16: 0 | P16: 0 | Q16: 0 | R16: 0 | S16: 0 | T16: 0 | U16: 0 | V16: 0 | W16: 0 | Z16: 104338.6667 | AA16: 214269263.9 | AB16: 34321900.61 | AC16: 1498328.941 | AD16: 76651.82845 | AE16: 259625710.2 | AF16: 0 | AG16: 0 | AH16: 0 | AI16: 0 | AJ16: 0 | AK16: 0 | AL16: 0 | AM16: 0 | AN16: 0 | AO16: 0 | AP16: 0 | AQ16: 0 | AR16: 0 | AS16: 0 | AW16: 1511700.338 | AX16: 1605733.863 | AY16: 257208.3232 | AZ16: 11228.47709 | BA16: 574.4288024 | BB16: 1627593.577 | BC16: 0 | BD16: 0 | BE16: 0 | BF16: 0 | BG16: 0 | BH16: 0 | BI16: 0 | BJ16: 0 | BK16: 0 | BL16: 0 | BM16: 0 | BN16: 0 | BO16: 0 | BP16: 0 | BQ16: 0 | BR16: 5014039.008
A17: D2OP | B17: Residential Two Rate 5d - controlled load | D17: 0 | E17: 0 | F17: 0 | G17: 0 | H17: 0 | I17: 0.6269 | J17: 0 | K17: 0 | L17: 0 | M17: 0 | N17: 0 | O17: 0 | P17: 0 | Q17: 0 | R17: 0 | S17: 0 | T17: 0 | U17: 0 | V17: 0 | W17: 0 | Z17: 0.25 | AA17: 0 | AB17: 0 | AC17: 0 | AD17: 0 | AE17: 579.2136789 | AF17: 0 | AG17: 0 | AH17: 0 | AI17: 0 | AJ17: 0 | AK17: 0 | AL17: 0 | AM17: 0 | AN17: 0 | AO17: 0 | AP17: 0 | AQ17: 0 | AR17: 0 | AS17: 0 | AW17: 0 | AX17: 0 | AY17: 0 | AZ17: 0 | BA17: 0 | BB17: 3.631090553 | BC17: 0 | BD17: 0 | BE17: 0 | BF17: 0 | BG17: 0 | BH17: 0 | BI17: 0 | BJ17: 0 | BK17: 0 | BL17: 0 | BM17: 0 | BN17: 0 | BO17: 0 | BP17: 0 | BQ17: 0 | BR17: 3.631090553
A18: D2DKOP | B18: Docklands Two Rate 5d - controlled load | D18: 0 | E18: 0 | F18: 0 | G18: 0 | H18: 0 | I18: 0.6963 | J18: 0 | K18: 0 | L18: 0 | M18: 0 | N18: 0 | O18: 0 | P18: 0 | Q18: 0 | R18: 0 | S18: 0 | T18: 0 | U18: 0 | V18: 0 | W18: 0 | Z18: 0 | AA18: 0 | AB18: 0 | AC18: 0 | AD18: 0 | AE18: 0 | AF18: 0 | AG18: 0 | AH18: 0 | AI18: 0 | AJ18: 0 | AK18: 0 | AL18: 0 | AM18: 0 | AN18: 0 | AO18: 0 | AP18: 0 | AQ18: 0 | AR18: 0 | AS18: 0 | AW18: 0 | AX18: 0 | AY18: 0 | AZ18: 0 | BA18: 0 | BB18: 0 | BC18: 0 | BD18: 0 | BE18: 0 | BF18: 0 | BG18: 0 | BH18: 0 | BI18: 0 | BJ18: 0 | BK18: 0 | BL18: 0 | BM18: 0 | BN18: 0 | BO18: 0 | BP18: 0 | BQ18: 0 | BR18: 0
A19: DD1 | B19: Dedicated circuit | D19: 0 | E19: 0 | F19: 0 | G19: 0 | H19: 0 | I19: 1.8969 | J19: 0 | K19: 0 | L19: 0 | M19: 0 | N19: 0 | O19: 0 | P19: 0 | Q19: 0 | R19: 0 | S19: 0 | T19: 0 | U19: 0 | V19: 0 | W19: 0 | Z19: 162826.3333 | AA19: 0 | AB19: 0 | AC19: 0 | AD19: 0 | AE19: 365500855.8 | AF19: 0 | AG19: 0 | AH19: 0 | AI19: 0 | AJ19: 0 | AK19: 0 | AL19: 0 | AM19: 0 | AN19: 0 | AO19: 0 | AP19: 0 | AQ19: 0 | AR19: 0 | AS19: 0 | AW19: 0 | AX19: 0 | AY19: 0 | AZ19: 0 | BA19: 0 | BB19: 6933185.734 | BC19: 0 | BD19: 0 | BE19: 0 | BF19: 0 | BG19: 0 | BH19: 0 | BI19: 0 | BJ19: 0 | BK19: 0 | BL19: 0 | BM19: 0 | BN19: 0 | BO19: 0 | BP19: 0 | BQ19: 0 | BR19: 6933185.734
A20: D3HW | B20: Hot Water Interval | D20: 0 | E20: 0 | F20: 0 | G20: 0 | H20: 0 | I20: 1.8969 | J20: 0 | K20: 0 | L20: 0 | M20: 0 | N20: 0 | O20: 0 | P20: 0 | Q20: 0 | R20: 0 | S20: 0 | T20: 0 | U20: 0 | V20: 0 | W20: 0 | Z20: 5575.333333 | AA20: 0 | AB20: 0 | AC20: 0 | AD20: 0 | AE20: 11671669.59 | AF20: 0 | AG20: 0 | AH20: 0 | AI20: 0 | AJ20: 0 | AK20: 0 | AL20: 0 | AM20: 0 | AN20: 0 | AO20: 0 | AP20: 0 | AQ20: 0 | AR20: 0 | AS20: 0 | AW20: 0 | AX20: 0 | AY20: 0 | AZ20: 0 | BA20: 0 | BB20: 221399.9005 | BC20: 0 | BD20: 0 | BE20: 0 | BF20: 0 | BG20: 0 | BH20: 0 | BI20: 0 | BJ20: 0 | BK20: 0 | BL20: 0 | BM20: 0 | BN20: 0 | BO20: 0 | BP20: 0 | BQ20: 0 | BR20: 221399.9005
A21: ND1 | B21: Non-Residential Single Rate | D21: 11.9278 | E21: 0.8888 | F21: 0.8888 | G21: 0.8888 | H21: 0.8888 | I21: 0 | J21: 0 | K21: 0 | L21: 0 | M21: 0 | N21: 0 | O21: 0 | P21: 0 | Q21: 0 | R21: 0 | S21: 0 | T21: 0 | U21: 0 | V21: 0 | W21: 0 | Z21: 41827.83333 | AA21: 84144870.11 | AB21: 104346063.4 | AC21: 57036153.67 | AD21: 18985242.88 | AE21: 0 | AF21: 0 | AG21: 0 | AH21: 0 | AI21: 0 | AJ21: 0 | AK21: 0 | AL21: 0 | AM21: 0 | AN21: 0 | AO21: 0 | AP21: 0 | AQ21: 0 | AR21: 0 | AS21: 0 | AW21: 498914.0304 | AX21: 747879.6056 | AY21: 927427.8119 | AZ21: 506937.3339 | BA21: 168740.8387 | BB21: 0 | BC21: 0 | BD21: 0 | BE21: 0 | BF21: 0 | BG21: 0 | BH21: 0 | BI21: 0 | BJ21: 0 | BK21: 0 | BL21: 0 | BM21: 0 | BN21: 0 | BO21: 0 | BP21: 0 | BQ21: 0 | BR21: 2849899.62
A22: ND2 | B22: Non-Residential Two Rate 5d | D22: 14.2029 | E22: 0.7023 | F22: 0.7023 | G22: 0.7023 | H22: 0.7023 | I22: 0.6269 | J22: 0 | K22: 0 | L22: 0 | M22: 0 | N22: 0 | O22: 0 | P22: 0 | Q22: 0 | R22: 0 | S22: 0 | T22: 0 | U22: 0 | V22: 0 | W22: 0 | Z22: 31830.33333 | AA22: 89083892.83 | AB22: 202019807.4 | AC22: 210235747 | AD22: 131164325 | AE22: 536194127.4 | AF22: 0 | AG22: 0 | AH22: 0 | AI22: 0 | AJ22: 0 | AK22: 0 | AL22: 0 | AM22: 0 | AN22: 0 | AO22: 0 | AP22: 0 | AQ22: 0 | AR22: 0 | AS22: 0 | AW22: 452083.0413 | AX22: 625636.1793 | AY22: 1418785.107 | AZ22: 1476485.651 | BA22: 921167.0544 | BB22: 3361400.984 | BC22: 0 | BD22: 0 | BE22: 0 | BF22: 0 | BG22: 0 | BH22: 0 | BI22: 0 | BJ22: 0 | BK22: 0 | BL22: 0 | BM22: 0 | BN22: 0 | BO22: 0 | BP22: 0 | BQ22: 0 | BR22: 8255558.018
A23: ND5 | B23: Non-Residential Interval | D23: 14.2029 | E23: 0.7023 | F23: 0.7023 | G23: 0.7023 | H23: 0.7023 | I23: 0.6269 | J23: 0 | K23: 0 | L23: 0 | M23: 0 | N23: 0 | O23: 0 | P23: 0 | Q23: 0 | R23: 0 | S23: 0 | T23: 0 | U23: 0 | V23: 0 | W23: 0 | Z23: 14428.41667 | AA23: 36959982.53 | AB23: 73426742.34 | AC23: 72932371.97 | AD23: 37183735.4 | AE23: 155461615 | AF23: 0 | AG23: 0 | AH23: 0 | AI23: 0 | AJ23: 0 | AK23: 0 | AL23: 0 | AM23: 0 | AN23: 0 | AO23: 0 | AP23: 0 | AQ23: 0 | AR23: 0 | AS23: 0 | AW23: 204925.3591 | AX23: 259569.9573 | AY23: 515676.0114 | AZ23: 512204.0483 | BA23: 261141.3737 | BB23: 974588.8641 | BC23: 0 | BD23: 0 | BE23: 0 | BF23: 0 | BG23: 0 | BH23: 0 | BI23: 0 | BJ23: 0 | BK23: 0 | BL23: 0 | BM23: 0 | BN23: 0 | BO23: 0 | BP23: 0 | BQ23: 0 | BR23: 2728105.614
A24: ND3 | B24: Non-Residential Two Rate 7d | D24: 15.8467 | E24: 1.0281 | F24: 1.0281 | G24: 1.0281 | H24: 1.0281 | I24: 0.6608 | J24: 0 | K24: 0 | L24: 0 | M24: 0 | N24: 0 | O24: 0 | P24: 0 | Q24: 0 | R24: 0 | S24: 0 | T24: 0 | U24: 0 | V24: 0 | W24: 0 | Z24: 8718.75 | AA24: 21349877.6 | AB24: 40452162.33 | AC24: 34917345.66 | AD24: 30049831 | AE24: 49568305.45 | AF24: 0 | AG24: 0 | AH24: 0 | AI24: 0 | AJ24: 0 | AK24: 0 | AL24: 0 | AM24: 0 | AN24: 0 | AO24: 0 | AP24: 0 | AQ24: 0 | AR24: 0 | AS24: 0 | AW24: 138163.4156 | AX24: 219498.0917 | AY24: 415888.681 | AZ24: 358985.2307 | BA24: 308942.3126 | BB24: 327547.3624 | BC24: 0 | BD24: 0 | BE24: 0 | BF24: 0 | BG24: 0 | BH24: 0 | BI24: 0 | BJ24: 0 | BK24: 0 | BL24: 0 | BM24: 0 | BN24: 0 | BO24: 0 | BP24: 0 | BQ24: 0 | BR24: 1769025.094
A25: PL2 | B25: Public Lighting | D25: 0 | E25: 1.288 | F25: 0 | G25: 0 | H25: 0 | I25: 0.498 | J25: 0 | K25: 0 | L25: 0 | M25: 0 | N25: 0 | O25: 0 | P25: 0 | Q25: 0 | R25: 0 | S25: 0 | T25: 0 | U25: 0 | V25: 0 | W25: 0 | Z25: 6357 | AA25: 29770081.69 | AB25: 0 | AC25: 0 | AD25: 0 | AE25: 74852064.14 | AF25: 0 | AG25: 0 | AH25: 0 | AI25: 0 | AJ25: 0 | AK25: 0 | AL25: 0 | AM25: 0 | AN25: 0 | AO25: 0 | AP25: 0 | AQ25: 0 | AR25: 0 | AS25: 0 | AW25: 0 | AX25: 383438.6522 | AY25: 0 | AZ25: 0 | BA25: 0 | BB25: 372763.2794 | BC25: 0 | BD25: 0 | BE25: 0 | BF25: 0 | BG25: 0 | BH25: 0 | BI25: 0 | BJ25: 0 | BK25: 0 | BL25: 0 | BM25: 0 | BN25: 0 | BO25: 0 | BP25: 0 | BQ25: 0 | BR25: 756201.9316
A26: DL | B26: Large Low Voltage Demand | D26: 0 | E26: 1.2589 | F26: 0 | G26: 0 | H26: 0 | I26: 0.5333 | J26: 0 | K26: 0 | L26: 0 | M26: 40.3607 | N26: 0 | O26: 0 | P26: 0 | Q26: 0 | R26: 0 | S26: 0 | T26: 0 | U26: 0 | V26: 0 | W26: 0 | Z26: 864.8333333 | AA26: 641046469.8 | AB26: 0 | AC26: 0 | AD26: 0 | AE26: 503603748 | AF26: 0 | AG26: 0 | AH26: 0 | AI26: 417063.6972 | AJ26: 0 | AK26: 0 | AL26: 0 | AM26: 0 | AN26: 0 | AO26: 0 | AP26: 0 | AQ26: 0 | AR26: 0 | AS26: 0 | AW26: 0 | AX26: 8070134.009 | AY26: 0 | AZ26: 0 | BA26: 0 | BB26: 2685718.788 | BC26: 0 | BD26: 0 | BE26: 0 | BF26: 16832982.76 | BG26: 0 | BH26: 0 | BI26: 0 | BJ26: 0 | BK26: 0 | BL26: 0 | BM26: 0 | BN26: 0 | BO26: 0 | BP26: 0 | BQ26: 0 | BR26: 27588835.56
A27: DLA | B27: Large Low Voltage Demand A | D27: 0 | E27: 1.2589 | F27: 0 | G27: 0 | H27: 0 | I27: 0.5333 | J27: 0 | K27: 0 | L27: 0 | M27: 40.3607 | N27: 0 | O27: 0 | P27: 0 | Q27: 0 | R27: 0 | S27: 0 | T27: 0 | U27: 0 | V27: 0 | W27: 0 | Z27: 0 | AA27: 1554.509292 | AB27: 0 | AC27: 0 | AD27: 0 | AE27: 1744.170634 | AF27: 0 | AG27: 0 | AH27: 0 | AI27: 0 | AJ27: 0 | AK27: 0 | AL27: 0 | AM27: 0 | AN27: 0 | AO27: 0 | AP27: 0 | AQ27: 0 | AR27: 0 | AS27: 0 | AW27: 0 | AX27: 19.56971747 | AY27: 0 | AZ27: 0 | BA27: 0 | BB27: 9.301661989 | BC27: 0 | BD27: 0 | BE27: 0 | BF27: 0 | BG27: 0 | BH27: 0 | BI27: 0 | BJ27: 0 | BK27: 0 | BL27: 0 | BM27: 0 | BN27: 0 | BO27: 0 | BP27: 0 | BQ27: 0 | BR27: 28.87137946
A28: DLC | B28: Large Low Voltage Demand C | D28: 0 | E28: 1.2646 | F28: 0 | G28: 0 | H28: 0 | I28: 0.5333 | J28: 0 | K28: 0 | L28: 0 | M28: 40.5141 | N28: 0 | O28: 0 | P28: 0 | Q28: 0 | R28: 0 | S28: 0 | T28: 0 | U28: 0 | V28: 0 | W28: 0 | Z28: 445 | AA28: 356472619.1 | AB28: 0 | AC28: 0 | AD28: 0 | AE28: 256180582.6 | AF28: 0 | AG28: 0 | AH28: 0 | AI28: 208522.8654 | AJ28: 0 | AK28: 0 | AL28: 0 | AM28: 0 | AN28: 0 | AO28: 0 | AP28: 0 | AQ28: 0 | AR28: 0 | AS28: 0 | AW28: 0 | AX28: 4507952.741 | AY28: 0 | AZ28: 0 | BA28: 0 | BB28: 1366211.047 | BC28: 0 | BD28: 0 | BE28: 0 | BF28: 8448116.222 | BG28: 0 | BH28: 0 | BI28: 0 | BJ28: 0 | BK28: 0 | BL28: 0 | BM28: 0 | BN28: 0 | BO28: 0 | BP28: 0 | BQ28: 0 | BR28: 14322280.01
A29: DLS | B29: Large Low Voltage Demand S | D29: 0 | E29: 1.204 | F29: 0 | G29: 0 | H29: 0 | I29: 0.5333 | J29: 0 | K29: 0 | L29: 0 | M29: 38.5918 | N29: 0 | O29: 0 | P29: 0 | Q29: 0 | R29: 0 | S29: 0 | T29: 0 | U29: 0 | V29: 0 | W29: 0 | Z29: 48.83333333 | AA29: 15026429.07 | AB29: 0 | AC29: 0 | AD29: 0 | AE29: 10580933.37 | AF29: 0 | AG29: 0 | AH29: 0 | AI29: 11972.55433 | AJ29: 0 | AK29: 0 | AL29: 0 | AM29: 0 | AN29: 0 | AO29: 0 | AP29: 0 | AQ29: 0 | AR29: 0 | AS29: 0 | AW29: 0 | AX29: 180918.206 | AY29: 0 | AZ29: 0 | BA29: 0 | BB29: 56428.11765 | BC29: 0 | BD29: 0 | BE29: 0 | BF29: 462042.4223 | BG29: 0 | BH29: 0 | BI29: 0 | BJ29: 0 | BK29: 0 | BL29: 0 | BM29: 0 | BN29: 0 | BO29: 0 | BP29: 0 | BQ29: 0 | BR29: 699388.746
A30: DLDK | B30: Large Low Voltage Demand Docklands | D30: 0 | E30: 1.1562 | F30: 0 | G30: 0 | H30: 0 | I30: 0.5013 | J30: 0 | K30: 0 | L30: 0 | M30: 41.149 | N30: 0 | O30: 0 | P30: 0 | Q30: 0 | R30: 0 | S30: 0 | T30: 0 | U30: 0 | V30: 0 | W30: 0 | Z30: 7.916666667 | AA30: 3117592.188 | AB30: 0 | AC30: 0 | AD30: 0 | AE30: 3300719.235 | AF30: 0 | AG30: 0 | AH30: 0 | AI30: 1597.166667 | AJ30: 0 | AK30: 0 | AL30: 0 | AM30: 0 | AN30: 0 | AO30: 0 | AP30: 0 | AQ30: 0 | AR30: 0 | AS30: 0 | AW30: 0 | AX30: 36045.60088 | AY30: 0 | AZ30: 0 | BA30: 0 | BB30: 16546.50552 | BC30: 0 | BD30: 0 | BE30: 0 | BF30: 65721.81117 | BG30: 0 | BH30: 0 | BI30: 0 | BJ30: 0 | BK30: 0 | BL30: 0 | BM30: 0 | BN30: 0 | BO30: 0 | BP30: 0 | BQ30: 0 | BR30: 118313.9176
A31: DLCXX | B31: Large Low Voltage Demand CXX | D31: 0 | E31: 1.2522 | F31: 0 | G31: 0 | H31: 0 | I31: 0.5333 | J31: 0 | K31: 0 | L31: 0 | M31: 40.1058 | N31: 0 | O31: 0 | P31: 0 | Q31: 0 | R31: 0 | S31: 0 | T31: 0 | U31: 0 | V31: 0 | W31: 0 | Z31: 1019.583333 | AA31: 239036380.8 | AB31: 0 | AC31: 0 | AD31: 0 | AE31: 178186558.9 | AF31: 0 | AG31: 0 | AH31: 0 | AI31: 165242.8369 | AJ31: 0 | AK31: 0 | AL31: 0 | AM31: 0 | AN31: 0 | AO31: 0 | AP31: 0 | AQ31: 0 | AR31: 0 | AS31: 0 | AW31: 0 | AX31: 2993213.56 | AY31: 0 | AZ31: 0 | BA31: 0 | BB31: 950268.9184 | BC31: 0 | BD31: 0 | BE31: 0 | BF31: 6627196.169 | BG31: 0 | BH31: 0 | BI31: 0 | BJ31: 0 | BK31: 0 | BL31: 0 | BM31: 0 | BN31: 0 | BO31: 0 | BP31: 0 | BQ31: 0 | BR31: 10570678.65
A32: DL.R | B32: Large Low Voltage Demand EN.R | D32: 0 | E32: 1.2454 | F32: 0 | G32: 0 | H32: 0 | I32: 0.5263 | J32: 0 | K32: 0 | L32: 0 | M32: 39.3848 | N32: 0 | O32: 0 | P32: 0 | Q32: 0 | R32: 0 | S32: 0 | T32: 0 | U32: 0 | V32: 0 | W32: 0 | Z32: 0 | AA32: 0 | AB32: 0 | AC32: 0 | AD32: 0 | AE32: 0 | AF32: 0 | AG32: 0 | AH32: 0 | AI32: 0 | AJ32: 0 | AK32: 0 | AL32: 0 | AM32: 0 | AN32: 0 | AO32: 0 | AP32: 0 | AQ32: 0 | AR32: 0 | AS32: 0 | AW32: 0 | AX32: 0 | AY32: 0 | AZ32: 0 | BA32: 0 | BB32: 0 | BC32: 0 | BD32: 0 | BE32: 0 | BF32: 0 | BG32: 0 | BH32: 0 | BI32: 0 | BJ32: 0 | BK32: 0 | BL32: 0 | BM32: 0 | BN32: 0 | BO32: 0 | BP32: 0 | BQ32: 0 | BR32: 0
A33: DL.NR | B33: Large Low Voltage Demand EN.NR | D33: 0 | E33: 1.2454 | F33: 0 | G33: 0 | H33: 0 | I33: 0.5263 | J33: 0 | K33: 0 | L33: 0 | M33: 39.3848 | N33: 0 | O33: 0 | P33: 0 | Q33: 0 | R33: 0 | S33: 0 | T33: 0 | U33: 0 | V33: 0 | W33: 0 | Z33: 23 | AA33: 31922766.46 | AB33: 0 | AC33: 0 | AD33: 0 | AE33: 20544154.8 | AF33: 0 | AG33: 0 | AH33: 0 | AI33: 18204.64133 | AJ33: 0 | AK33: 0 | AL33: 0 | AM33: 0 | AN33: 0 | AO33: 0 | AP33: 0 | AQ33: 0 | AR33: 0 | AS33: 0 | AW33: 0 | AX33: 397566.1335 | AY33: 0 | AZ33: 0 | BA33: 0 | BB33: 108123.8867 | BC33: 0 | BD33: 0 | BE33: 0 | BF33: 716986.158 | BG33: 0 | BH33: 0 | BI33: 0 | BJ33: 0 | BK33: 0 | BL33: 0 | BM33: 0 | BN33: 0 | BO33: 0 | BP33: 0 | BQ33: 0 | BR33: 1222676.178
A34: DL.CXXR | B34: Large Low Voltage Demand EN.R CXX | D34: 0 | E34: 1.2376 | F34: 0 | G34: 0 | H34: 0 | I34: 0.5263 | J34: 0 | K34: 0 | L34: 0 | M34: 41.097 | N34: 0 | O34: 0 | P34: 0 | Q34: 0 | R34: 0 | S34: 0 | T34: 0 | U34: 0 | V34: 0 | W34: 0 | Z34: 3 | AA34: 1116066.491 | AB34: 0 | AC34: 0 | AD34: 0 | AE34: 473653.9242 | AF34: 0 | AG34: 0 | AH34: 0 | AI34: 683.4863333 | AJ34: 0 | AK34: 0 | AL34: 0 | AM34: 0 | AN34: 0 | AO34: 0 | AP34: 0 | AQ34: 0 | AR34: 0 | AS34: 0 | AW34: 0 | AX34: 13812.43889 | AY34: 0 | AZ34: 0 | BA34: 0 | BB34: 2492.840603 | BC34: 0 | BD34: 0 | BE34: 0 | BF34: 28089.23784 | BG34: 0 | BH34: 0 | BI34: 0 | BJ34: 0 | BK34: 0 | BL34: 0 | BM34: 0 | BN34: 0 | BO34: 0 | BP34: 0 | BQ34: 0 | BR34: 44394.51734
A35: DL.CXXNR | B35: Large Low Voltage Demand EN.NRCXX | D35: 0 | E35: 1.2376 | F35: 0 | G35: 0 | H35: 0 | I35: 0.5263 | J35: 0 | K35: 0 | L35: 0 | M35: 41.097 | N35: 0 | O35: 0 | P35: 0 | Q35: 0 | R35: 0 | S35: 0 | T35: 0 | U35: 0 | V35: 0 | W35: 0 | Z35: 4.583333333 | AA35: 2118570.845 | AB35: 0 | AC35: 0 | AD35: 0 | AE35: 1425170.591 | AF35: 0 | AG35: 0 | AH35: 0 | AI35: 1135.359667 | AJ35: 0 | AK35: 0 | AL35: 0 | AM35: 0 | AN35: 0 | AO35: 0 | AP35: 0 | AQ35: 0 | AR35: 0 | AS35: 0 | AW35: 0 | AX35: 26219.43277 | AY35: 0 | AZ35: 0 | BA35: 0 | BB35: 7500.672823 | BC35: 0 | BD35: 0 | BE35: 0 | BF35: 46659.87622 | BG35: 0 | BH35: 0 | BI35: 0 | BJ35: 0 | BK35: 0 | BL35: 0 | BM35: 0 | BN35: 0 | BO35: 0 | BP35: 0 | BQ35: 0 | BR35: 80379.98182
A36: DH | B36: High Voltage Demand | D36: 0 | E36: 1.1839 | F36: 0 | G36: 0 | H36: 0 | I36: 0.4898 | J36: 0 | K36: 0 | L36: 0 | M36: 33.5094 | N36: 0 | O36: 0 | P36: 0 | Q36: 0 | R36: 0 | S36: 0 | T36: 0 | U36: 0 | V36: 0 | W36: 0 | Z36: 111.25 | AA36: 491638563.6 | AB36: 0 | AC36: 0 | AD36: 0 | AE36: 443929044.4 | AF36: 0 | AG36: 0 | AH36: 0 | AI36: 271005.8853 | AJ36: 0 | AK36: 0 | AL36: 0 | AM36: 0 | AN36: 0 | AO36: 0 | AP36: 0 | AQ36: 0 | AR36: 0 | AS36: 0 | AW36: 0 | AX36: 5820508.954 | AY36: 0 | AZ36: 0 | BA36: 0 | BB36: 2174364.459 | BC36: 0 | BD36: 0 | BE36: 0 | BF36: 9081244.614 | BG36: 0 | BH36: 0 | BI36: 0 | BJ36: 0 | BK36: 0 | BL36: 0 | BM36: 0 | BN36: 0 | BO36: 0 | BP36: 0 | BQ36: 0 | BR36: 17076118.03
A37: DHA | B37: High Voltage Demand A | D37: 0 | E37: 1.3351 | F37: 0 | G37: 0 | H37: 0 | I37: 0.4767 | J37: 0 | K37: 0 | L37: 0 | M37: 37.8189 | N37: 0 | O37: 0 | P37: 0 | Q37: 0 | R37: 0 | S37: 0 | T37: 0 | U37: 0 | V37: 0 | W37: 0 | Z37: 3 | AA37: 6374933.475 | AB37: 0 | AC37: 0 | AD37: 0 | AE37: 6365099.591 | AF37: 0 | AG37: 0 | AH37: 0 | AI37: 3962.666667 | AJ37: 0 | AK37: 0 | AL37: 0 | AM37: 0 | AN37: 0 | AO37: 0 | AP37: 0 | AQ37: 0 | AR37: 0 | AS37: 0 | AW37: 0 | AX37: 85111.73682 | AY37: 0 | AZ37: 0 | BA37: 0 | BB37: 30342.42975 | BC37: 0 | BD37: 0 | BE37: 0 | BF37: 149863.6944 | BG37: 0 | BH37: 0 | BI37: 0 | BJ37: 0 | BK37: 0 | BL37: 0 | BM37: 0 | BN37: 0 | BO37: 0 | BP37: 0 | BQ37: 0 | BR37: 265317.861
A38: DHC | B38: High Voltage Demand C | D38: 0 | E38: 1.2051 | F38: 0 | G38: 0 | H38: 0 | I38: 0.4898 | J38: 0 | K38: 0 | L38: 0 | M38: 34.1431 | N38: 0 | O38: 0 | P38: 0 | Q38: 0 | R38: 0 | S38: 0 | T38: 0 | U38: 0 | V38: 0 | W38: 0 | Z38: 41 | AA38: 241115145.2 | AB38: 0 | AC38: 0 | AD38: 0 | AE38: 206818117.4 | AF38: 0 | AG38: 0 | AH38: 0 | AI38: 118039.1263 | AJ38: 0 | AK38: 0 | AL38: 0 | AM38: 0 | AN38: 0 | AO38: 0 | AP38: 0 | AQ38: 0 | AR38: 0 | AS38: 0 | AW38: 0 | AX38: 2905678.615 | AY38: 0 | AZ38: 0 | BA38: 0 | BB38: 1012995.139 | BC38: 0 | BD38: 0 | BE38: 0 | BF38: 4030221.694 | BG38: 0 | BH38: 0 | BI38: 0 | BJ38: 0 | BK38: 0 | BL38: 0 | BM38: 0 | BN38: 0 | BO38: 0 | BP38: 0 | BQ38: 0 | BR38: 7948895.448
A39: DHD1 | B39: High Voltage Demand D1 | D39: 0 | E39: 1.3351 | F39: 0 | G39: 0 | H39: 0 | I39: 0.4767 | J39: 0 | K39: 0 | L39: 0 | M39: 37.8189 | N39: 0 | O39: 0 | P39: 0 | Q39: 0 | R39: 0 | S39: 0 | T39: 0 | U39: 0 | V39: 0 | W39: 0 | Z39: 1 | AA39: 77353440.38 | AB39: 0 | AC39: 0 | AD39: 0 | AE39: 86446140.12 | AF39: 0 | AG39: 0 | AH39: 0 | AI39: 23472.00207 | AJ39: 0 | AK39: 0 | AL39: 0 | AM39: 0 | AN39: 0 | AO39: 0 | AP39: 0 | AQ39: 0 | AR39: 0 | AS39: 0 | AW39: 0 | AX39: 1032745.782 | AY39: 0 | AZ39: 0 | BA39: 0 | BB39: 412088.75 | BC39: 0 | BD39: 0 | BE39: 0 | BF39: 887685.2991 | BG39: 0 | BH39: 0 | BI39: 0 | BJ39: 0 | BK39: 0 | BL39: 0 | BM39: 0 | BN39: 0 | BO39: 0 | BP39: 0 | BQ39: 0 | BR39: 2332519.831
A40: DHD2 | B40: High Voltage Demand D2 | D40: 0 | E40: 1.3161 | F40: 0 | G40: 0 | H40: 0 | I40: 0 | J40: 0 | K40: 0 | L40: 0 | M40: 37.8106 | N40: 0 | O40: 0 | P40: 0 | Q40: 0 | R40: 0 | S40: 0 | T40: 0 | U40: 0 | V40: 0 | W40: 0 | Z40: 1 | AA40: 36506880.52 | AB40: 0 | AC40: 0 | AD40: 0 | AE40: 39600200.46 | AF40: 0 | AG40: 0 | AH40: 0 | AI40: 12488.577 | AJ40: 0 | AK40: 0 | AL40: 0 | AM40: 0 | AN40: 0 | AO40: 0 | AP40: 0 | AQ40: 0 | AR40: 0 | AS40: 0 | AW40: 0 | AX40: 480467.0545 | AY40: 0 | AZ40: 0 | BA40: 0 | BB40: 0 | BC40: 0 | BD40: 0 | BE40: 0 | BF40: 472200.5895 | BG40: 0 | BH40: 0 | BI40: 0 | BJ40: 0 | BK40: 0 | BL40: 0 | BM40: 0 | BN40: 0 | BO40: 0 | BP40: 0 | BQ40: 0 | BR40: 952667.644
A41: DHDK | B41: High Voltage Demand Docklands | D41: 0 | E41: 1.2783 | F41: 0 | G41: 0 | H41: 0 | I41: 0.5013 | J41: 0 | K41: 0 | L41: 0 | M41: 40.2839 | N41: 0 | O41: 0 | P41: 0 | Q41: 0 | R41: 0 | S41: 0 | T41: 0 | U41: 0 | V41: 0 | W41: 0 | Z41: 1 | AA41: 1480164.226 | AB41: 0 | AC41: 0 | AD41: 0 | AE41: 618308.9254 | AF41: 0 | AG41: 0 | AH41: 0 | AI41: 1000 | AJ41: 0 | AK41: 0 | AL41: 0 | AM41: 0 | AN41: 0 | AO41: 0 | AP41: 0 | AQ41: 0 | AR41: 0 | AS41: 0 | AW41: 0 | AX41: 18920.9393 | AY41: 0 | AZ41: 0 | BA41: 0 | BB41: 3099.582643 | BC41: 0 | BD41: 0 | BE41: 0 | BF41: 40283.9 | BG41: 0 | BH41: 0 | BI41: 0 | BJ41: 0 | BK41: 0 | BL41: 0 | BM41: 0 | BN41: 0 | BO41: 0 | BP41: 0 | BQ41: 0 | BR41: 62304.42194
A42: DHD3 | B42: High Voltage Demand D3 | D42: 0 | E42: 0.1311 | F42: 0 | G42: 0 | H42: 0 | I42: 0.4838 | J42: 0 | K42: 0 | L42: 0 | M42: 30.826 | N42: 0 | O42: 0 | P42: 0 | Q42: 0 | R42: 0 | S42: 0 | T42: 0 | U42: 0 | V42: 0 | W42: 0 | Z42: 1 | AA42: 15667468.26 | AB42: 0 | AC42: 0 | AD42: 0 | AE42: 17542504.76 | AF42: 0 | AG42: 0 | AH42: 0 | AI42: 13522 | AJ42: 0 | AK42: 0 | AL42: 0 | AM42: 0 | AN42: 0 | AO42: 0 | AP42: 0 | AQ42: 0 | AR42: 0 | AS42: 0 | AW42: 0 | AX42: 20540.05089 | AY42: 0 | AZ42: 0 | BA42: 0 | BB42: 84870.63801 | BC42: 0 | BD42: 0 | BE42: 0 | BF42: 416829.172 | BG42: 0 | BH42: 0 | BI42: 0 | BJ42: 0 | BK42: 0 | BL42: 0 | BM42: 0 | BN42: 0 | BO42: 0 | BP42: 0 | BQ42: 0 | BR42: 522239.8609
A43: DHD4 | B43: High Voltage Demand D4 | D43: 0 | E43: 1.34 | F43: 0 | G43: 0 | H43: 0 | I43: 0.4988 | J43: 0 | K43: 0 | L43: 0 | M43: 32.8851 | N43: 0 | O43: 0 | P43: 0 | Q43: 0 | R43: 0 | S43: 0 | T43: 0 | U43: 0 | V43: 0 | W43: 0 | Z43: 0.1666666667 | AA43: 2117199.359 | AB43: 0 | AC43: 0 | AD43: 0 | AE43: 2828164.65 | AF43: 0 | AG43: 0 | AH43: 0 | AI43: 916.6666667 | AJ43: 0 | AK43: 0 | AL43: 0 | AM43: 0 | AN43: 0 | AO43: 0 | AP43: 0 | AQ43: 0 | AR43: 0 | AS43: 0 | AW43: 0 | AX43: 28370.47142 | AY43: 0 | AZ43: 0 | BA43: 0 | BB43: 14106.88527 | BC43: 0 | BD43: 0 | BE43: 0 | BF43: 30144.675 | BG43: 0 | BH43: 0 | BI43: 0 | BJ43: 0 | BK43: 0 | BL43: 0 | BM43: 0 | BN43: 0 | BO43: 0 | BP43: 0 | BQ43: 0 | BR43: 72622.03169
A44: DSA | B44: Subtransmission Demand A | D44: 0 | E44: 2.0616 | F44: 0 | G44: 0 | H44: 0 | I44: 0.5333 | J44: 0 | K44: 0 | L44: 0 | M44: 14.2134 | N44: 0 | O44: 0 | P44: 0 | Q44: 0 | R44: 0 | S44: 0 | T44: 0 | U44: 0 | V44: 0 | W44: 0 | Z44: 3 | AA44: 101590056.1 | AB44: 0 | AC44: 0 | AD44: 0 | AE44: 79455569.71 | AF44: 0 | AG44: 0 | AH44: 0 | AI44: 51000.30733 | AJ44: 0 | AK44: 0 | AL44: 0 | AM44: 0 | AN44: 0 | AO44: 0 | AP44: 0 | AQ44: 0 | AR44: 0 | AS44: 0 | AW44: 0 | AX44: 2094380.596 | AY44: 0 | AZ44: 0 | BA44: 0 | BB44: 423736.5533 | BC44: 0 | BD44: 0 | BE44: 0 | BF44: 724887.7683 | BG44: 0 | BH44: 0 | BI44: 0 | BJ44: 0 | BK44: 0 | BL44: 0 | BM44: 0 | BN44: 0 | BO44: 0 | BP44: 0 | BQ44: 0 | BR44: 3243004.917
A45: DSG | B45: Subtransmission Demand G | D45: 0 | E45: 2.065 | F45: 0 | G45: 0 | H45: 0 | I45: 0.5333 | J45: 0 | K45: 0 | L45: 0 | M45: 14.2347 | N45: 0 | O45: 0 | P45: 0 | Q45: 0 | R45: 0 | S45: 0 | T45: 0 | U45: 0 | V45: 0 | W45: 0 | Z45: 8 | AA45: 289961259.5 | AB45: 0 | AC45: 0 | AD45: 0 | AE45: 316468001.8 | AF45: 0 | AG45: 0 | AH45: 0 | AI45: 199917.5869 | AJ45: 0 | AK45: 0 | AL45: 0 | AM45: 0 | AN45: 0 | AO45: 0 | AP45: 0 | AQ45: 0 | AR45: 0 | AS45: 0 | AW45: 0 | AX45: 5987700.009 | AY45: 0 | AZ45: 0 | BA45: 0 | BB45: 1687723.854 | BC45: 0 | BD45: 0 | BE45: 0 | BF45: 2845766.874 | BG45: 0 | BH45: 0 | BI45: 0 | BJ45: 0 | BK45: 0 | BL45: 0 | BM45: 0 | BN45: 0 | BO45: 0 | BP45: 0 | BQ45: 0 | BR45: 10521190.74
A46: DSS | B46: Subtransmission Demand S | D46: 0 | E46: 2.0504 | F46: 0 | G46: 0 | H46: 0 | I46: 0.5333 | J46: 0 | K46: 0 | L46: 0 | M46: 14.1427 | N46: 0 | O46: 0 | P46: 0 | Q46: 0 | R46: 0 | S46: 0 | T46: 0 | U46: 0 | V46: 0 | W46: 0 | Z46: 2 | AA46: 151344015.1 | AB46: 0 | AC46: 0 | AD46: 0 | AE46: 211924025.7 | AF46: 0 | AG46: 0 | AH46: 0 | AI46: 109485.296 | AJ46: 0 | AK46: 0 | AL46: 0 | AM46: 0 | AN46: 0 | AO46: 0 | AP46: 0 | AQ46: 0 | AR46: 0 | AS46: 0 | AW46: 0 | AX46: 3103157.686 | AY46: 0 | AZ46: 0 | BA46: 0 | BB46: 1130190.829 | BC46: 0 | BD46: 0 | BE46: 0 | BF46: 1548417.696 | BG46: 0 | BH46: 0 | BI46: 0 | BJ46: 0 | BK46: 0 | BL46: 0 | BM46: 0 | BN46: 0 | BO46: 0 | BP46: 0 | BQ46: 0 | BR46: 5781766.211
AW47: =D47*Z47 -> 0 | AX47: =E47/100*AA47 -> 0 | AY47: 0 | AZ47: 0 | BA47: 0 | BB47: 0 | BC47: 0 | BD47: 0 | BE47: 0 | BF47: =M47*AI47 -> 0 | BG47: 0 | BH47: 0 | BI47: 0 | BJ47: =Q47/100*AM47 -> 0 | BK47: 0 | BL47: 0 | BM47: 0 | BN47: 0 | BO47: 0 | BP47: 0 | BQ47: 0 | BR47: 0
AW48: 0 | AX48: 0 | AY48: 0 | AZ48: 0 | BA48: 0 | BB48: 0 | BC48: 0 | BD48: 0 | BE48: 0 | BF48: 0 | BG48: 0 | BH48: 0 | BI48: 0 | BJ48: 0 | BK48: 0 | BL48: 0 | BM48: 0 | BN48: 0 | BO48: 0 | BP48: 0 | BQ48: 0 | BR48: 0
AW49: 0 | AX49: 0 | AY49: 0 | AZ49: 0 | BA49: 0 | BB49: 0 | BC49: 0 | BD49: 0 | BE49: 0 | BF49: 0 | BG49: 0 | BH49: 0 | BI49: 0 | BJ49: 0 | BK49: 0 | BL49: 0 | BM49: 0 | BN49: 0 | BO49: 0 | BP49: 0 | BQ49: 0 | BR49: 0
AW50: 0 | AX50: 0 | AY50: 0 | AZ50: 0 | BA50: 0 | BB50: 0 | BC50: 0 | BD50: 0 | BE50: 0 | BF50: 0 | BG50: 0 | BH50: 0 | BI50: 0 | BJ50: 0 | BK50: 0 | BL50: 0 | BM50: 0 | BN50: 0 | BO50: 0 | BP50: 0 | BQ50: 0 | BR50: 0
AW51: 0 | AX51: 0 | AY51: 0 | AZ51: 0 | BA51: 0 | BB51: 0 | BC51: 0 | BD51: 0 | BE51: 0 | BF51: 0 | BG51: 0 | BH51: 0 | BI51: 0 | BJ51: 0 | BK51: 0 | BL51: 0 | BM51: 0 | BN51: 0 | BO51: 0 | BP51: 0 | BQ51: 0 | BR51: 0
AW52: 0 | AX52: 0 | AY52: 0 | AZ52: 0 | BA52: 0 | BB52: 0 | BC52: 0 | BD52: 0 | BE52: 0 | BF52: 0 | BG52: 0 | BH52: 0 | BI52: 0 | BJ52: 0 | BK52: 0 | BL52: 0 | BM52: 0 | BN52: 0 | BO52: 0 | BP52: 0 | BQ52: 0 | BR52: 0
AW53: 0 | AX53: 0 | AY53: 0 | AZ53: 0 | BA53: 0 | BB53: 0 | BC53: 0 | BD53: 0 | BE53: 0 | BF53: 0 | BG53: 0 | BH53: 0 | BI53: 0 | BJ53: 0 | BK53: 0 | BL53: 0 | BM53: 0 | BN53: 0 | BO53: 0 | BP53: 0 | BQ53: 0 | BR53: 0
AW54: 0 | AX54: 0 | AY54: 0 | AZ54: 0 | BA54: 0 | BB54: 0 | BC54: 0 | BD54: 0 | BE54: 0 | BF54: 0 | BG54: 0 | BH54: 0 | BI54: 0 | BJ54: 0 | BK54: 0 | BL54: 0 | BM54: 0 | BN54: 0 | BO54: 0 | BP54: 0 | BQ54: 0 | BR54: 0
AW55: 0 | AX55: 0 | AY55: 0 | AZ55: 0 | BA55: 0 | BB55: 0 | BC55: 0 | BD55: 0 | BE55: 0 | BF55: 0 | BG55: 0 | BH55: 0 | BI55: 0 | BJ55: 0 | BK55: 0 | BL55: 0 | BM55: 0 | BN55: 0 | BO55: 0 | BP55: 0 | BQ55: 0 | BR55: 0
AW56: 0 | AX56: 0 | AY56: 0 | AZ56: 0 | BA56: 0 | BB56: 0 | BC56: 0 | BD56: 0 | BE56: 0 | BF56: 0 | BG56: 0 | BH56: 0 | BI56: 0 | BJ56: =Q56/100*AM56 -> 0 | BK56: 0 | BL56: 0 | BM56: 0 | BN56: 0 | BO56: 0 | BP56: 0 | BQ56: 0 | BR56: 0
AW57: 0 | AX57: 0 | AY57: 0 | AZ57: 0 | BA57: 0 | BB57: 0 | BC57: 0 | BD57: 0 | BE57: 0 | BF57: 0 | BG57: 0 | BH57: 0 | BI57: 0 | BJ57: 0 | BK57: 0 | BL57: 0 | BM57: 0 | BN57: 0 | BO57: 0 | BP57: 0 | BQ57: 0 | BR57: 0
AW58: 0 | AX58: 0 | AY58: 0 | AZ58: 0 | BA58: 0 | BB58: 0 | BC58: 0 | BD58: 0 | BE58: 0 | BF58: 0 | BG58: 0 | BH58: 0 | BI58: 0 | BJ58: 0 | BK58: 0 | BL58: 0 | BM58: 0 | BN58: 0 | BO58: 0 | BP58: 0 | BQ58: 0 | BR58: 0
AW59: 0 | AX59: 0 | AY59: 0 | AZ59: 0 | BA59: 0 | BB59: 0 | BC59: 0 | BD59: 0 | BE59: 0 | BF59: 0 | BG59: 0 | BH59: 0 | BI59: 0 | BJ59: 0 | BK59: 0 | BL59: 0 | BM59: 0 | BN59: 0 | BO59: 0 | BP59: 0 | BQ59: 0 | BR59: 0
AW60: 0 | AX60: 0 | AY60: 0 | AZ60: 0 | BA60: 0 | BB60: 0 | BC60: 0 | BD60: 0 | BE60: 0 | BF60: 0 | BG60: 0 | BH60: 0 | BI60: 0 | BJ60: 0 | BK60: 0 | BL60: 0 | BM60: 0 | BN60: 0 | BO60: 0 | BP60: 0 | BQ60: 0 | BR60: 0
AW61: 0 | AX61: 0 | AY61: 0 | AZ61: 0 | BA61: 0 | BB61: 0 | BC61: 0 | BD61: 0 | BE61: 0 | BF61: 0 | BG61: 0 | BH61: 0 | BI61: 0 | BJ61: 0 | BK61: 0 | BL61: 0 | BM61: 0 | BN61: 0 | BO61: 0 | BP61: 0 | BQ61: 0 | BR61: 0
AW62: 0 | AX62: 0 | AY62: 0 | AZ62: 0 | BA62: 0 | BB62: 0 | BC62: 0 | BD62: 0 | BE62: 0 | BF62: 0 | BG62: 0 | BH62: 0 | BI62: 0 | BJ62: 0 | BK62: 0 | BL62: 0 | BM62: 0 | BN62: 0 | BO62: 0 | BP62: 0 | BQ62: 0 | BR62: 0
AW63: 0 | AX63: 0 | AY63: 0 | AZ63: 0 | BA63: 0 | BB63: 0 | BC63: 0 | BD63: 0 | BE63: 0 | BF63: 0 | BG63: 0 | BH63: 0 | BI63: 0 | BJ63: 0 | BK63: 0 | BL63: 0 | BM63: 0 | BN63: 0 | BO63: 0 | BP63: 0 | BQ63: 0 | BR63: 0
AW64: 0 | AX64: 0 | AY64: 0 | AZ64: 0 | BA64: 0 | BB64: 0 | BC64: 0 | BD64: 0 | BE64: 0 | BF64: 0 | BG64: 0 | BH64: 0 | BI64: 0 | BJ64: 0 | BK64: 0 | BL64: 0 | BM64: 0 | BN64: 0 | BO64: 0 | BP64: 0 | BQ64: 0 | BR64: 0
AW65: 0 | AX65: 0 | AY65: 0 | AZ65: 0 | BA65: 0 | BB65: 0 | BC65: 0 | BD65: 0 | BE65: 0 | BF65: 0 | BG65: 0 | BH65: 0 | BI65: 0 | BJ65: 0 | BK65: 0 | BL65: 0 | BM65: 0 | BN65: 0 | BO65: 0 | BP65: 0 | BQ65: 0 | BR65: 0
AW66: 0 | AX66: 0 | AY66: 0 | AZ66: 0 | BA66: 0 | BB66: 0 | BC66: 0 | BD66: 0 | BE66: 0 | BF66: 0 | BG66: 0 | BH66: 0 | BI66: 0 | BJ66: 0 | BK66: 0 | BL66: 0 | BM66: 0 | BN66: 0 | BO66: 0 | BP66: 0 | BQ66: 0 | BR66: 0
Z67: =SUM(Z7:Z66) -> 936140.5833 | AA67: 4801381471 | AB67: 1069210694 | AC67: 393364983.9 | AD67: 220458247 | AE67: 4071344814 | AF67: 0 | AG67: 0 | AH67: 0 | AI67: 1629232.722 | AJ67: 0 | AK67: 0 | AL67: 0 | AM67: =SUM(AM7:AM66) -> 18861.70558 | AN67: 42220.72588 | AO67: 29107.93621 | AP67: 0 | AQ67: 6218.526918 | AR67: 13889.74636 | AS67: 10803.30007 | AT67: 0 | AW67: =SUM(AW7:AW66) -> 9432979.479 | AX67: 57899521.98 | AY67: 9752765.173 | AZ67: 3034829.258 | BA67: 1690729.286 | BB67: 27427813.41 | BC67: 0 | BD67: 0 | BE67: 0 | BF67: 53455340.63 | BG67: 0 | BH67: 0 | BI67: 0 | BJ67: 226.0198179 | BK67: 377.2844065 | BL67: 145.6270048 | BM67: 0 | BN67: 74.51660806 | BO67: 124.1187735 | BP67: 54.04891026 | BQ67: 0 | BR67: =SUM(AW67:BQ67) -> 162694980.8

Sheet 32. TUoS cost audit (t-2)
B1: Powercor
B2: TUoS cost audit template (t-2)
B3: 0
B5: TUOS charges (AEMO) | F5: t-2 actual
B7: AEMO (TUOS Usage) | F7: 58252535.58
B8: AEMO (TUOS General and Common Service) | F8: 79133343.56
B9: Grid equalisation | F9: -7604400
E10: Total | F10: =SUM(F6:F9) -> 129781479.1
B12: Transmission connection fees (SPI Powernet) | F12: t-2 actual
B14: SP Connection | F14: 15880342.17
B15: SP Augmentation | F15: 11728443.75
E17: Total | F17: =SUM(F13:F16) -> 27608785.92
B19: Cross boundary network charges (internetwork charges) | F19: t-2 actual
B20: Distribution Business | C20: Amount (payable)/receivable
C21: HV crossings | D21: Subtransmission crossings | E21: TUoS Adjustment | F21: Total
B23: Jemena | D23: -5391747.1 | F23: =SUM(C23:E23) -> -5391747.1
B24: ETSA | C24: -620671.48 | F24: =SUM(C24:E24) -> -620671.48
F25: =SUM(C25:E25) -> 0
F26: =SUM(C26:E26) -> 0
B27: Total | F27: =SUM(F22:F26) -> -6012418.58
B29: Payments to embedded generators | F29: t-2 actual
B30: Avoided transmission costs
B32: Avoided Transmission cost | F32: 3555654.343
B36: Total | F36: =SUM(F31:F35) -> 3555654.343
B38: Avoided TUoS usage charges
B44: Total | F44: =SUM(F39:F43) -> 0
B45: Total payments to embedded generators | F45: =F44+F36 -> 3555654.343
B47: Where the following definitions apply
B48: HV Crossings | C48: Payments/Receipts for energy transferred utilising the distributor’s HV and LV line assets.
B49: Sub-transmission Crossings | C49: Payments/Receipts for the Sub-transmission assets in shared loops that support each distributor’s Zone Substation capacity to ensure N-1 reliability is maintained.
B50: TuoS Adjustment | C50: Payments/Receipts for the adjustment of TuoS paid by a distributor for energy delivered to another distribution business through a shared loop.

Sheet 33. Actual t-2 Juris Revenu
B1: Powercor
B2: Tariff Quantity Data Template (Actual t-2) Jurisdictional Scheme Tariff Revenue
B3: 0
D5: Jurisdictional Scheme Tariffs (Pt-2) | Z5: Actual Quantities (Qt-2) (INCLUDING boundary load adjustment) | AW5: Actual Revenue (P-2)*(Qt-2)
B6: Tariff (t-2) | D6: (t-2)Tar Fixed | E6: (t-2)Tar PkBlk1 | F6: (t-2)Tar PkBlk2 | G6: (t-2)Tar PkBlk3 | H6: (t-2)Tar PkBlk4 | I6: (t-2)Tar OPkBlk1 | J6: (t-2)Tar OPkBlk2 | K6: (t-2)Tar OPkBlk3 | L6: (t-2)Tar OPkBlk4 | M6: (t-2)Tar DemBlk1 | N6: (t-2)Tar DemBlk2 | O6: (t-2)Tar DemBlk3 | P6: (t-2)Tar DemBlk4 | Q6: (t-2)Tar SumBlk1 | R6: (t-2)Tar SumBlk2 | S6: (t-2)Tar SumBlk3 | T6: (t-2)Tar SumBlk4 | U6: (t-2)Tar WtrBlk1 | V6: (t-2)Tar WtrBlk2 | W6: (t-2)Tar WtrBlk3 | X6: (t-2)Tar WtrBlk4 | Z6: ActVol Fixed | AA6: ActVol PkBlk1 | AB6: ActVol PkBlk2 | AC6: ActVol PkBlk3 | AD6: ActVol PkBlk4 | AE6: ActVol OPkBlk1 | AF6: ActVol OPkBlk2 | AG6: ActVol OPkBlk3 | AH6: ActVol OPkBlk4 | AI6: ActVol DemBlk1 | AJ6: ActVol DemBlk2 | AK6: ActVol DemBlk3 | AL6: ActVol DemBlk4 | AM6: ActVol SumBlk1 | AN6: ActVol SumBlk2 | AO6: ActVol SumBlk3 | AP6: ActVol SumBlk4 | AQ6: ActVol WtrBlk1 | AR6: ActVol WtrBlk2 | AS6: ActVol WtrBlk3 | AT6: ActVol WtrBlk4 | AW6: ActRev Fixed | AX6: ActRev PkBlk1 | AY6: ActRev PkBlk2 | AZ6: ActRev PkBlk3 | BA6: ActRev PkBlk4 | BB6: ActRev OPkBlk1 | BC6: ActRev OPkBlk2 | BD6: ActRev OPkBlk3 | BE6: ActRev OPkBlk4 | BF6: ActRev DemBlk1 | BG6: ActRev DemBlk2 | BH6: ActRev DemBlk3 | BI6: ActRev DemBlk4 | BJ6: ActRev SumBlk1 | BK6: ActRev SumBlk2 | BL6: ActRev SumBlk3 | BM6: ActRev SumBlk4 | BN6: ActRev WtrBlk1 | BO6: ActRev WtrBlk2 | BP6: ActRev WtrBlk3 | BQ6: ActRev WtrBlk4 | BR6: ActRev Total
A8: D1 | B8: Residential Single Rate | D8: 0 | E8: 0.3636 | F8: 0.3636 | G8: 0.3636 | H8: 0.3636 | I8: 0 | J8: 0 | K8: 0 | L8: 0 | M8: 0 | N8: 0 | O8: 0 | P8: 0 | Q8: 0 | R8: 0 | S8: 0 | T8: 0 | U8: 0 | V8: 0 | W8: 0 | Z8: 488961.5833 | AA8: 1498750537 | AB8: 590221441.1 | AC8: 15881114.58 | AD8: 2832561.329 | AE8: 0 | AF8: 0 | AG8: 0 | AH8: 0 | AI8: 0 | AJ8: 0 | AK8: 0 | AL8: 0 | AM8: 0 | AN8: 0 | AO8: 0 | AP8: 0 | AQ8: 0 | AR8: 0 | AS8: 0 | AT8: 0 | AW8: 0 | AX8: 5449456.953 | AY8: 2146045.16 | AZ8: 57743.73261 | BA8: 10299.19299 | BB8: 0 | BC8: 0 | BD8: 0 | BE8: 0 | BF8: 0 | BG8: 0 | BH8: 0 | BI8: 0 | BJ8: 0 | BK8: 0 | BL8: 0 | BM8: 0 | BN8: 0 | BO8: 0 | BP8: 0 | BQ8: 0 | BR8: =SUM(AW8:BQ8) -> 7663545.038
A9: D1CS | B9: Climate Saver | D9: 0 | E9: 0.3636 | F9: 0.3636 | G9: 0.3636 | H9: 0.3636 | I9: 0.3232 | J9: 0 | K9: 0 | L9: 0 | M9: 0 | N9: 0 | O9: 0 | P9: 0 | Q9: 0 | R9: 0 | S9: 0 | T9: 0 | U9: 0 | V9: 0 | W9: 0 | Z9: 17268 | AA9: 8769848.466 | AB9: 2193024.651 | AC9: 43145.04377 | AD9: 304.1281154 | AE9: 15688768.02 | AF9: 0 | AG9: 0 | AH9: 0 | AI9: 0 | AJ9: 0 | AK9: 0 | AL9: 0 | AM9: 0 | AN9: 0 | AO9: 0 | AP9: 0 | AQ9: 0 | AR9: 0 | AS9: 0 | AT9: 0 | AW9: 0 | AX9: 31887.16902 | AY9: 7973.837631 | AZ9: 156.8753791 | BA9: 1.105809828 | BB9: 50706.09824 | BC9: 0 | BD9: 0 | BE9: 0 | BF9: 0 | BG9: 0 | BH9: 0 | BI9: 0 | BJ9: 0 | BK9: 0 | BL9: 0 | BM9: 0 | BN9: 0 | BO9: 0 | BP9: 0 | BQ9: 0 | BR9: =SUM(AW9:BQ9) -> 90725.08608
A10: D3CS | B10: Climate Saver Interval | D10: 0 | E10: 0.3636 | F10: 0.3636 | G10: 0.3636 | H10: 0.3636 | I10: 0.3232 | J10: 0 | K10: 0 | L10: 0 | M10: 0 | N10: 0 | O10: 0 | P10: 0 | Q10: 0 | R10: 0 | S10: 0 | T10: 0 | U10: 0 | V10: 0 | W10: 0 | Z10: 4679.5 | AA10: 2464608.925 | AB10: 575760.9858 | AC10: 14761.15559 | AD10: 0 | AE10: 4874588.385 | AF10: 0 | AG10: 0 | AH10: 0 | AI10: 0 | AJ10: 0 | AK10: 0 | AL10: 0 | AM10: 0 | AN10: 0 | AO10: 0 | AP10: 0 | AQ10: 0 | AR10: 0 | AS10: 0 | AT10: 0 | AW10: 0 | AX10: 8961.31805 | AY10: 2093.466944 | AZ10: 53.67156173 | BA10: 0 | BB10: 15754.66966 | BC10: 0 | BD10: 0 | BE10: 0 | BF10: 0 | BG10: 0 | BH10: 0 | BI10: 0 | BJ10: 0 | BK10: 0 | BL10: 0 | BM10: 0 | BN10: 0 | BO10: 0 | BP10: 0 | BQ10: 0 | BR10: 26863.12622
A11: P13R | B11: Residential - Flexible Pricing | D11: 0 | E11: 0 | F11: 0 | G11: 0 | H11: 0 | I11: 0 | J11: 0 | K11: 0 | L11: 0 | M11: 0 | N11: 0 | O11: 0 | P11: 0 | Q11: 0.6903 | R11: 0.5868 | S11: 0.2976 | T11: 0 | U11: 0.6903 | V11: 0.5868 | W11: 0.2976 | Z11: 72.83333333 | AA11: 0 | AB11: 0 | AC11: 0 | AD11: 0 | AE11: 0 | AF11: 0 | AG11: 0 | AH11: 0 | AI11: 0 | AJ11: 0 | AK11: 0 | AL11: 0 | AM11: 18861.70558 | AN11: 42220.72588 | AO11: 29107.93621 | AP11: 0 | AQ11: 6218.526918 | AR11: 13889.74636 | AS11: 10803.30007 | AT11: 0 | AW11: 0 | AX11: 0 | AY11: 0 | AZ11: 0 | BA11: 0 | BB11: 0 | BC11: 0 | BD11: 0 | BE11: 0 | BF11: 0 | BG11: 0 | BH11: 0 | BI11: 0 | BJ11: 130.2023536 | BK11: 247.7512195 | BL11: 86.62521815 | BM11: 0 | BN11: 42.92649132 | BO11: 81.50503167 | BP11: 32.15062102 | BQ11: 0 | BR11: 621.1609352
A12: P13RDK | B12: Residential Docklands - Flexible Pricing | D12: 0 | E12: 0 | F12: 0 | G12: 0 | H12: 0 | I12: 0 | J12: 0 | K12: 0 | L12: 0 | M12: 0 | N12: 0 | O12: 0 | P12: 0 | Q12: 0.6213 | R12: 0.5281 | S12: 0.2761 | T12: 0 | U12: 0.6213 | V12: 0.5281 | W12: 0.2761 | Z12: 0 | AA12: 0 | AB12: 0 | AC12: 0 | AD12: 0 | AE12: 0 | AF12: 0 | AG12: 0 | AH12: 0 | AI12: 0 | AJ12: 0 | AK12: 0 | AL12: 0 | AM12: 0 | AN12: 0 | AO12: 0 | AP12: 0 | AQ12: 0 | AR12: 0 | AS12: 0 | AT12: 0 | AW12: 0 | AX12: 0 | AY12: 0 | AZ12: 0 | BA12: 0 | BB12: 0 | BC12: 0 | BD12: 0 | BE12: 0 | BF12: 0 | BG12: 0 | BH12: 0 | BI12: 0 | BJ12: 0 | BK12: 0 | BL12: 0 | BM12: 0 | BN12: 0 | BO12: 0 | BP12: 0 | BQ12: 0 | BR12: 0
A13: P13RCS | B13: Climate Saver - Flexible Pricing | D13: 0 | E13: 0 | F13: 0 | G13: 0 | H13: 0 | I13: 0 | J13: 0 | K13: 0 | L13: 0 | M13: 0 | N13: 0 | O13: 0 | P13: 0 | Q13: 0.4601 | R13: 0 | S13: 0 | T13: 0 | U13: 0.4601 | V13: 0 | W13: 0 | Z13: 0 | AA13: 0 | AB13: 0 | AC13: 0 | AD13: 0 | AE13: 0 | AF13: 0 | AG13: 0 | AH13: 0 | AI13: 0 | AJ13: 0 | AK13: 0 | AL13: 0 | AM13: 0 | AN13: 0 | AO13: 0 | AP13: 0 | AQ13: 0 | AR13: 0 | AS13: 0 | AT13: 0 | AW13: 0 | AX13: 0 | AY13: 0 | AZ13: 0 | BA13: 0 | BB13: 0 | BC13: 0 | BD13: 0 | BE13: 0 | BF13: 0 | BG13: 0 | BH13: 0 | BI13: 0 | BJ13: 0 | BK13: 0 | BL13: 0 | BM13: 0 | BN13: 0 | BO13: 0 | BP13: 0 | BQ13: 0 | BR13: 0
A14: D2 | B14: Residential Two Rate 5d | D14: 0 | E14: 0.5454 | F14: 0.5454 | G14: 0.5454 | H14: 0.5454 | I14: 0.3232 | J14: 0 | K14: 0 | L14: 0 | M14: 0 | N14: 0 | O14: 0 | P14: 0 | Q14: 0 | R14: 0 | S14: 0 | T14: 0 | U14: 0 | V14: 0 | W14: 0 | Z14: 46082.08333 | AA14: 109136399.2 | AB14: 21382486 | AC14: 734743.5095 | AD14: 165087.6166 | AE14: 209648291 | AF14: 0 | AG14: 0 | AH14: 0 | AI14: 0 | AJ14: 0 | AK14: 0 | AL14: 0 | AM14: 0 | AN14: 0 | AO14: 0 | AP14: 0 | AQ14: 0 | AR14: 0 | AS14: 0 | AT14: 0 | AW14: 0 | AX14: 595229.9213 | AY14: 116620.0786 | AZ14: 4007.291101 | BA14: 900.387861 | BB14: 677583.2765 | BC14: 0 | BD14: 0 | BE14: 0 | BF14: 0 | BG14: 0 | BH14: 0 | BI14: 0 | BJ14: 0 | BK14: 0 | BL14: 0 | BM14: 0 | BN14: 0 | BO14: 0 | BP14: 0 | BQ14: 0 | BR14: 1394340.955
A15: D2DK | B15: Docklands Two Rate 5d | D15: 0 | E15: 0.5454 | F15: 0.5454 | G15: 0.5454 | H15: 0.5454 | I15: 0.3232 | J15: 0 | K15: 0 | L15: 0 | M15: 0 | N15: 0 | O15: 0 | P15: 0 | Q15: 0 | R15: 0 | S15: 0 | T15: 0 | U15: 0 | V15: 0 | W15: 0 | Z15: 584.5 | AA15: 1674534.042 | AB15: 271304.9999 | AC15: 71272.37586 | AD15: 507.8640477 | AE15: 1965796.962 | AF15: 0 | AG15: 0 | AH15: 0 | AI15: 0 | AJ15: 0 | AK15: 0 | AL15: 0 | AM15: 0 | AN15: 0 | AO15: 0 | AP15: 0 | AQ15: 0 | AR15: 0 | AS15: 0 | AT15: 0 | AW15: 0 | AX15: 9132.908668 | AY15: 1479.697469 | AZ15: 388.719538 | BA15: 2.769890516 | BB15: 6353.45578 | BC15: 0 | BD15: 0 | BE15: 0 | BF15: 0 | BG15: 0 | BH15: 0 | BI15: 0 | BJ15: 0 | BK15: 0 | BL15: 0 | BM15: 0 | BN15: 0 | BO15: 0 | BP15: 0 | BQ15: 0 | BR15: 17357.55135
A16: D3 | B16: Residential Interval | D16: 0 | E16: 0.5454 | F16: 0.5454 | G16: 0.5454 | H16: 0.5454 | I16: 0.3232 | J16: 0 | K16: 0 | L16: 0 | M16: 0 | N16: 0 | O16: 0 | P16: 0 | Q16: 0 | R16: 0 | S16: 0 | T16: 0 | U16: 0 | V16: 0 | W16: 0 | Z16: 104338.6667 | AA16: 214269263.9 | AB16: 34321900.61 | AC16: 1498328.941 | AD16: 76651.82845 | AE16: 259625710.2 | AF16: 0 | AG16: 0 | AH16: 0 | AI16: 0 | AJ16: 0 | AK16: 0 | AL16: 0 | AM16: 0 | AN16: 0 | AO16: 0 | AP16: 0 | AQ16: 0 | AR16: 0 | AS16: 0 | AT16: 0 | AW16: 0 | AX16: 1168624.565 | AY16: 187191.6459 | AZ16: 8171.886047 | BA16: 418.0590724 | BB16: 839110.2953 | BC16: 0 | BD16: 0 | BE16: 0 | BF16: 0 | BG16: 0 | BH16: 0 | BI16: 0 | BJ16: 0 | BK16: 0 | BL16: 0 | BM16: 0 | BN16: 0 | BO16: 0 | BP16: 0 | BQ16: 0 | BR16: 2203516.451
A17: D2OP | B17: Residential Two Rate 5d - controlled load | D17: 0 | E17: 0 | F17: 0 | G17: 0 | H17: 0 | I17: 0.3232 | J17: 0 | K17: 0 | L17: 0 | M17: 0 | N17: 0 | O17: 0 | P17: 0 | Q17: 0 | R17: 0 | S17: 0 | T17: 0 | U17: 0 | V17: 0 | W17: 0 | Z17: 0.25 | AA17: 0 | AB17: 0 | AC17: 0 | AD17: 0 | AE17: 579.2136789 | AF17: 0 | AG17: 0 | AH17: 0 | AI17: 0 | AJ17: 0 | AK17: 0 | AL17: 0 | AM17: 0 | AN17: 0 | AO17: 0 | AP17: 0 | AQ17: 0 | AR17: 0 | AS17: 0 | AT17: 0 | AW17: 0 | AX17: 0 | AY17: 0 | AZ17: 0 | BA17: 0 | BB17: 1.87201861 | BC17: 0 | BD17: 0 | BE17: 0 | BF17: 0 | BG17: 0 | BH17: 0 | BI17: 0 | BJ17: 0 | BK17: 0 | BL17: 0 | BM17: 0 | BN17: 0 | BO17: 0 | BP17: 0 | BQ17: 0 | BR17: 1.87201861
A18: D2DKOP | B18: Docklands Two Rate 5d - controlled load | D18: 0 | E18: 0 | F18: 0 | G18: 0 | H18: 0 | I18: 0.3232 | J18: 0 | K18: 0 | L18: 0 | M18: 0 | N18: 0 | O18: 0 | P18: 0 | Q18: 0 | R18: 0 | S18: 0 | T18: 0 | U18: 0 | V18: 0 | W18: 0 | Z18: 0 | AA18: 0 | AB18: 0 | AC18: 0 | AD18: 0 | AE18: 0 | AF18: 0 | AG18: 0 | AH18: 0 | AI18: 0 | AJ18: 0 | AK18: 0 | AL18: 0 | AM18: 0 | AN18: 0 | AO18: 0 | AP18: 0 | AQ18: 0 | AR18: 0 | AS18: 0 | AT18: 0 | AW18: 0 | AX18: 0 | AY18: 0 | AZ18: 0 | BA18: 0 | BB18: 0 | BC18: 0 | BD18: 0 | BE18: 0 | BF18: 0 | BG18: 0 | BH18: 0 | BI18: 0 | BJ18: 0 | BK18: 0 | BL18: 0 | BM18: 0 | BN18: 0 | BO18: 0 | BP18: 0 | BQ18: 0 | BR18: 0
A19: DD1 | B19: Dedicated circuit | D19: 0 | E19: 0 | F19: 0 | G19: 0 | H19: 0 | I19: 0.0242 | J19: 0 | K19: 0 | L19: 0 | M19: 0 | N19: 0 | O19: 0 | P19: 0 | Q19: 0 | R19: 0 | S19: 0 | T19: 0 | U19: 0 | V19: 0 | W19: 0 | Z19: 162826.3333 | AA19: 0 | AB19: 0 | AC19: 0 | AD19: 0 | AE19: 365500855.8 | AF19: 0 | AG19: 0 | AH19: 0 | AI19: 0 | AJ19: 0 | AK19: 0 | AL19: 0 | AM19: 0 | AN19: 0 | AO19: 0 | AP19: 0 | AQ19: 0 | AR19: 0 | AS19: 0 | AT19: 0 | AW19: 0 | AX19: 0 | AY19: 0 | AZ19: 0 | BA19: 0 | BB19: 88451.20711 | BC19: 0 | BD19: 0 | BE19: 0 | BF19: 0 | BG19: 0 | BH19: 0 | BI19: 0 | BJ19: 0 | BK19: 0 | BL19: 0 | BM19: 0 | BN19: 0 | BO19: 0 | BP19: 0 | BQ19: 0 | BR19: 88451.20711
A20: D3HW | B20: Hot Water Interval | D20: 0 | E20: 0 | F20: 0 | G20: 0 | H20: 0 | I20: 0.0242 | J20: 0 | K20: 0 | L20: 0 | M20: 0 | N20: 0 | O20: 0 | P20: 0 | Q20: 0 | R20: 0 | S20: 0 | T20: 0 | U20: 0 | V20: 0 | W20: 0 | Z20: 5575.333333 | AA20: 0 | AB20: 0 | AC20: 0 | AD20: 0 | AE20: 11671669.59 | AF20: 0 | AG20: 0 | AH20: 0 | AI20: 0 | AJ20: 0 | AK20: 0 | AL20: 0 | AM20: 0 | AN20: 0 | AO20: 0 | AP20: 0 | AQ20: 0 | AR20: 0 | AS20: 0 | AT20: 0 | AW20: 0 | AX20: 0 | AY20: 0 | AZ20: 0 | BA20: 0 | BB20: 2824.544042 | BC20: 0 | BD20: 0 | BE20: 0 | BF20: 0 | BG20: 0 | BH20: 0 | BI20: 0 | BJ20: 0 | BK20: 0 | BL20: 0 | BM20: 0 | BN20: 0 | BO20: 0 | BP20: 0 | BQ20: 0 | BR20: 2824.544042
A21: ND1 | B21: Non-Residential Single Rate | D21: 0 | E21: 0.3232 | F21: 0.3232 | G21: 0.3232 | H21: 0.3232 | I21: 0 | J21: 0 | K21: 0 | L21: 0 | M21: 0 | N21: 0 | O21: 0 | P21: 0 | Q21: 0 | R21: 0 | S21: 0 | T21: 0 | U21: 0 | V21: 0 | W21: 0 | Z21: 41827.83333 | AA21: 84144870.11 | AB21: 104346063.4 | AC21: 57036153.67 | AD21: 18985242.88 | AE21: 0 | AF21: 0 | AG21: 0 | AH21: 0 | AI21: 0 | AJ21: 0 | AK21: 0 | AL21: 0 | AM21: 0 | AN21: 0 | AO21: 0 | AP21: 0 | AQ21: 0 | AR21: 0 | AS21: 0 | AT21: 0 | AW21: 0 | AX21: 271956.2202 | AY21: 337246.477 | AZ21: 184340.8487 | BA21: 61360.30498 | BB21: 0 | BC21: 0 | BD21: 0 | BE21: 0 | BF21: 0 | BG21: 0 | BH21: 0 | BI21: 0 | BJ21: 0 | BK21: 0 | BL21: 0 | BM21: 0 | BN21: 0 | BO21: 0 | BP21: 0 | BQ21: 0 | BR21: 854903.8509
A22: ND2 | B22: Non-Residential Two Rate 5d | D22: 0 | E22: 0.4848 | F22: 0.4848 | G22: 0.4848 | H22: 0.4848 | I22: 0.4847 | J22: 0 | K22: 0 | L22: 0 | M22: 0 | N22: 0 | O22: 0 | P22: 0 | Q22: 0 | R22: 0 | S22: 0 | T22: 0 | U22: 0 | V22: 0 | W22: 0 | Z22: 31830.33333 | AA22: 89083892.83 | AB22: 202019807.4 | AC22: 210235747 | AD22: 131164325 | AE22: 536194127.4 | AF22: 0 | AG22: 0 | AH22: 0 | AI22: 0 | AJ22: 0 | AK22: 0 | AL22: 0 | AM22: 0 | AN22: 0 | AO22: 0 | AP22: 0 | AQ22: 0 | AR22: 0 | AS22: 0 | AT22: 0 | AW22: 0 | AX22: 431878.7124 | AY22: 979392.0263 | AZ22: 1019222.902 | BA22: 635884.6475 | BB22: 2598932.935 | BC22: 0 | BD22: 0 | BE22: 0 | BF22: 0 | BG22: 0 | BH22: 0 | BI22: 0 | BJ22: 0 | BK22: 0 | BL22: 0 | BM22: 0 | BN22: 0 | BO22: 0 | BP22: 0 | BQ22: 0 | BR22: 5665311.223
A23: ND5 | B23: Non-Residential Interval | D23: 0 | E23: 0.4848 | F23: 0.4848 | G23: 0.4848 | H23: 0.4848 | I23: 0.4847 | J23: 0 | K23: 0 | L23: 0 | M23: 0 | N23: 0 | O23: 0 | P23: 0 | Q23: 0 | R23: 0 | S23: 0 | T23: 0 | U23: 0 | V23: 0 | W23: 0 | Z23: 14428.41667 | AA23: 36959982.53 | AB23: 73426742.34 | AC23: 72932371.97 | AD23: 37183735.4 | AE23: 155461615 | AF23: 0 | AG23: 0 | AH23: 0 | AI23: 0 | AJ23: 0 | AK23: 0 | AL23: 0 | AM23: 0 | AN23: 0 | AO23: 0 | AP23: 0 | AQ23: 0 | AR23: 0 | AS23: 0 | AT23: 0 | AW23: 0 | AX23: 179181.9953 | AY23: 355972.8469 | AZ23: 353576.1393 | BA23: 180266.7492 | BB23: 753522.4477 | BC23: 0 | BD23: 0 | BE23: 0 | BF23: 0 | BG23: 0 | BH23: 0 | BI23: 0 | BJ23: 0 | BK23: 0 | BL23: 0 | BM23: 0 | BN23: 0 | BO23: 0 | BP23: 0 | BQ23: 0 | BR23: 1822520.178
A24: ND3 | B24: Non-Residential Two Rate 7d | D24: 0 | E24: 0.4848 | F24: 0.4848 | G24: 0.4848 | H24: 0.4848 | I24: 0.4847 | J24: 0 | K24: 0 | L24: 0 | M24: 0 | N24: 0 | O24: 0 | P24: 0 | Q24: 0 | R24: 0 | S24: 0 | T24: 0 | U24: 0 | V24: 0 | W24: 0 | Z24: 8718.75 | AA24: 21349877.6 | AB24: 40452162.33 | AC24: 34917345.66 | AD24: 30049831 | AE24: 49568305.45 | AF24: 0 | AG24: 0 | AH24: 0 | AI24: 0 | AJ24: 0 | AK24: 0 | AL24: 0 | AM24: 0 | AN24: 0 | AO24: 0 | AP24: 0 | AQ24: 0 | AR24: 0 | AS24: 0 | AT24: 0 | AW24: 0 | AX24: 103504.2066 | AY24: 196112.083 | AZ24: 169279.2918 | BA24: 145681.5807 | BB24: 240257.5765 | BC24: 0 | BD24: 0 | BE24: 0 | BF24: 0 | BG24: 0 | BH24: 0 | BI24: 0 | BJ24: 0 | BK24: 0 | BL24: 0 | BM24: 0 | BN24: 0 | BO24: 0 | BP24: 0 | BQ24: 0 | BR24: 854834.7386
A25: PL2 | B25: Public Lighting | D25: 0 | E25: 0.3838 | F25: 0 | G25: 0 | H25: 0 | I25: 0.4847 | J25: 0 | K25: 0 | L25: 0 | M25: 0 | N25: 0 | O25: 0 | P25: 0 | Q25: 0 | R25: 0 | S25: 0 | T25: 0 | U25: 0 | V25: 0 | W25: 0 | Z25: 6357 | AA25: 29770081.69 | AB25: 0 | AC25: 0 | AD25: 0 | AE25: 74852064.14 | AF25: 0 | AG25: 0 | AH25: 0 | AI25: 0 | AJ25: 0 | AK25: 0 | AL25: 0 | AM25: 0 | AN25: 0 | AO25: 0 | AP25: 0 | AQ25: 0 | AR25: 0 | AS25: 0 | AT25: 0 | AW25: 0 | AX25: 114257.5735 | AY25: 0 | AZ25: 0 | BA25: 0 | BB25: 362807.9549 | BC25: 0 | BD25: 0 | BE25: 0 | BF25: 0 | BG25: 0 | BH25: 0 | BI25: 0 | BJ25: 0 | BK25: 0 | BL25: 0 | BM25: 0 | BN25: 0 | BO25: 0 | BP25: 0 | BQ25: 0 | BR25: 477065.5284
A26: DL | B26: Large Low Voltage Demand | D26: 0 | E26: 0.4039 | F26: 0 | G26: 0 | H26: 0 | I26: 0.4039 | J26: 0 | K26: 0 | L26: 0 | M26: 0 | N26: 0 | O26: 0 | P26: 0 | Q26: 0 | R26: 0 | S26: 0 | T26: 0 | U26: 0 | V26: 0 | W26: 0 | Z26: 864.8333333 | AA26: 641046469.8 | AB26: 0 | AC26: 0 | AD26: 0 | AE26: 503603748 | AF26: 0 | AG26: 0 | AH26: 0 | AI26: 417063.6972 | AJ26: 0 | AK26: 0 | AL26: 0 | AM26: 0 | AN26: 0 | AO26: 0 | AP26: 0 | AQ26: 0 | AR26: 0 | AS26: 0 | AT26: 0 | AW26: 0 | AX26: 2589186.692 | AY26: 0 | AZ26: 0 | BA26: 0 | BB26: 2034055.538 | BC26: 0 | BD26: 0 | BE26: 0 | BF26: 0 | BG26: 0 | BH26: 0 | BI26: 0 | BJ26: 0 | BK26: 0 | BL26: 0 | BM26: 0 | BN26: 0 | BO26: 0 | BP26: 0 | BQ26: 0 | BR26: 4623242.23
A27: DLA | B27: Large Low Voltage Demand A | D27: 0 | E27: 0.4039 | F27: 0 | G27: 0 | H27: 0 | I27: 0.4039 | J27: 0 | K27: 0 | L27: 0 | M27: 0 | N27: 0 | O27: 0 | P27: 0 | Q27: 0 | R27: 0 | S27: 0 | T27: 0 | U27: 0 | V27: 0 | W27: 0 | Z27: 0 | AA27: 1554.509292 | AB27: 0 | AC27: 0 | AD27: 0 | AE27: 1744.170634 | AF27: 0 | AG27: 0 | AH27: 0 | AI27: 0 | AJ27: 0 | AK27: 0 | AL27: 0 | AM27: 0 | AN27: 0 | AO27: 0 | AP27: 0 | AQ27: 0 | AR27: 0 | AS27: 0 | AT27: 0 | AW27: 0 | AX27: 6.278663029 | AY27: 0 | AZ27: 0 | BA27: 0 | BB27: 7.044705189 | BC27: 0 | BD27: 0 | BE27: 0 | BF27: 0 | BG27: 0 | BH27: 0 | BI27: 0 | BJ27: 0 | BK27: 0 | BL27: 0 | BM27: 0 | BN27: 0 | BO27: 0 | BP27: 0 | BQ27: 0 | BR27: 13.32336822
A28: DLC | B28: Large Low Voltage Demand C | D28: 0 | E28: 0.4039 | F28: 0 | G28: 0 | H28: 0 | I28: 0.4039 | J28: 0 | K28: 0 | L28: 0 | M28: 0 | N28: 0 | O28: 0 | P28: 0 | Q28: 0 | R28: 0 | S28: 0 | T28: 0 | U28: 0 | V28: 0 | W28: 0 | Z28: 445 | AA28: 356472619.1 | AB28: 0 | AC28: 0 | AD28: 0 | AE28: 256180582.6 | AF28: 0 | AG28: 0 | AH28: 0 | AI28: 208522.8654 | AJ28: 0 | AK28: 0 | AL28: 0 | AM28: 0 | AN28: 0 | AO28: 0 | AP28: 0 | AQ28: 0 | AR28: 0 | AS28: 0 | AT28: 0 | AW28: 0 | AX28: 1439792.909 | AY28: 0 | AZ28: 0 | BA28: 0 | BB28: 1034713.373 | BC28: 0 | BD28: 0 | BE28: 0 | BF28: 0 | BG28: 0 | BH28: 0 | BI28: 0 | BJ28: 0 | BK28: 0 | BL28: 0 | BM28: 0 | BN28: 0 | BO28: 0 | BP28: 0 | BQ28: 0 | BR28: 2474506.282
A29: DLS | B29: Large Low Voltage Demand S | D29: 0 | E29: 0.4039 | F29: 0 | G29: 0 | H29: 0 | I29: 0.4039 | J29: 0 | K29: 0 | L29: 0 | M29: 0 | N29: 0 | O29: 0 | P29: 0 | Q29: 0 | R29: 0 | S29: 0 | T29: 0 | U29: 0 | V29: 0 | W29: 0 | Z29: 48.83333333 | AA29: 15026429.07 | AB29: 0 | AC29: 0 | AD29: 0 | AE29: 10580933.37 | AF29: 0 | AG29: 0 | AH29: 0 | AI29: 11972.55433 | AJ29: 0 | AK29: 0 | AL29: 0 | AM29: 0 | AN29: 0 | AO29: 0 | AP29: 0 | AQ29: 0 | AR29: 0 | AS29: 0 | AT29: 0 | AW29: 0 | AX29: 60691.74701 | AY29: 0 | AZ29: 0 | BA29: 0 | BB29: 42736.38987 | BC29: 0 | BD29: 0 | BE29: 0 | BF29: 0 | BG29: 0 | BH29: 0 | BI29: 0 | BJ29: 0 | BK29: 0 | BL29: 0 | BM29: 0 | BN29: 0 | BO29: 0 | BP29: 0 | BQ29: 0 | BR29: 103428.1369
A30: DLDK | B30: Large Low Voltage Demand Docklands | D30: 0 | E30: 0.4039 | F30: 0 | G30: 0 | H30: 0 | I30: 0.4039 | J30: 0 | K30: 0 | L30: 0 | M30: 0 | N30: 0 | O30: 0 | P30: 0 | Q30: 0 | R30: 0 | S30: 0 | T30: 0 | U30: 0 | V30: 0 | W30: 0 | Z30: 7.916666667 | AA30: 3117592.188 | AB30: 0 | AC30: 0 | AD30: 0 | AE30: 3300719.235 | AF30: 0 | AG30: 0 | AH30: 0 | AI30: 1597.166667 | AJ30: 0 | AK30: 0 | AL30: 0 | AM30: 0 | AN30: 0 | AO30: 0 | AP30: 0 | AQ30: 0 | AR30: 0 | AS30: 0 | AT30: 0 | AW30: 0 | AX30: 12591.95485 | AY30: 0 | AZ30: 0 | BA30: 0 | BB30: 13331.60499 | BC30: 0 | BD30: 0 | BE30: 0 | BF30: 0 | BG30: 0 | BH30: 0 | BI30: 0 | BJ30: 0 | BK30: 0 | BL30: 0 | BM30: 0 | BN30: 0 | BO30: 0 | BP30: 0 | BQ30: 0 | BR30: 25923.55984
A31: DLCXX | B31: Large Low Voltage Demand CXX | D31: 0 | E31: 0.4039 | F31: 0 | G31: 0 | H31: 0 | I31: 0.4039 | J31: 0 | K31: 0 | L31: 0 | M31: 0 | N31: 0 | O31: 0 | P31: 0 | Q31: 0 | R31: 0 | S31: 0 | T31: 0 | U31: 0 | V31: 0 | W31: 0 | Z31: 1019.583333 | AA31: 239036380.8 | AB31: 0 | AC31: 0 | AD31: 0 | AE31: 178186558.9 | AF31: 0 | AG31: 0 | AH31: 0 | AI31: 165242.8369 | AJ31: 0 | AK31: 0 | AL31: 0 | AM31: 0 | AN31: 0 | AO31: 0 | AP31: 0 | AQ31: 0 | AR31: 0 | AS31: 0 | AT31: 0 | AW31: 0 | AX31: 965467.9419 | AY31: 0 | AZ31: 0 | BA31: 0 | BB31: 719695.5112 | BC31: 0 | BD31: 0 | BE31: 0 | BF31: 0 | BG31: 0 | BH31: 0 | BI31: 0 | BJ31: 0 | BK31: 0 | BL31: 0 | BM31: 0 | BN31: 0 | BO31: 0 | BP31: 0 | BQ31: 0 | BR31: 1685163.453
A32: DL.R | B32: Large Low Voltage Demand EN.R | D32: 0 | E32: 0.4039 | F32: 0 | G32: 0 | H32: 0 | I32: 0.4039 | J32: 0 | K32: 0 | L32: 0 | M32: 0 | N32: 0 | O32: 0 | P32: 0 | Q32: 0 | R32: 0 | S32: 0 | T32: 0 | U32: 0 | V32: 0 | W32: 0 | Z32: 0 | AA32: 0 | AB32: 0 | AC32: 0 | AD32: 0 | AE32: 0 | AF32: 0 | AG32: 0 | AH32: 0 | AI32: 0 | AJ32: 0 | AK32: 0 | AL32: 0 | AM32: 0 | AN32: 0 | AO32: 0 | AP32: 0 | AQ32: 0 | AR32: 0 | AS32: 0 | AT32: 0 | AW32: 0 | AX32: 0 | AY32: 0 | AZ32: 0 | BA32: 0 | BB32: 0 | BC32: 0 | BD32: 0 | BE32: 0 | BF32: 0 | BG32: 0 | BH32: 0 | BI32: 0 | BJ32: 0 | BK32: 0 | BL32: 0 | BM32: 0 | BN32: 0 | BO32: 0 | BP32: 0 | BQ32: 0 | BR32: 0
A33: DL.NR | B33: Large Low Voltage Demand EN.NR | D33: 0 | E33: 0.4039 | F33: 0 | G33: 0 | H33: 0 | I33: 0.4039 | J33: 0 | K33: 0 | L33: 0 | M33: 0 | N33: 0 | O33: 0 | P33: 0 | Q33: 0 | R33: 0 | S33: 0 | T33: 0 | U33: 0 | V33: 0 | W33: 0 | Z33: 23 | AA33: 31922766.46 | AB33: 0 | AC33: 0 | AD33: 0 | AE33: 20544154.8 | AF33: 0 | AG33: 0 | AH33: 0 | AI33: 18204.64133 | AJ33: 0 | AK33: 0 | AL33: 0 | AM33: 0 | AN33: 0 | AO33: 0 | AP33: 0 | AQ33: 0 | AR33: 0 | AS33: 0 | AT33: 0 | AW33: 0 | AX33: 128936.0537 | AY33: 0 | AZ33: 0 | BA33: 0 | BB33: 82977.84122 | BC33: 0 | BD33: 0 | BE33: 0 | BF33: 0 | BG33: 0 | BH33: 0 | BI33: 0 | BJ33: 0 | BK33: 0 | BL33: 0 | BM33: 0 | BN33: 0 | BO33: 0 | BP33: 0 | BQ33: 0 | BR33: 211913.895
A34: DL.CXXR | B34: Large Low Voltage Demand EN.R CXX | D34: 0 | E34: 0.4039 | F34: 0 | G34: 0 | H34: 0 | I34: 0.4039 | J34: 0 | K34: 0 | L34: 0 | M34: 0 | N34: 0 | O34: 0 | P34: 0 | Q34: 0 | R34: 0 | S34: 0 | T34: 0 | U34: 0 | V34: 0 | W34: 0 | Z34: 3 | AA34: 1116066.491 | AB34: 0 | AC34: 0 | AD34: 0 | AE34: 473653.9242 | AF34: 0 | AG34: 0 | AH34: 0 | AI34: 683.4863333 | AJ34: 0 | AK34: 0 | AL34: 0 | AM34: 0 | AN34: 0 | AO34: 0 | AP34: 0 | AQ34: 0 | AR34: 0 | AS34: 0 | AT34: 0 | AW34: 0 | AX34: 4507.792557 | AY34: 0 | AZ34: 0 | BA34: 0 | BB34: 1913.0882 | BC34: 0 | BD34: 0 | BE34: 0 | BF34: 0 | BG34: 0 | BH34: 0 | BI34: 0 | BJ34: 0 | BK34: 0 | BL34: 0 | BM34: 0 | BN34: 0 | BO34: 0 | BP34: 0 | BQ34: 0 | BR34: 6420.880757
A35: DL.CXXNR | B35: Large Low Voltage Demand EN.NRCXX | D35: 0 | E35: 0.4039 | F35: 0 | G35: 0 | H35: 0 | I35: 0.4039 | J35: 0 | K35: 0 | L35: 0 | M35: 0 | N35: 0 | O35: 0 | P35: 0 | Q35: 0 | R35: 0 | S35: 0 | T35: 0 | U35: 0 | V35: 0 | W35: 0 | Z35: 4.583333333 | AA35: 2118570.845 | AB35: 0 | AC35: 0 | AD35: 0 | AE35: 1425170.591 | AF35: 0 | AG35: 0 | AH35: 0 | AI35: 1135.359667 | AJ35: 0 | AK35: 0 | AL35: 0 | AM35: 0 | AN35: 0 | AO35: 0 | AP35: 0 | AQ35: 0 | AR35: 0 | AS35: 0 | AT35: 0 | AW35: 0 | AX35: 8556.907641 | AY35: 0 | AZ35: 0 | BA35: 0 | BB35: 5756.264019 | BC35: 0 | BD35: 0 | BE35: 0 | BF35: 0 | BG35: 0 | BH35: 0 | BI35: 0 | BJ35: 0 | BK35: 0 | BL35: 0 | BM35: 0 | BN35: 0 | BO35: 0 | BP35: 0 | BQ35: 0 | BR35: 14313.17166
A36: DH | B36: High Voltage Demand | D36: 0 | E36: 0 | F36: 0 | G36: 0 | H36: 0 | I36: 0 | J36: 0 | K36: 0 | L36: 0 | M36: 0 | N36: 0 | O36: 0 | P36: 0 | Q36: 0 | R36: 0 | S36: 0 | T36: 0 | U36: 0 | V36: 0 | W36: 0 | Z36: 111.25 | AA36: 491638563.6 | AB36: 0 | AC36: 0 | AD36: 0 | AE36: 443929044.4 | AF36: 0 | AG36: 0 | AH36: 0 | AI36: 271005.8853 | AJ36: 0 | AK36: 0 | AL36: 0 | AM36: 0 | AN36: 0 | AO36: 0 | AP36: 0 | AQ36: 0 | AR36: 0 | AS36: 0 | AT36: 0 | AW36: 0 | AX36: 0 | AY36: 0 | AZ36: 0 | BA36: 0 | BB36: 0 | BC36: 0 | BD36: 0 | BE36: 0 | BF36: 0 | BG36: 0 | BH36: 0 | BI36: 0 | BJ36: 0 | BK36: 0 | BL36: 0 | BM36: 0 | BN36: 0 | BO36: 0 | BP36: 0 | BQ36: 0 | BR36: 0
A37: DHA | B37: High Voltage Demand A | D37: 0 | E37: 0 | F37: 0 | G37: 0 | H37: 0 | I37: 0 | J37: 0 | K37: 0 | L37: 0 | M37: 0 | N37: 0 | O37: 0 | P37: 0 | Q37: 0 | R37: 0 | S37: 0 | T37: 0 | U37: 0 | V37: 0 | W37: 0 | Z37: 3 | AA37: 6374933.475 | AB37: 0 | AC37: 0 | AD37: 0 | AE37: 6365099.591 | AF37: 0 | AG37: 0 | AH37: 0 | AI37: 3962.666667 | AJ37: 0 | AK37: 0 | AL37: 0 | AM37: 0 | AN37: 0 | AO37: 0 | AP37: 0 | AQ37: 0 | AR37: 0 | AS37: 0 | AT37: 0 | AW37: 0 | AX37: 0 | AY37: 0 | AZ37: 0 | BA37: 0 | BB37: 0 | BC37: 0 | BD37: 0 | BE37: 0 | BF37: 0 | BG37: 0 | BH37: 0 | BI37: 0 | BJ37: 0 | BK37: 0 | BL37: 0 | BM37: 0 | BN37: 0 | BO37: 0 | BP37: 0 | BQ37: 0 | BR37: 0
A38: DHC | B38: High Voltage Demand C | D38: 0 | E38: 0 | F38: 0 | G38: 0 | H38: 0 | I38: 0 | J38: 0 | K38: 0 | L38: 0 | M38: 0 | N38: 0 | O38: 0 | P38: 0 | Q38: 0 | R38: 0 | S38: 0 | T38: 0 | U38: 0 | V38: 0 | W38: 0 | Z38: 41 | AA38: 241115145.2 | AB38: 0 | AC38: 0 | AD38: 0 | AE38: 206818117.4 | AF38: 0 | AG38: 0 | AH38: 0 | AI38: 118039.1263 | AJ38: 0 | AK38: 0 | AL38: 0 | AM38: 0 | AN38: 0 | AO38: 0 | AP38: 0 | AQ38: 0 | AR38: 0 | AS38: 0 | AT38: 0 | AW38: 0 | AX38: 0 | AY38: 0 | AZ38: 0 | BA38: 0 | BB38: 0 | BC38: 0 | BD38: 0 | BE38: 0 | BF38: 0 | BG38: 0 | BH38: 0 | BI38: 0 | BJ38: 0 | BK38: 0 | BL38: 0 | BM38: 0 | BN38: 0 | BO38: 0 | BP38: 0 | BQ38: 0 | BR38: 0
A39: DHD1 | B39: High Voltage Demand D1 | D39: 0 | E39: 0 | F39: 0 | G39: 0 | H39: 0 | I39: 0 | J39: 0 | K39: 0 | L39: 0 | M39: 0 | N39: 0 | O39: 0 | P39: 0 | Q39: 0 | R39: 0 | S39: 0 | T39: 0 | U39: 0 | V39: 0 | W39: 0 | Z39: 1 | AA39: 77353440.38 | AB39: 0 | AC39: 0 | AD39: 0 | AE39: 86446140.12 | AF39: 0 | AG39: 0 | AH39: 0 | AI39: 23472.00207 | AJ39: 0 | AK39: 0 | AL39: 0 | AM39: 0 | AN39: 0 | AO39: 0 | AP39: 0 | AQ39: 0 | AR39: 0 | AS39: 0 | AT39: 0 | AW39: 0 | AX39: 0 | AY39: 0 | AZ39: 0 | BA39: 0 | BB39: 0 | BC39: 0 | BD39: 0 | BE39: 0 | BF39: 0 | BG39: 0 | BH39: 0 | BI39: 0 | BJ39: 0 | BK39: 0 | BL39: 0 | BM39: 0 | BN39: 0 | BO39: 0 | BP39: 0 | BQ39: 0 | BR39: 0
A40: DHD2 | B40: High Voltage Demand D2 | D40: 0 | E40: 0 | F40: 0 | G40: 0 | H40: 0 | I40: 0 | J40: 0 | K40: 0 | L40: 0 | M40: 0 | N40: 0 | O40: 0 | P40: 0 | Q40: 0 | R40: 0 | S40: 0 | T40: 0 | U40: 0 | V40: 0 | W40: 0 | Z40: 1 | AA40: 36506880.52 | AB40: 0 | AC40: 0 | AD40: 0 | AE40: 39600200.46 | AF40: 0 | AG40: 0 | AH40: 0 | AI40: 12488.577 | AJ40: 0 | AK40: 0 | AL40: 0 | AM40: 0 | AN40: 0 | AO40: 0 | AP40: 0 | AQ40: 0 | AR40: 0 | AS40: 0 | AT40: 0 | AW40: 0 | AX40: 0 | AY40: 0 | AZ40: 0 | BA40: 0 | BB40: 0 | BC40: 0 | BD40: 0 | BE40: 0 | BF40: 0 | BG40: 0 | BH40: 0 | BI40: 0 | BJ40: 0 | BK40: 0 | BL40: 0 | BM40: 0 | BN40: 0 | BO40: 0 | BP40: 0 | BQ40: 0 | BR40: 0
A41: DHDK | B41: High Voltage Demand Docklands | D41: 0 | E41: 0 | F41: 0 | G41: 0 | H41: 0 | I41: 0 | J41: 0 | K41: 0 | L41: 0 | M41: 0 | N41: 0 | O41: 0 | P41: 0 | Q41: 0 | R41: 0 | S41: 0 | T41: 0 | U41: 0 | V41: 0 | W41: 0 | Z41: 1 | AA41: 1480164.226 | AB41: 0 | AC41: 0 | AD41: 0 | AE41: 618308.9254 | AF41: 0 | AG41: 0 | AH41: 0 | AI41: 1000 | AJ41: 0 | AK41: 0 | AL41: 0 | AM41: 0 | AN41: 0 | AO41: 0 | AP41: 0 | AQ41: 0 | AR41: 0 | AS41: 0 | AT41: 0 | AW41: 0 | AX41: 0 | AY41: 0 | AZ41: 0 | BA41: 0 | BB41: 0 | BC41: 0 | BD41: 0 | BE41: 0 | BF41: 0 | BG41: 0 | BH41: 0 | BI41: 0 | BJ41: 0 | BK41: 0 | BL41: 0 | BM41: 0 | BN41: 0 | BO41: 0 | BP41: 0 | BQ41: 0 | BR41: 0
A42: DHD3 | B42: High Voltage Demand D3 | D42: 0 | E42: 0 | F42: 0 | G42: 0 | H42: 0 | I42: 0 | J42: 0 | K42: 0 | L42: 0 | M42: 0 | N42: 0 | O42: 0 | P42: 0 | Q42: 0 | R42: 0 | S42: 0 | T42: 0 | U42: 0 | V42: 0 | W42: 0 | Z42: 1 | AA42: 15667468.26 | AB42: 0 | AC42: 0 | AD42: 0 | AE42: 17542504.76 | AF42: 0 | AG42: 0 | AH42: 0 | AI42: 13522 | AJ42: 0 | AK42: 0 | AL42: 0 | AM42: 0 | AN42: 0 | AO42: 0 | AP42: 0 | AQ42: 0 | AR42: 0 | AS42: 0 | AT42: 0 | AW42: 0 | AX42: 0 | AY42: 0 | AZ42: 0 | BA42: 0 | BB42: 0 | BC42: 0 | BD42: 0 | BE42: 0 | BF42: 0 | BG42: 0 | BH42: 0 | BI42: 0 | BJ42: 0 | BK42: 0 | BL42: 0 | BM42: 0 | BN42: 0 | BO42: 0 | BP42: 0 | BQ42: 0 | BR42: 0
A43: DHD4 | B43: High Voltage Demand D4 | D43: 0 | E43: 0 | F43: 0 | G43: 0 | H43: 0 | I43: 0 | J43: 0 | K43: 0 | L43: 0 | M43: 0 | N43: 0 | O43: 0 | P43: 0 | Q43: 0 | R43: 0 | S43: 0 | T43: 0 | U43: 0 | V43: 0 | W43: 0 | Z43: 0.1666666667 | AA43: 2117199.359 | AB43: 0 | AC43: 0 | AD43: 0 | AE43: 2828164.65 | AF43: 0 | AG43: 0 | AH43: 0 | AI43: 916.6666667 | AJ43: 0 | AK43: 0 | AL43: 0 | AM43: 0 | AN43: 0 | AO43: 0 | AP43: 0 | AQ43: 0 | AR43: 0 | AS43: 0 | AT43: 0 | AW43: 0 | AX43: 0 | AY43: 0 | AZ43: 0 | BA43: 0 | BB43: 0 | BC43: 0 | BD43: 0 | BE43: 0 | BF43: 0 | BG43: 0 | BH43: 0 | BI43: 0 | BJ43: 0 | BK43: 0 | BL43: 0 | BM43: 0 | BN43: 0 | BO43: 0 | BP43: 0 | BQ43: 0 | BR43: 0
A44: DSA | B44: Subtransmission Demand A | D44: 0 | E44: 0 | F44: 0 | G44: 0 | H44: 0 | I44: 0 | J44: 0 | K44: 0 | L44: 0 | M44: 0 | N44: 0 | O44: 0 | P44: 0 | Q44: 0 | R44: 0 | S44: 0 | T44: 0 | U44: 0 | V44: 0 | W44: 0 | Z44: 3 | AA44: 101590056.1 | AB44: 0 | AC44: 0 | AD44: 0 | AE44: 79455569.71 | AF44: 0 | AG44: 0 | AH44: 0 | AI44: 51000.30733 | AJ44: 0 | AK44: 0 | AL44: 0 | AM44: 0 | AN44: 0 | AO44: 0 | AP44: 0 | AQ44: 0 | AR44: 0 | AS44: 0 | AT44: 0 | AW44: 0 | AX44: 0 | AY44: 0 | AZ44: 0 | BA44: 0 | BB44: 0 | BC44: 0 | BD44: 0 | BE44: 0 | BF44: 0 | BG44: 0 | BH44: 0 | BI44: 0 | BJ44: 0 | BK44: 0 | BL44: 0 | BM44: 0 | BN44: 0 | BO44: 0 | BP44: 0 | BQ44: 0 | BR44: 0
A45: DSG | B45: Subtransmission Demand G | D45: 0 | E45: 0 | F45: 0 | G45: 0 | H45: 0 | I45: 0 | J45: 0 | K45: 0 | L45: 0 | M45: 0 | N45: 0 | O45: 0 | P45: 0 | Q45: 0 | R45: 0 | S45: 0 | T45: 0 | U45: 0 | V45: 0 | W45: 0 | Z45: 8 | AA45: 289961259.5 | AB45: 0 | AC45: 0 | AD45: 0 | AE45: 316468001.8 | AF45: 0 | AG45: 0 | AH45: 0 | AI45: 199917.5869 | AJ45: 0 | AK45: 0 | AL45: 0 | AM45: 0 | AN45: 0 | AO45: 0 | AP45: 0 | AQ45: 0 | AR45: 0 | AS45: 0 | AT45: 0 | AW45: 0 | AX45: 0 | AY45: 0 | AZ45: 0 | BA45: 0 | BB45: 0 | BC45: 0 | BD45: 0 | BE45: 0 | BF45: 0 | BG45: 0 | BH45: 0 | BI45: 0 | BJ45: 0 | BK45: 0 | BL45: 0 | BM45: 0 | BN45: 0 | BO45: 0 | BP45: 0 | BQ45: 0 | BR45: 0
A46: DSS | B46: Subtransmission Demand S | D46: 0 | E46: 0 | F46: 0 | G46: 0 | H46: 0 | I46: 0 | J46: 0 | K46: 0 | L46: 0 | M46: 0 | N46: 0 | O46: 0 | P46: 0 | Q46: 0 | R46: 0 | S46: 0 | T46: 0 | U46: 0 | V46: 0 | W46: 0 | Z46: 2 | AA46: 151344015.1 | AB46: 0 | AC46: 0 | AD46: 0 | AE46: 211924025.7 | AF46: 0 | AG46: 0 | AH46: 0 | AI46: 109485.296 | AJ46: 0 | AK46: 0 | AL46: 0 | AM46: 0 | AN46: 0 | AO46: 0 | AP46: 0 | AQ46: 0 | AR46: 0 | AS46: 0 | AT46: 0 | AW46: 0 | AX46: 0 | AY46: 0 | AZ46: 0 | BA46: 0 | BB46: 0 | BC46: 0 | BD46: 0 | BE46: 0 | BF46: 0 | BG46: 0 | BH46: 0 | BI46: 0 | BJ46: 0 | BK46: 0 | BL46: 0 | BM46: 0 | BN46: 0 | BO46: 0 | BP46: 0 | BQ46: 0 | BR46: 0
BR47: 0
BR48: 0
BR49: 0
BR50: 0
BR51: 0
BR52: 0
BR53: 0
BR54: 0
BR55: 0
BR56: 0
BR57: 0
BR58: 0
BR59: 0
BR60: 0
BR61: 0
BR62: 0
BR63: 0
BR64: 0
BR65: 0
BR66: 0
Z67: =SUM(Z7:Z66) -> 936140.5833 | AA67: 4801381471 | AB67: 1069210694 | AC67: 393364983.9 | AD67: 220458247 | AE67: 4071344814 | AF67: 0 | AG67: 0 | AH67: 0 | AI67: 1629232.722 | AJ67: 0 | AK67: 0 | AL67: 0 | AM67: =SUM(AM7:AM66) -> 18861.70558 | AN67: 42220.72588 | AO67: 29107.93621 | AP67: 0 | AQ67: 6218.526918 | AR67: 13889.74636 | AS67: 10803.30007 | AT67: 0 | AW67: =SUM(AW7:AW66) -> 0 | AX67: 13573809.82 | AY67: 4330127.32 | AZ67: 1796941.358 | BA67: 1034814.798 | BB67: 9571492.989 | BC67: 0 | BD67: 0 | BE67: 0 | BF67: 0 | BG67: 0 | BH67: 0 | BI67: 0 | BJ67: 130.2023536 | BK67: 247.7512195 | BL67: 86.62521815 | BM67: 0 | BN67: 42.92649132 | BO67: 81.50503167 | BP67: 32.15062102 | BQ67: 0 | BR67: =SUM(AW67:BQ67) -> 30307807.44

Sheet 34. Juris cost audit templa
B1: Powercor
B2: Jurisdictional amount cost audit template
B3: 0
B5: Jurisdictional scheme amounts | F5: t-2 actual
B7: PFIT | F7: 29694812.58
B8: TFIT | F8: 14091730.36
B9: <DNSP to insert for future schemes>
E10: Total | F10: =SUM(F6:F9) -> 43786542.94
B13: Where the following definitions apply
B14: PFIT | C14: Premium feed-in tariff payments
B15: TFIT | C15: Transitional feed-in tariff payments

Sheet Income Workpaper
B1: =Cover!C22 -> Powercor Australia Ltd
B2: Income Statement Workpaper
B3: =Cover!C26 -> 2013
D6: Directly Attributed ($'000 nominal) | L6: Allocated ($'000 nominal) | T6: Numeric QTY of each allocator (%) | AB6: Description of Allocation Basis | AC6: Reason for choosing this basis
B7: INCOME WORKPAPER | C7: Powercor | D7: SCS | E7: AMI | F7: PL (EF) | G7: PL (NE) | H7: ACS (F) | I7: ACS (Q) | J7: Neg'd | K7: Un'reg | L7: SCS | M7: AMI | N7: PL (EF) | O7: PL (NE) | P7: ACS (F) | Q7: ACS (Q) | R7: Neg'd | S7: Un'reg | T7: SCS | U7: AMI | V7: PL (EF) | W7: PL (NE) | X7: ACS (F) | Y7: ACS (Q) | Z7: Neg'd | AA7: Un'reg
B9: Distribution Revenue | C9: 666002.5204 | D9: 532720.1259 | E9: 100707.0743 | F9: 595.9511028 | G9: 8736.786007 | H9: 16527.24402 | I9: 3491.12075 | J9: 0 | K9: 3224.21851 | L9: 0 | M9: 0 | N9: 0 | O9: 0 | P9: 0 | Q9: 0 | R9: 0 | S9: 0
B10: Designated Pricing Proposal Charges | C10: 0 | D10: 0 | E10: 0 | F10: 0 | G10: 0 | H10: 0 | I10: 0 | J10: 0 | K10: 0 | L10: 0 | M10: 0 | N10: 0 | O10: 0 | P10: 0 | Q10: 0 | R10: 0 | S10: 0
B11: Jurisdictional Scheme Amounts | C11: 0 | D11: 0 | E11: 0 | F11: 0 | G11: 0 | H11: 0 | I11: 0 | J11: 0 | K11: 0 | L11: 0 | M11: 0 | N11: 0 | O11: 0 | P11: 0 | Q11: 0 | R11: 0 | S11: 0
B12: Profit from sale of Fixed Assets | C12: -446.5483 | D12: -446.5483 | E12: 0 | F12: 0 | G12: 0 | H12: 0 | I12: 0 | J12: 0 | K12: 0 | L12: 0 | M12: 0 | N12: 0 | O12: 0 | P12: 0 | Q12: 0 | R12: 0 | S12: 0
B13: Customer Contributions | C13: 0 | D13: 0 | E13: 0 | F13: 0 | G13: 0 | H13: 0 | I13: 0 | J13: 0 | K13: 0 | L13: 0 | M13: 0 | N13: 0 | O13: 0 | P13: 0 | Q13: 0 | R13: 0 | S13: 0
B14: Other Revenue | C14: 93759.24173 | D14: 3003.19842 | E14: -1922.56459 | F14: 0 | G14: 0 | H14: 0 | I14: 0 | J14: 0 | K14: 0 | L14: 90204.50944 | M14: 1467.165522 | N14: 0.2344400056 | O14: 33.47992128 | P14: 0 | Q14: 0 | R14: 973.191914 | S14: 0.02666135404 | T14: 0.9733045358 | U14: 0.01583068149 | V14: 2.529602148e-06 | W14: 0.0003612475634 | X14: 0 | Y14: 0 | Z14: 0.01050071787 | AA14: 2.876753831e-07 | AB14: Allocation based on Fixed Assets | AC14: Most appropriate allocator
B16: Total Revenue | C16: =SUM(C9:C14) -> 759315.2138 | D16: 535276.776 | E16: 98784.50967 | F16: 595.9511028 | G16: 8736.786007 | H16: 16527.24402 | I16: 3491.12075 | J16: 0 | K16: 3224.21851 | L16: 90204.50944 | M16: 1467.165522 | N16: 0.2344400056 | O16: 33.47992128 | P16: 0 | Q16: 0 | R16: 973.191914 | S16: 0.02666135404
B18: Designated Pricing Proposal Charges | C18: 0 | D18: 0 | E18: 0 | F18: 0 | G18: 0 | H18: 0 | I18: 0 | J18: 0 | K18: 0 | L18: 0 | M18: 0 | N18: 0 | O18: 0 | P18: 0 | Q18: 0 | R18: 0 | S18: 0
B19: Jurisdictional Scheme Amounts | C19: 0 | D19: 0 | E19: 0 | F19: 0 | G19: 0 | H19: 0 | I19: 0 | J19: 0 | K19: 0 | L19: 0 | M19: 0 | N19: 0 | O19: 0 | P19: 0 | Q19: 0 | R19: 0 | S19: 0
B20: Maintenance | C20: 151198.2496 | D20: 138746.1283 | E20: 2130.118 | F20: 356.6256236 | G20: 5990.006885 | H20: 2744.479428 | I20: 1230.891448 | J20: 0 | K20: 0 | L20: 0 | M20: 0 | N20: 0 | O20: 0 | P20: 0 | Q20: 0 | R20: 0 | S20: 0
B21: Operating Expenses (Billing & Revenue Collection - Allocated) | C21: 5351.441604 | D21: 0 | E21: 0 | F21: 0 | G21: 0 | H21: 0 | I21: 0 | J21: 0 | K21: 0 | L21: 4781.205863 | M21: 274.4549342 | N21: 4.169961464 | O21: 70.05919172 | P21: 169.8331598 | Q21: 51.71849389 | R21: 0 | S21: 0 | T21: 0.893442593 | U21: 0.0512861682 | V21: 0.0007792220812 | W21: 0.01309164836 | X21: 0.03173596432 | Y21: 0.009664404046 | Z21: 0 | AA21: 0 | AB21: Allocation based on Expenditure Split | AC21: Reflective of the costs incurred in providing different categories of distribution services
B22: Operating Expenses (Advertising/Marketing - Allocated) | C22: 13.09171083 | D22: 0 | E22: 0 | F22: 0 | G22: 0 | H22: 0 | I22: 0 | J22: 0 | K22: 0 | L22: 11.69669207 | M22: 0.6714236838 | N22: 0.01020135016 | O22: 0.1713920747 | P22: 0.4154780679 | Q22: 0.1265235832 | R22: 0 | S22: 0 | T22: 0.893442593 | U22: 0.0512861682 | V22: 0.0007792220812 | W22: 0.01309164836 | X22: 0.03173596432 | Y22: 0.009664404046 | Z22: 0 | AA22: 0 | AB22: Allocation based on Expenditure Split | AC22: Reflective of the costs incurred in providing different categories of distribution services
B23: Operating Expenses (Customer Service - Allocated) | C23: 8190.727316 | D23: 0 | E23: 0 | F23: 0 | G23: 0 | H23: 0 | I23: 0 | J23: 0 | K23: 0 | L23: 7317.944652 | M23: 420.0710188 | N23: 6.382395586 | O23: 107.2301219 | P23: 259.9406298 | Q23: 79.15849821 | R23: 0 | S23: 0 | T23: 0.893442593 | U23: 0.0512861682 | V23: 0.0007792220812 | W23: 0.01309164836 | X23: 0.03173596432 | Y23: 0.009664404046 | Z23: 0 | AA23: 0 | AB23: Allocation based on Expenditure Split | AC23: Reflective of the costs incurred in providing different categories of distribution services
B24: Operating Expenses (Debt Raising Costs - Allocated) | C24: 224.95206 | D24: 0 | E24: 0 | F24: 0 | G24: 0 | H24: 0 | I24: 0 | J24: 0 | K24: 0 | L24: 197.7411469 | M24: 25.20070372 | N24: 0.008037094588 | O24: 1.858148562 | P24: 0 | Q24: 0 | R24: 0.1384995566 | S24: 0.005524129131 | T24: 0.8790368354 | U24: 0.1120269969 | V24: 3.572803285e-05 | W24: 0.008260198025 | X24: 0 | Y24: 0 | Z24: 0.0006156847668 | AA24: 2.455691729e-05 | AB24: Allocation based on Fixed Assets (Regulatory) | AC24: Reflective of the costs incurred in providing different categories of distribution services
B25: Operating Expenses (Directly Attributable) | C25: 73530.0189 | D25: 37240.91888 | E25: 21317.44729 | F25: 0 | G25: 0 | H25: 11779.31857 | I25: 3192.33417 | J25: 0 | K25: 0 | L25: 0 | M25: 0 | N25: 0 | O25: 0 | P25: 0 | Q25: 0 | R25: 0 | S25: 0
B26: Depreciation | C26: 158249.8865 | D26: 113899.5752 | E26: 41578.93478 | F26: 2.129886757 | G26: 2723.032007 | H26: 0 | I26: 0 | J26: 32.94069078 | K26: 13.4019457 | L26: 0 | M26: 0 | N26: 0 | O26: 0 | P26: 0 | Q26: 0 | R26: 0 | S26: 0
B27: Finance Charges | C27: 14370.01724 | D27: 0 | E27: 0 | F27: 0 | G27: 0 | H27: 0 | I27: 0 | J27: 0 | K27: 0 | L27: 12631.77448 | M27: 1609.829876 | N27: 0.5134124479 | O27: 118.699188 | P27: 0 | Q27: 0 | R27: 8.847400713 | S27: 0.3528833248 | T27: 0.8790368354 | U27: 0.1120269969 | V27: 3.572803285e-05 | W27: 0.008260198025 | X27: 0 | Y27: 0 | Z27: 0.0006156847668 | AA27: 2.455691729e-05 | AB27: Allocation based on Fixed Assets (Regulatory) | AC27: Most appropriate allocator
B28: Loss from sale of Fixed Assets | C28: 0 | D28: 0 | E28: 0 | F28: 0 | G28: 0 | H28: 0 | I28: 0 | J28: 0 | K28: 0 | L28: 0 | M28: 0 | N28: 0 | O28: 0 | P28: 0 | Q28: 0 | R28: 0 | S28: 0
B29: Impairment Losses (Nature: ) | C29: 0 | D29: 0 | E29: 0 | F29: 0 | G29: 0 | H29: 0 | I29: 0 | J29: 0 | K29: 0 | L29: 0 | M29: 0 | N29: 0 | O29: 0 | P29: 0 | Q29: 0 | R29: 0 | S29: 0
B30: Other | C30: 0 | D30: 0 | E30: 0 | F30: 0 | G30: 0 | H30: 0 | I30: 0 | J30: 0 | K30: 0 | L30: 0 | M30: 0 | N30: 0 | O30: 0 | P30: 0 | Q30: 0 | R30: 0 | S30: 0
B32: Profit before Tax (PBT) | C32: =C16-SUM(C18:C30) -> 348186.8288 | D32: =D16-SUM(D18:D30) -> 245390.1537 | E32: 33758.0096 | F32: 237.1955924 | G32: 23.74711577 | H32: 2003.446021 | I32: -932.1048681 | J32: -32.94069078 | K32: 3210.816564 | L32: 65264.14661 | M32: -863.0624344 | N32: -10.84956794 | O32: -264.538121 | P32: -430.1892677 | Q32: -131.0035157 | R32: 964.2060137 | S32: -0.3317460999
B34: Income Tax Expense / (Benefit) | C34: 98545.01438 | D34: 0 | E34: 0 | F34: 0 | G34: 0 | H34: 0 | I34: 0 | J34: 0 | K34: 0 | L34: 87922.43117 | M34: 9310.039248 | N34: 64.06121769 | O34: -68.149485 | P34: 445.2684494 | Q34: -300.8845318 | R34: 263.5698626 | S34: 908.6422759 | T34: 0.892206105 | U34: 0.09447502467 | V34: 0.0006500708494 | W34: -0.0006915571574 | X34: 0.004518428615 | Y34: -0.003053271077 | Z34: 0.002674614855 | AA34: 0.009220584269 | AB34: Allocated based on Proportion of Profit/Loss in each segment | AC34: Most appropriate allocator
B36: Profit after Tax | C36: =C32-C34 -> 249641.8144 | D36: =D32-D34 -> 245390.1537 | E36: 33758.0096 | F36: 237.1955924 | G36: 23.74711577 | H36: 2003.446021 | I36: -932.1048681 | J36: -32.94069078 | K36: 3210.816564 | L36: -22658.28457 | M36: -10173.10168 | N36: -74.91078563 | O36: -196.388636 | P36: -875.4577171 | Q36: 169.8810161 | R36: 700.6361511 | S36: -908.974022

Sheet Services Fee Workpaper
B1: =Cover!C22 -> Powercor Australia Ltd
B2: Corporate Services Fee Allocations Workpaper
B3: =Cover!C26 -> 2013
F6: 'Numeric QTY of each allocator (%) | O6: ($'000 nominal) | X6: Basis of allocation
B7: Services Fee | C7: Statutory $000's | D7: Amount Capitalised | E7: Powercor $000 | F7: SCS | G7: AMI | H7: PL (EF) | I7: PL (NE) | J7: ACS (F) | K7: ACS (Q) | L7: Neg'd | M7: Un'reg | N7: Total % | O7: SCS | P7: AMI | Q7: PL (EF) | R7: PL (NE) | S7: ACS (F) | T7: ACS (Q) | U7: Neg'd | V7: Un'reg | W7: Total $
B9: Maintenance | C9: 14811.43586 | D9: 0 | E9: 14811.43586 | O9: 13560.26697 | P9: 221.1377746 | Q9: 35.08211837 | R9: 589.2513512 | S9: 283.1668865 | T9: 125.2466946 | U9: 0 | V9: 0 | W9: 14814.1518 | X9: Directly attributable
B10: Network operating costs | C10: 398.1361205 | D10: 0 | E10: 398.1361205 | O10: 0 | P10: 398.1361205 | Q10: 0 | R10: 0 | S10: 0 | T10: 0 | U10: 0 | V10: 0 | W10: 398.1361205 | X10: Directly attributable
B11: Meter data services | C11: 0 | D11: 0 | E11: 0 | O11: 0 | P11: 0 | Q11: 0 | R11: 0 | S11: 0 | T11: 0 | U11: 0 | V11: 0 | W11: 0 | X11: Directly attributable to AMI
B12: Billing and revenue collection - CIS | C12: 643.1866112 | D12: 0 | E12: 643.1866112 | O12: 643.1866112 | P12: 0 | Q12: 0 | R12: 0 | S12: 0 | T12: 0 | U12: 0 | V12: 0 | W12: 643.1866112 | X12: Directly attributable to SCS
B13: Billing and revenue collection | C13: 5351.441604 | D13: 0 | E13: 5351.441604 | F13: 0.893442593 | G13: 0.0512861682 | H13: 0.0007792220812 | I13: 0.01309164836 | J13: 0.03173596432 | K13: 0.009664404046 | L13: 0 | M13: 0 | N13: 1 | O13: 4781.205863 | P13: 274.4549342 | Q13: 4.169961464 | R13: 70.05919172 | S13: 169.8331598 | T13: 51.71849389 | U13: 0 | V13: 0 | W13: 5351.441604 | X13: Allocation based on expenditure split
B14: Advertising & Marketing | C14: 13.09171083 | D14: 0 | E14: 13.09171083 | F14: 0.893442593 | G14: 0.0512861682 | H14: 0.0007792220812 | I14: 0.01309164836 | J14: 0.03173596432 | K14: 0.009664404046 | L14: 0 | M14: 0 | N14: 1 | O14: 11.69669207 | P14: 0.6714236838 | Q14: 0.01020135016 | R14: 0.1713920747 | S14: 0.4154780679 | T14: 0.1265235832 | U14: 0 | V14: 0 | W14: 13.09171083 | X14: Allocation based on expenditure split
B15: Customer Service | C15: 8190.727316 | D15: 0 | E15: 8190.727316 | F15: 0.893442593 | G15: 0.0512861682 | H15: 0.0007792220812 | I15: 0.01309164836 | J15: 0.03173596432 | K15: 0.009664404046 | L15: 0 | M15: 0 | N15: 1 | O15: 7317.944652 | P15: 420.0710188 | Q15: 6.382395586 | R15: 107.2301219 | S15: 259.9406298 | T15: 79.15849821 | U15: 0 | V15: 0 | W15: 8190.727316 | X15: Allocation based on expenditure split
B16: Regulatory | C16: 4364.763155 | D16: 4364.763155 | E16: 0 | O16: 0 | P16: 0 | Q16: 0 | R16: 0 | S16: 0 | T16: 0 | U16: 0 | V16: 0 | W16: 0 | X16: Directly attributable
B17: Other | C17: 30667.52485 | D17: 24845.21813 | E17: 5822.306719 | O17: 4861.225075 | P17: 0 | Q17: 0 | R17: 0 | S17: 961.0816434 | T17: 0 | U17: 0 | V17: 0 | W17: 5822.306719 | X17: Directly attributable
B19: TOTAL | C19: =SUM(C9:C18) -> 64440.30723 | D19: =SUM(D9:D18) -> 29209.98129 | E19: =SUM(E9:E18) -> 35230.32594 | O19: =SUM(O9:O18) -> 31175.52587 | P19: 1314.471272 | Q19: 45.64467677 | R19: 766.7120568 | S19: 1674.437798 | T19: 256.2502103 | U19: 0 | V19: 0 | W19: 35233.04188
